Dept/Family,Entity,Expense Type,Expense Area,Supplier,Payment Date, Amount ,SME,UNSPCC Code,UNSPCC Description
"Ministry of Housing, Communities and Local Government",Homes England,MISC PROFESSIONAL FEES,Investment,HM LAND REGISTRY,4/1/2022," £3,102.00 ",PUB,80131700,Escrow and title services
"Ministry of Housing, Communities and Local Government",Homes England,MISC PROFESSIONAL FEES,Investment,HM LAND REGISTRY,4/4/2022," £1,557.00 ",PUB,80131700,Escrow and title services
"Ministry of Housing, Communities and Local Government",Homes England,Land Registry Fees,Corporate Resources,HM LAND REGISTRY,4/5/2022, £336.00 ,PUB,80131700,Escrow and title services
"Ministry of Housing, Communities and Local Government",Homes England,MISC PROFESSIONAL FEES,Investment,HM LAND REGISTRY,4/5/2022, £747.00 ,PUB,80131700,Escrow and title services
"Ministry of Housing, Communities and Local Government",Homes England,Land Registry Fees,Corporate Resources,HM LAND REGISTRY,4/6/2022, £285.00 ,PUB,80131700,Escrow and title services
"Ministry of Housing, Communities and Local Government",Homes England,REV GRNTS TO LOCAL AUTHORITIES,Investment,MANCHESTER CITY COUNCIL,4/4/2022," £33,750.00 ",PUB,None,Grants
"Ministry of Housing, Communities and Local Government",Homes England,REV GRNTS TO LOCAL AUTHORITIES,Investment,MANCHESTER CITY COUNCIL,4/5/2022," £3,375.00 ",PUB,None,Grants
"Ministry of Housing, Communities and Local Government",Homes England,REV GRNTS TO LOCAL AUTHORITIES,Investment,MANCHESTER CITY COUNCIL,4/22/2022," £3,375.00 ",PUB,None,Grants
"Ministry of Housing, Communities and Local Government",Homes England,REV GRNTS TO LOCAL AUTHORITIES,Investment,SALFORD CITY COUNCIL,4/4/2022," £98,325.00 ",PUB,None,Grants
"Ministry of Housing, Communities and Local Government",Homes England,CAP GRNTS TO LOCAL AUTHORITIES,Investment,ROTHERHAM METROPOLITAN BOROUGH COUNCIL,4/1/2022," £114,125.00 ",PUB,None,Grants
"Ministry of Housing, Communities and Local Government",Homes England,CAP GRNTS TO LOCAL AUTHORITIES,Investment,ROTHERHAM METROPOLITAN BOROUGH COUNCIL,4/4/2022," £52,500.00 ",PUB,None,Grants
"Ministry of Housing, Communities and Local Government",Homes England,CAP GRNTS TO LOCAL AUTHORITIES,Investment,ROTHERHAM METROPOLITAN BOROUGH COUNCIL,4/7/2022," £37,500.00 ",PUB,None,Grants
"Ministry of Housing, Communities and Local Government",Homes England,CAP GRNTS TO LOCAL AUTHORITIES,Investment,NEWCASTLE CITY COUNCIL,4/1/2022," £368,363.00 ",PUB,None,Grants
"Ministry of Housing, Communities and Local Government",Homes England,CAP GRNTS TO LOCAL AUTHORITIES,Investment,NEWCASTLE CITY COUNCIL,4/1/2022," £1,071,600.00 ",PUB,None,Grants
"Ministry of Housing, Communities and Local Government",Homes England,CAP GRNTS TO LOCAL AUTHORITIES,Investment,NEWCASTLE CITY COUNCIL,4/7/2022," £7,500.00 ",PUB,None,Grants
"Ministry of Housing, Communities and Local Government",Homes England,CAP GRNTS TO LOCAL AUTHORITIES,Investment,NEWCASTLE CITY COUNCIL,4/6/2022," £370,563.00 ",PUB,None,Grants
"Ministry of Housing, Communities and Local Government",Homes England,CAP GRNTS TO LOCAL AUTHORITIES,Investment,NEWCASTLE CITY COUNCIL,4/7/2022," £11,607.00 ",PUB,None,Grants
"Ministry of Housing, Communities and Local Government",Homes England,REV GRNTS TO LOCAL AUTHORITIES,Investment,NEWCASTLE CITY COUNCIL,4/6/2022," £45,288.00 ",PUB,None,Grants
"Ministry of Housing, Communities and Local Government",Homes England,CAP GRNTS TO LOCAL AUTHORITIES,Investment,NEWCASTLE CITY COUNCIL,4/7/2022," £37,053.00 ",PUB,None,Grants
"Ministry of Housing, Communities and Local Government",Homes England,CAP GRNTS TO LOCAL AUTHORITIES,Investment,NEWCASTLE CITY COUNCIL,4/7/2022," £29,643.00 ",PUB,None,Grants
"Ministry of Housing, Communities and Local Government",Homes England,CAP GRNTS TO LOCAL AUTHORITIES,Investment,NEWCASTLE CITY COUNCIL,4/6/2022," £370,563.00 ",PUB,None,Grants
"Ministry of Housing, Communities and Local Government",Homes England,CAP GRNTS TO LOCAL AUTHORITIES,Investment,NORTH TYNESIDE COUNCIL,4/4/2022," £7,329.00 ",PUB,None,Grants
"Ministry of Housing, Communities and Local Government",Homes England,CAP GRNTS TO LOCAL AUTHORITIES,Investment,NORTH TYNESIDE COUNCIL,4/4/2022," £4,797.00 ",PUB,None,Grants
"Ministry of Housing, Communities and Local Government",Homes England,CAP GRNTS TO LOCAL AUTHORITIES,Investment,NORTH TYNESIDE COUNCIL,4/4/2022," £21,859.00 ",PUB,None,Grants
"Ministry of Housing, Communities and Local Government",Homes England,CAP GRNTS TO LOCAL AUTHORITIES,Investment,NORTH TYNESIDE COUNCIL,4/4/2022," £21,138.00 ",PUB,None,Grants
"Ministry of Housing, Communities and Local Government",Homes England,REV GRNTS TO LOCAL AUTHORITIES,Investment,NORTH TYNESIDE COUNCIL,4/5/2022," £1,650.00 ",PUB,None,Grants
"Ministry of Housing, Communities and Local Government",Homes England,REV GRNTS TO LOCAL AUTHORITIES,Investment,NORTH TYNESIDE COUNCIL,4/5/2022," £2,100.00 ",PUB,None,Grants
"Ministry of Housing, Communities and Local Government",Homes England,REV GRNTS TO LOCAL AUTHORITIES,Investment,NORTH TYNESIDE COUNCIL,4/5/2022," £1,595.00 ",PUB,None,Grants
"Ministry of Housing, Communities and Local Government",Homes England,REV GRNTS TO LOCAL AUTHORITIES,Investment,NORTH TYNESIDE COUNCIL,4/6/2022," £10,933.00 ",PUB,None,Grants
"Ministry of Housing, Communities and Local Government",Homes England,CAP GRNTS TO LOCAL AUTHORITIES,Investment,NORTH TYNESIDE COUNCIL,4/7/2022," £4,817.00 ",PUB,None,Grants
"Ministry of Housing, Communities and Local Government",Homes England,REV GRNTS TO LOCAL AUTHORITIES,Investment,NORTH TYNESIDE COUNCIL,4/6/2022," £10,933.00 ",PUB,None,Grants
"Ministry of Housing, Communities and Local Government",Homes England,REV GRNTS TO LOCAL AUTHORITIES,Investment,NORTH TYNESIDE COUNCIL,4/6/2022," £10,933.00 ",PUB,None,Grants
"Ministry of Housing, Communities and Local Government",Homes England,REV GRNTS TO LOCAL AUTHORITIES,Investment,SOLIHULL METROPOLITAN BOROUGH COUNCIL,4/4/2022," £1,975.00 ",PUB,None,Grants
"Ministry of Housing, Communities and Local Government",Homes England,REV GRNTS TO LOCAL AUTHORITIES,Investment,SOLIHULL METROPOLITAN BOROUGH COUNCIL,4/6/2022," £2,289.00 ",PUB,None,Grants
"Ministry of Housing, Communities and Local Government",Homes England,REV GRNTS TO LOCAL AUTHORITIES,Investment,LEEDS CITY COUNCIL,4/7/2022," £25,000.00 ",PUB,None,Grants
"Ministry of Housing, Communities and Local Government",Homes England,REV GRNTS TO LOCAL AUTHORITIES,Investment,LEEDS CITY COUNCIL,4/6/2022," £22,500.00 ",PUB,None,Grants
"Ministry of Housing, Communities and Local Government",Homes England,CAP GRNTS TO LOCAL AUTHORITIES,Investment,MIDDLEBROUGH COUNCIL,4/7/2022," £24,000.00 ",PUB,None,Grants
"Ministry of Housing, Communities and Local Government",Homes England,CAP GRNTS TO LOCAL AUTHORITIES,Investment,MIDDLEBROUGH COUNCIL,4/7/2022," £60,000.00 ",PUB,None,Grants
"Ministry of Housing, Communities and Local Government",Homes England,CAP GRNTS TO LOCAL AUTHORITIES,Investment,MIDDLEBROUGH COUNCIL,4/7/2022," £12,000.00 ",PUB,None,Grants
"Ministry of Housing, Communities and Local Government",Homes England,CAP GRNTS TO LOCAL AUTHORITIES,Investment,MIDDLEBROUGH COUNCIL,4/8/2022," £8,000.00 ",PUB,None,Grants
"Ministry of Housing, Communities and Local Government",Homes England,CAP GRNTS TO LOCAL AUTHORITIES,Investment,MIDDLEBROUGH COUNCIL,4/8/2022," £20,000.00 ",PUB,None,Grants
"Ministry of Housing, Communities and Local Government",Homes England,CAP GRNTS TO LOCAL AUTHORITIES,Investment,MIDDLEBROUGH COUNCIL,4/8/2022," £4,000.00 ",PUB,None,Grants
"Ministry of Housing, Communities and Local Government",Homes England,BUILDINGS-VACANT RATES,Development,DARLINGTON BOROUGH COUNCIL,4/12/2022," £5,476.20 ",PUB,80131500,Lease and rental of property or building
"Ministry of Housing, Communities and Local Government",Homes England,BUILDINGS-VACANT RATES,Development,DARLINGTON BOROUGH COUNCIL,4/12/2022," £5,476.20 ",PUB,80131500,Lease and rental of property or building
"Ministry of Housing, Communities and Local Government",Homes England,REV GRNTS TO LOCAL AUTHORITIES,Investment,THE COUNTY COUNCIL OF DURHAM,4/5/2022," £6,900.00 ",PUB,None,Grants
"Ministry of Housing, Communities and Local Government",Homes England,REV GRNTS TO LOCAL AUTHORITIES,Investment,THE COUNTY COUNCIL OF DURHAM,4/5/2022," £6,900.00 ",PUB,None,Grants
"Ministry of Housing, Communities and Local Government",Homes England,REV GRNTS TO LOCAL AUTHORITIES,Investment,THE COUNTY COUNCIL OF DURHAM,4/5/2022," £6,900.00 ",PUB,None,Grants
"Ministry of Housing, Communities and Local Government",Homes England,REV GRNTS TO LOCAL AUTHORITIES,Investment,THE COUNTY COUNCIL OF DURHAM,4/5/2022," £6,900.00 ",PUB,None,Grants
"Ministry of Housing, Communities and Local Government",Homes England,REV GRNTS TO LOCAL AUTHORITIES,Investment,THE COUNTY COUNCIL OF DURHAM,4/5/2022," £6,900.00 ",PUB,None,Grants
"Ministry of Housing, Communities and Local Government",Homes England,REV GRNTS TO LOCAL AUTHORITIES,Investment,THE COUNTY COUNCIL OF DURHAM,4/5/2022," £6,900.00 ",PUB,None,Grants
"Ministry of Housing, Communities and Local Government",Homes England,REVENUE GRANTS TO RPs,Investment,THE COUNTY COUNCIL OF DURHAM,4/5/2022," £4,655.00 ",PUB,None,Grants
"Ministry of Housing, Communities and Local Government",Homes England,REV GRNTS TO LOCAL AUTHORITIES,Investment,THE COUNTY COUNCIL OF DURHAM,4/7/2022," £10,000.00 ",PUB,None,Grants
"Ministry of Housing, Communities and Local Government",Homes England,REV GRNTS TO LOCAL AUTHORITIES,Investment,THE COUNTY COUNCIL OF DURHAM,4/6/2022," £16,200.00 ",PUB,None,Grants
"Ministry of Housing, Communities and Local Government",Homes England,REV GRNTS TO LOCAL AUTHORITIES,Investment,THE COUNTY COUNCIL OF DURHAM,4/7/2022," £17,800.00 ",PUB,None,Grants
"Ministry of Housing, Communities and Local Government",Homes England,CAP GRNTS TO LOCAL AUTHORITIES,Investment,THE COUNTY COUNCIL OF DURHAM,4/6/2022," £7,500.00 ",PUB,None,Grants
"Ministry of Housing, Communities and Local Government",Homes England,REV GRNTS TO LOCAL AUTHORITIES,Investment,THE COUNTY COUNCIL OF DURHAM,4/6/2022," £9,000.00 ",PUB,None,Grants
"Ministry of Housing, Communities and Local Government",Homes England,CAP GRNTS TO LOCAL AUTHORITIES,Investment,THE COUNTY COUNCIL OF DURHAM,4/6/2022," £7,500.00 ",PUB,None,Grants
"Ministry of Housing, Communities and Local Government",Homes England,REV GRNTS TO LOCAL AUTHORITIES,Investment,THE COUNTY COUNCIL OF DURHAM,4/6/2022," £285,000.00 ",PUB,None,Grants
"Ministry of Housing, Communities and Local Government",Homes England,REV GRNTS TO LOCAL AUTHORITIES,Investment,THE COUNTY COUNCIL OF DURHAM,4/7/2022," £17,200.00 ",PUB,None,Grants
"Ministry of Housing, Communities and Local Government",Homes England,CAP GRNTS TO LOCAL AUTHORITIES,Investment,THE COUNTY COUNCIL OF DURHAM,4/6/2022," £7,500.00 ",PUB,None,Grants
"Ministry of Housing, Communities and Local Government",Homes England,REV GRNTS TO LOCAL AUTHORITIES,Investment,THE COUNTY COUNCIL OF DURHAM,4/6/2022," £7,744.00 ",PUB,None,Grants
"Ministry of Housing, Communities and Local Government",Homes England,CAP GRNTS TO LOCAL AUTHORITIES,Investment,THE COUNTY COUNCIL OF DURHAM,4/6/2022," £7,500.00 ",PUB,None,Grants
"Ministry of Housing, Communities and Local Government",Homes England,REV GRNTS TO LOCAL AUTHORITIES,Investment,THE COUNTY COUNCIL OF DURHAM,4/6/2022," £18,300.00 ",PUB,None,Grants
"Ministry of Housing, Communities and Local Government",Homes England,REV GRNTS TO LOCAL AUTHORITIES,Investment,THE COUNTY COUNCIL OF DURHAM,4/6/2022," £16,020.00 ",PUB,None,Grants
"Ministry of Housing, Communities and Local Government",Homes England,CAP GRNTS TO LOCAL AUTHORITIES,Investment,THE COUNTY COUNCIL OF DURHAM,4/6/2022," £7,500.00 ",PUB,None,Grants
"Ministry of Housing, Communities and Local Government",Homes England,REV GRNTS TO LOCAL AUTHORITIES,Investment,THE COUNTY COUNCIL OF DURHAM,4/6/2022," £15,480.00 ",PUB,None,Grants
"Ministry of Housing, Communities and Local Government",Homes England,REV GRNTS TO LOCAL AUTHORITIES,Investment,CHESHIRE WEST AND CHESTER COUNCIL,4/5/2022," £18,450.00 ",PUB,None,Grants
"Ministry of Housing, Communities and Local Government",Homes England,REV GRNTS TO LOCAL AUTHORITIES,Investment,CHESHIRE WEST AND CHESTER COUNCIL,4/6/2022," £20,500.00 ",PUB,None,Grants
"Ministry of Housing, Communities and Local Government",Homes England,REV GRNTS TO LOCAL AUTHORITIES,Investment,CHESHIRE WEST AND CHESTER COUNCIL,4/6/2022," £2,050.00 ",PUB,None,Grants
"Ministry of Housing, Communities and Local Government",Homes England,REV GRNTS TO LOCAL AUTHORITIES,Investment,CHESHIRE WEST AND CHESTER COUNCIL,4/7/2022," £2,050.00 ",PUB,None,Grants
"Ministry of Housing, Communities and Local Government",Homes England,CAP GRNTS TO LOCAL AUTHORITIES,Investment,KINGSTON UPON HULL CITY COUNCIL,4/6/2022," £602,726.00 ",PUB,None,Grants
"Ministry of Housing, Communities and Local Government",Homes England,REV GRNTS TO LOCAL AUTHORITIES,Investment,DERBY CITY COUNCIL,4/6/2022," £3,000.00 ",PUB,None,Grants
"Ministry of Housing, Communities and Local Government",Homes England,REV GRNTS TO LOCAL AUTHORITIES,Investment,DERBY CITY COUNCIL,4/11/2022," £1,570.00 ",PUB,None,Grants
"Ministry of Housing, Communities and Local Government",Homes England,REV GRNTS TO LOCAL AUTHORITIES,Investment,NOTTINGHAM CITY COUNCIL,4/1/2022," £1,719.00 ",PUB,None,Grants
"Ministry of Housing, Communities and Local Government",Homes England,REV GRNTS TO LOCAL AUTHORITIES,Investment,NOTTINGHAM CITY COUNCIL,4/1/2022," £1,719.00 ",PUB,None,Grants
"Ministry of Housing, Communities and Local Government",Homes England,REV GRNTS TO LOCAL AUTHORITIES,Investment,NOTTINGHAM CITY COUNCIL,4/1/2022," £1,719.00 ",PUB,None,Grants
"Ministry of Housing, Communities and Local Government",Homes England,REV GRNTS TO LOCAL AUTHORITIES,Investment,NOTTINGHAM CITY COUNCIL,4/1/2022," £1,719.00 ",PUB,None,Grants
"Ministry of Housing, Communities and Local Government",Homes England,REV GRNTS TO LOCAL AUTHORITIES,Investment,NOTTINGHAM CITY COUNCIL,4/1/2022," £1,719.00 ",PUB,None,Grants
"Ministry of Housing, Communities and Local Government",Homes England,REV GRNTS TO LOCAL AUTHORITIES,Investment,NOTTINGHAM CITY COUNCIL,4/1/2022," £1,719.00 ",PUB,None,Grants
"Ministry of Housing, Communities and Local Government",Homes England,REV GRNTS TO LOCAL AUTHORITIES,Investment,NOTTINGHAM CITY COUNCIL,4/1/2022," £1,719.00 ",PUB,None,Grants
"Ministry of Housing, Communities and Local Government",Homes England,REV GRNTS TO LOCAL AUTHORITIES,Investment,NOTTINGHAM CITY COUNCIL,4/1/2022," £1,719.00 ",PUB,None,Grants
"Ministry of Housing, Communities and Local Government",Homes England,REV GRNTS TO LOCAL AUTHORITIES,Investment,NOTTINGHAM CITY COUNCIL,4/1/2022," £1,719.00 ",PUB,None,Grants
"Ministry of Housing, Communities and Local Government",Homes England,REV GRNTS TO LOCAL AUTHORITIES,Investment,NOTTINGHAM CITY COUNCIL,4/1/2022," £1,719.00 ",PUB,None,Grants
"Ministry of Housing, Communities and Local Government",Homes England,REV GRNTS TO LOCAL AUTHORITIES,Investment,NOTTINGHAM CITY COUNCIL,4/1/2022," £1,719.00 ",PUB,None,Grants
"Ministry of Housing, Communities and Local Government",Homes England,CAP GRNTS TO LOCAL AUTHORITIES,Investment,SHROPSHIRE COUNCIL,4/22/2022," £222,000.00 ",PUB,None,Grants
"Ministry of Housing, Communities and Local Government",Homes England,CAP GRNTS TO LOCAL AUTHORITIES,Investment,SHROPSHIRE COUNCIL,4/22/2022," £123,000.00 ",PUB,None,Grants
"Ministry of Housing, Communities and Local Government",Homes England,CAP GRNTS TO LOCAL AUTHORITIES,Investment,SHROPSHIRE COUNCIL,4/22/2022," £33,000.00 ",PUB,None,Grants
"Ministry of Housing, Communities and Local Government",Homes England,REV GRNTS TO LOCAL AUTHORITIES,Investment,BRISTOL CITY COUNCIL,4/4/2022," £51,557.00 ",PUB,None,Grants
"Ministry of Housing, Communities and Local Government",Homes England,REV GRNTS TO LOCAL AUTHORITIES,Investment,BRISTOL CITY COUNCIL,4/7/2022," £57,285.00 ",PUB,None,Grants
"Ministry of Housing, Communities and Local Government",Homes England,CAP GRNTS TO LOCAL AUTHORITIES,Investment,BRISTOL CITY COUNCIL,4/6/2022," £1,312,500.00 ",PUB,None,Grants
"Ministry of Housing, Communities and Local Government",Homes England,REV GRNTS TO LOCAL AUTHORITIES,Investment,CORNWALL COUNCIL,4/5/2022," £25,178.00 ",PUB,None,Grants
"Ministry of Housing, Communities and Local Government",Homes England,REV GRNTS TO LOCAL AUTHORITIES,Investment,CORNWALL COUNCIL,4/5/2022," £25,178.00 ",PUB,None,Grants
"Ministry of Housing, Communities and Local Government",Homes England,REV GRNTS TO LOCAL AUTHORITIES,Investment,CORNWALL COUNCIL,4/5/2022," £25,178.00 ",PUB,None,Grants
"Ministry of Housing, Communities and Local Government",Homes England,REV GRNTS TO LOCAL AUTHORITIES,Investment,CORNWALL COUNCIL,4/5/2022," £25,178.00 ",PUB,None,Grants
"Ministry of Housing, Communities and Local Government",Homes England,REV GRNTS TO LOCAL AUTHORITIES,Investment,CORNWALL COUNCIL,4/5/2022," £25,178.00 ",PUB,None,Grants
"Ministry of Housing, Communities and Local Government",Homes England,REV GRNTS TO LOCAL AUTHORITIES,Investment,CORNWALL COUNCIL,4/6/2022," £27,975.00 ",PUB,None,Grants
"Ministry of Housing, Communities and Local Government",Homes England,REV GRNTS TO LOCAL AUTHORITIES,Investment,CORNWALL COUNCIL,4/7/2022," £27,975.00 ",PUB,None,Grants
"Ministry of Housing, Communities and Local Government",Homes England,REV GRNTS TO LOCAL AUTHORITIES,Investment,CORNWALL COUNCIL,4/6/2022," £25,178.00 ",PUB,None,Grants
"Ministry of Housing, Communities and Local Government",Homes England,REV GRNTS TO LOCAL AUTHORITIES,Investment,CORNWALL COUNCIL,4/6/2022," £27,975.00 ",PUB,None,Grants
"Ministry of Housing, Communities and Local Government",Homes England,REV GRNTS TO LOCAL AUTHORITIES,Investment,CORNWALL COUNCIL,4/7/2022," £27,975.00 ",PUB,None,Grants
"Ministry of Housing, Communities and Local Government",Homes England,REV GRNTS TO LOCAL AUTHORITIES,Investment,CORNWALL COUNCIL,4/6/2022," £25,178.00 ",PUB,None,Grants
"Ministry of Housing, Communities and Local Government",Homes England,REV GRNTS TO LOCAL AUTHORITIES,Investment,CORNWALL COUNCIL,4/6/2022," £27,975.00 ",PUB,None,Grants
"Ministry of Housing, Communities and Local Government",Homes England,REV GRNTS TO LOCAL AUTHORITIES,Investment,CORNWALL COUNCIL,4/6/2022," £27,975.00 ",PUB,None,Grants
"Ministry of Housing, Communities and Local Government",Homes England,REV GRNTS TO LOCAL AUTHORITIES,Investment,CORNWALL COUNCIL,4/6/2022," £25,178.00 ",PUB,None,Grants
"Ministry of Housing, Communities and Local Government",Homes England,REV GRNTS TO LOCAL AUTHORITIES,Investment,CORNWALL COUNCIL,4/7/2022," £27,975.00 ",PUB,None,Grants
"Ministry of Housing, Communities and Local Government",Homes England,REV GRNTS TO LOCAL AUTHORITIES,Investment,CORNWALL COUNCIL,4/19/2022," £27,975.00 ",PUB,None,Grants
"Ministry of Housing, Communities and Local Government",Homes England,REV GRNTS TO LOCAL AUTHORITIES,Investment,CORNWALL COUNCIL,4/29/2022," £25,178.00 ",PUB,None,Grants
"Ministry of Housing, Communities and Local Government",Homes England,REV GRNTS TO LOCAL AUTHORITIES,Investment,CORNWALL COUNCIL,4/29/2022," £25,178.00 ",PUB,None,Grants
"Ministry of Housing, Communities and Local Government",Homes England,CAP GRNTS TO LOCAL AUTHORITIES,Investment,COUNCIL OF THE ISLES OF SCILLEY,4/1/2022," £112,500.00 ",PUB,None,Grants
"Ministry of Housing, Communities and Local Government",Homes England,REV GRNTS TO LOCAL AUTHORITIES,Investment,LUTON BOROUGH COUNCIL,4/1/2022, £964.00 ,PUB,None,Grants
"Ministry of Housing, Communities and Local Government",Homes England,REV GRNTS TO LOCAL AUTHORITIES,Investment,LUTON BOROUGH COUNCIL,4/1/2022, £866.00 ,PUB,None,Grants
"Ministry of Housing, Communities and Local Government",Homes England,REV GRNTS TO LOCAL AUTHORITIES,Investment,LUTON BOROUGH COUNCIL,4/1/2022," £1,083.00 ",PUB,None,Grants
"Ministry of Housing, Communities and Local Government",Homes England,REV GRNTS TO LOCAL AUTHORITIES,Investment,LUTON BOROUGH COUNCIL,4/1/2022, £817.00 ,PUB,None,Grants
"Ministry of Housing, Communities and Local Government",Homes England,REV GRNTS TO LOCAL AUTHORITIES,Investment,LUTON BOROUGH COUNCIL,4/1/2022," £1,279.00 ",PUB,None,Grants
"Ministry of Housing, Communities and Local Government",Homes England,REV GRNTS TO LOCAL AUTHORITIES,Investment,LUTON BOROUGH COUNCIL,4/4/2022, £731.00 ,PUB,None,Grants
"Ministry of Housing, Communities and Local Government",Homes England,REV GRNTS TO LOCAL AUTHORITIES,Investment,CENTRAL BEDFORDSHIRE COUNCIL,4/1/2022," £2,481.00 ",PUB,None,Grants
"Ministry of Housing, Communities and Local Government",Homes England,REV GRNTS TO LOCAL AUTHORITIES,Investment,CENTRAL BEDFORDSHIRE COUNCIL,4/1/2022," £1,824.00 ",PUB,None,Grants
"Ministry of Housing, Communities and Local Government",Homes England,REV GRNTS TO LOCAL AUTHORITIES,Investment,CENTRAL BEDFORDSHIRE COUNCIL,4/1/2022," £1,978.00 ",PUB,None,Grants
"Ministry of Housing, Communities and Local Government",Homes England,REV GRNTS TO LOCAL AUTHORITIES,Investment,CENTRAL BEDFORDSHIRE COUNCIL,4/1/2022," £2,481.00 ",PUB,None,Grants
"Ministry of Housing, Communities and Local Government",Homes England,REV GRNTS TO LOCAL AUTHORITIES,Investment,SOUTHEND-ON-SEA BOROUGH COUNCIL,4/1/2022," £1,541.00 ",PUB,None,Grants
"Ministry of Housing, Communities and Local Government",Homes England,REV GRNTS TO LOCAL AUTHORITIES,Investment,SOUTHEND-ON-SEA BOROUGH COUNCIL,4/1/2022," £1,630.00 ",PUB,None,Grants
"Ministry of Housing, Communities and Local Government",Homes England,REV GRNTS TO LOCAL AUTHORITIES,Investment,SOUTHEND-ON-SEA BOROUGH COUNCIL,4/1/2022," £1,730.00 ",PUB,None,Grants
"Ministry of Housing, Communities and Local Government",Homes England,REV GRNTS TO LOCAL AUTHORITIES,Investment,SOUTHEND-ON-SEA BOROUGH COUNCIL,4/1/2022," £1,699.00 ",PUB,None,Grants
"Ministry of Housing, Communities and Local Government",Homes England,REV GRNTS TO LOCAL AUTHORITIES,Investment,SOUTHEND-ON-SEA BOROUGH COUNCIL,4/1/2022," £1,538.00 ",PUB,None,Grants
"Ministry of Housing, Communities and Local Government",Homes England,REV GRNTS TO LOCAL AUTHORITIES,Investment,SOUTHEND-ON-SEA BOROUGH COUNCIL,4/1/2022," £1,730.00 ",PUB,None,Grants
"Ministry of Housing, Communities and Local Government",Homes England,REV GRNTS TO LOCAL AUTHORITIES,Investment,SOUTHEND-ON-SEA BOROUGH COUNCIL,4/1/2022," £1,538.00 ",PUB,None,Grants
"Ministry of Housing, Communities and Local Government",Homes England,REV GRNTS TO LOCAL AUTHORITIES,Investment,SOUTHEND-ON-SEA BOROUGH COUNCIL,4/1/2022," £1,799.00 ",PUB,None,Grants
"Ministry of Housing, Communities and Local Government",Homes England,REV GRNTS TO LOCAL AUTHORITIES,Investment,SOUTHEND-ON-SEA BOROUGH COUNCIL,4/1/2022," £1,415.00 ",PUB,None,Grants
"Ministry of Housing, Communities and Local Government",Homes England,REV GRNTS TO LOCAL AUTHORITIES,Investment,SOUTHEND-ON-SEA BOROUGH COUNCIL,4/1/2022," £1,660.00 ",PUB,None,Grants
"Ministry of Housing, Communities and Local Government",Homes England,REV GRNTS TO LOCAL AUTHORITIES,Investment,SOUTHEND-ON-SEA BOROUGH COUNCIL,4/1/2022," £1,799.00 ",PUB,None,Grants
"Ministry of Housing, Communities and Local Government",Homes England,REV GRNTS TO LOCAL AUTHORITIES,Investment,SOUTHEND-ON-SEA BOROUGH COUNCIL,4/1/2022," £7,190.00 ",PUB,None,Grants
"Ministry of Housing, Communities and Local Government",Homes England,REV GRNTS TO LOCAL AUTHORITIES,Investment,SOUTHEND-ON-SEA BOROUGH COUNCIL,4/1/2022," £1,588.00 ",PUB,None,Grants
"Ministry of Housing, Communities and Local Government",Homes England,REV GRNTS TO LOCAL AUTHORITIES,Investment,SOUTHEND-ON-SEA BOROUGH COUNCIL,4/1/2022," £1,799.00 ",PUB,None,Grants
"Ministry of Housing, Communities and Local Government",Homes England,REV GRNTS TO LOCAL AUTHORITIES,Investment,BRIGHTON & HOVE CITY COUNCIL,4/4/2022," £6,550.00 ",PUB,None,Grants
"Ministry of Housing, Communities and Local Government",Homes England,REV GRNTS TO LOCAL AUTHORITIES,Investment,BRIGHTON & HOVE CITY COUNCIL,4/7/2022," £36,829.00 ",PUB,None,Grants
"Ministry of Housing, Communities and Local Government",Homes England,REV GRNTS TO LOCAL AUTHORITIES,Investment,BRIGHTON & HOVE CITY COUNCIL,4/7/2022," £36,829.00 ",PUB,None,Grants
"Ministry of Housing, Communities and Local Government",Homes England,REV GRNTS TO LOCAL AUTHORITIES,Investment,BRIGHTON & HOVE CITY COUNCIL,4/7/2022," £36,829.00 ",PUB,None,Grants
"Ministry of Housing, Communities and Local Government",Homes England,REV GRNTS TO LOCAL AUTHORITIES,Investment,BRIGHTON & HOVE CITY COUNCIL,4/7/2022," £1,938.00 ",PUB,None,Grants
"Ministry of Housing, Communities and Local Government",Homes England,REV GRNTS TO LOCAL AUTHORITIES,Investment,BRIGHTON & HOVE CITY COUNCIL,4/6/2022," £36,829.00 ",PUB,None,Grants
"Ministry of Housing, Communities and Local Government",Homes England,REV GRNTS TO LOCAL AUTHORITIES,Investment,BRIGHTON & HOVE CITY COUNCIL,4/7/2022," £11,666.00 ",PUB,None,Grants
"Ministry of Housing, Communities and Local Government",Homes England,REV GRNTS TO LOCAL AUTHORITIES,Investment,BRIGHTON & HOVE CITY COUNCIL,4/7/2022," £1,938.00 ",PUB,None,Grants
"Ministry of Housing, Communities and Local Government",Homes England,REV GRNTS TO LOCAL AUTHORITIES,Investment,BRIGHTON & HOVE CITY COUNCIL,4/7/2022," £36,829.00 ",PUB,None,Grants
"Ministry of Housing, Communities and Local Government",Homes England,REV GRNTS TO LOCAL AUTHORITIES,Investment,BRIGHTON & HOVE CITY COUNCIL,4/7/2022," £10,500.00 ",PUB,None,Grants
"Ministry of Housing, Communities and Local Government",Homes England,REV GRNTS TO LOCAL AUTHORITIES,Investment,BRIGHTON & HOVE CITY COUNCIL,4/7/2022," £36,829.00 ",PUB,None,Grants
"Ministry of Housing, Communities and Local Government",Homes England,REV GRNTS TO LOCAL AUTHORITIES,Investment,BRIGHTON & HOVE CITY COUNCIL,4/7/2022," £1,938.00 ",PUB,None,Grants
"Ministry of Housing, Communities and Local Government",Homes England,REV GRNTS TO LOCAL AUTHORITIES,Investment,BRIGHTON & HOVE CITY COUNCIL,4/7/2022," £1,938.00 ",PUB,None,Grants
"Ministry of Housing, Communities and Local Government",Homes England,REV GRNTS TO LOCAL AUTHORITIES,Investment,BRIGHTON & HOVE CITY COUNCIL,4/21/2022," £1,167.00 ",PUB,None,Grants
"Ministry of Housing, Communities and Local Government",Homes England,REV GRNTS TO LOCAL AUTHORITIES,Investment,BRIGHTON & HOVE CITY COUNCIL,4/21/2022," £11,666.00 ",PUB,None,Grants
"Ministry of Housing, Communities and Local Government",Homes England,REV GRNTS TO LOCAL AUTHORITIES,Investment,BRIGHTON & HOVE CITY COUNCIL,4/28/2022," £1,938.00 ",PUB,None,Grants
"Ministry of Housing, Communities and Local Government",Homes England,REV GRNTS TO LOCAL AUTHORITIES,Investment,BRIGHTON & HOVE CITY COUNCIL,4/28/2022," £36,829.00 ",PUB,None,Grants
"Ministry of Housing, Communities and Local Government",Homes England,REV GRNTS TO LOCAL AUTHORITIES,Investment,BRIGHTON & HOVE CITY COUNCIL,4/28/2022," £36,829.00 ",PUB,None,Grants
"Ministry of Housing, Communities and Local Government",Homes England,REV GRNTS TO LOCAL AUTHORITIES,Investment,BRIGHTON & HOVE CITY COUNCIL,4/28/2022," £1,938.00 ",PUB,None,Grants
"Ministry of Housing, Communities and Local Government",Homes England,REV GRNTS TO LOCAL AUTHORITIES,Investment,BRIGHTON & HOVE CITY COUNCIL,4/28/2022," £36,829.00 ",PUB,None,Grants
"Ministry of Housing, Communities and Local Government",Homes England,REV GRNTS TO LOCAL AUTHORITIES,Investment,BRIGHTON & HOVE CITY COUNCIL,4/28/2022," £1,938.00 ",PUB,None,Grants
"Ministry of Housing, Communities and Local Government",Homes England,REV GRNTS TO LOCAL AUTHORITIES,Investment,BRIGHTON & HOVE CITY COUNCIL,4/28/2022," £1,938.00 ",PUB,None,Grants
"Ministry of Housing, Communities and Local Government",Homes England,REV GRNTS TO LOCAL AUTHORITIES,Investment,BRIGHTON & HOVE CITY COUNCIL,4/28/2022," £1,938.00 ",PUB,None,Grants
"Ministry of Housing, Communities and Local Government",Homes England,REV GRNTS TO LOCAL AUTHORITIES,Investment,BRIGHTON & HOVE CITY COUNCIL,4/28/2022," £36,829.00 ",PUB,None,Grants
"Ministry of Housing, Communities and Local Government",Homes England,MANAGEMENT COSTS,Development,WELWYN HATFIELD COUNCIL,4/4/2022," £4,341.30 ",PUB,80131800,Real estate management services
"Ministry of Housing, Communities and Local Government",Homes England,SERVICE CHARGE,Development,ASDA STORES LTD,4/7/2022, £391.21 ,LAR,80131500,Lease and rental of property or building
"Ministry of Housing, Communities and Local Government",Homes England,SERVICE CHARGE,Development,ASDA STORES LTD,4/7/2022, £863.18 ,LAR,80131500,Lease and rental of property or building
"Ministry of Housing, Communities and Local Government",Homes England,RATES,Development,COVENTRY CITY COUNCIL,4/5/2022," £93,184.00 ",PUB,80131500,Lease and rental of property or building
"Ministry of Housing, Communities and Local Government",Homes England,RENT,Development,COVENTRY CITY COUNCIL,4/14/2022," £81,764.70 ",PUB,80131500,Lease and rental of property or building
"Ministry of Housing, Communities and Local Government",Homes England,REV GRNTS TO LOCAL AUTHORITIES,Investment,CAMBRIDGE CITY COUNCIL,4/1/2022," £61,785.00 ",PUB,None,Grants
"Ministry of Housing, Communities and Local Government",Homes England,REV GRNTS TO LOCAL AUTHORITIES,Investment,CAMBRIDGE CITY COUNCIL,4/1/2022," £61,785.00 ",PUB,None,Grants
"Ministry of Housing, Communities and Local Government",Homes England,REV GRNTS TO LOCAL AUTHORITIES,Investment,CAMBRIDGE CITY COUNCIL,4/5/2022," £1,815.00 ",PUB,None,Grants
"Ministry of Housing, Communities and Local Government",Homes England,REV GRNTS TO LOCAL AUTHORITIES,Investment,CAMBRIDGE CITY COUNCIL,4/5/2022," £55,607.00 ",PUB,None,Grants
"Ministry of Housing, Communities and Local Government",Homes England,REV GRNTS TO LOCAL AUTHORITIES,Investment,CAMBRIDGE CITY COUNCIL,4/5/2022," £1,890.00 ",PUB,None,Grants
"Ministry of Housing, Communities and Local Government",Homes England,REV GRNTS TO LOCAL AUTHORITIES,Investment,CAMBRIDGE CITY COUNCIL,4/5/2022, £435.00 ,PUB,None,Grants
"Ministry of Housing, Communities and Local Government",Homes England,REV GRNTS TO LOCAL AUTHORITIES,Investment,CAMBRIDGE CITY COUNCIL,4/5/2022, £345.00 ,PUB,None,Grants
"Ministry of Housing, Communities and Local Government",Homes England,REV GRNTS TO LOCAL AUTHORITIES,Investment,CAMBRIDGE CITY COUNCIL,4/5/2022," £1,170.00 ",PUB,None,Grants
"Ministry of Housing, Communities and Local Government",Homes England,REV GRNTS TO LOCAL AUTHORITIES,Investment,CAMBRIDGE CITY COUNCIL,4/6/2022," £61,785.00 ",PUB,None,Grants
"Ministry of Housing, Communities and Local Government",Homes England,PROPERTY SERVICES,Development,R D LANDSCAPES LTD,4/12/2022," £1,779.60 ",SMA,80131800,Real estate management services
"Ministry of Housing, Communities and Local Government",Homes England,PROPERTY SERVICES,Development,R D LANDSCAPES LTD,4/12/2022," £2,880.00 ",SMA,80131800,Real estate management services
"Ministry of Housing, Communities and Local Government",Homes England,PROPERTY SERVICES,Development,R D LANDSCAPES LTD,4/12/2022," £1,680.00 ",SMA,80131800,Real estate management services
"Ministry of Housing, Communities and Local Government",Homes England,REV GRNTS TO LOCAL AUTHORITIES,Investment,EXETER CITY COUNCIL,4/1/2022," £41,737.00 ",PUB,None,Grants
"Ministry of Housing, Communities and Local Government",Homes England,REV GRNTS TO LOCAL AUTHORITIES,Investment,EXETER CITY COUNCIL,4/1/2022," £37,564.00 ",PUB,None,Grants
"Ministry of Housing, Communities and Local Government",Homes England,REV GRNTS TO LOCAL AUTHORITIES,Investment,EXETER CITY COUNCIL,4/1/2022," £37,564.00 ",PUB,None,Grants
"Ministry of Housing, Communities and Local Government",Homes England,REV GRNTS TO LOCAL AUTHORITIES,Investment,EXETER CITY COUNCIL,4/5/2022," £8,407.00 ",PUB,None,Grants
"Ministry of Housing, Communities and Local Government",Homes England,REV GRNTS TO LOCAL AUTHORITIES,Investment,EXETER CITY COUNCIL,4/5/2022," £9,500.00 ",PUB,None,Grants
"Ministry of Housing, Communities and Local Government",Homes England,REV GRNTS TO LOCAL AUTHORITIES,Investment,EXETER CITY COUNCIL,4/5/2022," £41,737.00 ",PUB,None,Grants
"Ministry of Housing, Communities and Local Government",Homes England,REV GRNTS TO LOCAL AUTHORITIES,Investment,EXETER CITY COUNCIL,4/27/2022," £41,737.00 ",PUB,None,Grants
"Ministry of Housing, Communities and Local Government",Homes England,REV GRNTS TO LOCAL AUTHORITIES,Investment,EXETER CITY COUNCIL,4/29/2022," £37,564.00 ",PUB,None,Grants
"Ministry of Housing, Communities and Local Government",Homes England,REV GRNTS TO LOCAL AUTHORITIES,Investment,TEIGNBRIDGE DISTRICT COUNCIL,4/6/2022," £30,330.00 ",PUB,None,Grants
"Ministry of Housing, Communities and Local Government",Homes England,ESTATE GENERAL MAINTENANCE,Development,SIMON TRANTER LANDSCAPE CONTRACTORS,4/28/2022," £5,110.80 ",SMA,72101500,Building maintenance and repair services
"Ministry of Housing, Communities and Local Government",Homes England,PENSION SCHEME CONTRIBUTIONS,Corporate Allocations,LPFA,4/28/2022," £6,090.20 ",SMA,84131700,Pension funds
"Ministry of Housing, Communities and Local Government",Homes England,REV GRNTS TO LOCAL AUTHORITIES,Investment,EASTBOURNE BOROUGH COUNCIL,4/4/2022," £45,911.00 ",PUB,None,Grants
"Ministry of Housing, Communities and Local Government",Homes England,REV GRNTS TO LOCAL AUTHORITIES,Investment,EASTBOURNE BOROUGH COUNCIL,4/4/2022," £45,911.00 ",PUB,None,Grants
"Ministry of Housing, Communities and Local Government",Homes England,REV GRNTS TO LOCAL AUTHORITIES,Investment,EASTBOURNE BOROUGH COUNCIL,4/4/2022," £45,911.00 ",PUB,None,Grants
"Ministry of Housing, Communities and Local Government",Homes England,REV GRNTS TO LOCAL AUTHORITIES,Investment,EASTBOURNE BOROUGH COUNCIL,4/4/2022," £45,911.00 ",PUB,None,Grants
"Ministry of Housing, Communities and Local Government",Homes England,REV GRNTS TO LOCAL AUTHORITIES,Investment,EASTBOURNE BOROUGH COUNCIL,4/4/2022," £45,911.00 ",PUB,None,Grants
"Ministry of Housing, Communities and Local Government",Homes England,REV GRNTS TO LOCAL AUTHORITIES,Investment,EASTBOURNE BOROUGH COUNCIL,4/4/2022," £45,911.00 ",PUB,None,Grants
"Ministry of Housing, Communities and Local Government",Homes England,REV GRNTS TO LOCAL AUTHORITIES,Investment,EASTBOURNE BOROUGH COUNCIL,4/5/2022," £1,222.00 ",PUB,None,Grants
"Ministry of Housing, Communities and Local Government",Homes England,REV GRNTS TO LOCAL AUTHORITIES,Investment,EASTBOURNE BOROUGH COUNCIL,4/5/2022," £51,013.00 ",PUB,None,Grants
"Ministry of Housing, Communities and Local Government",Homes England,REV GRNTS TO LOCAL AUTHORITIES,Investment,EASTBOURNE BOROUGH COUNCIL,4/5/2022," £51,013.00 ",PUB,None,Grants
"Ministry of Housing, Communities and Local Government",Homes England,REV GRNTS TO LOCAL AUTHORITIES,Investment,EASTBOURNE BOROUGH COUNCIL,4/5/2022," £51,013.00 ",PUB,None,Grants
"Ministry of Housing, Communities and Local Government",Homes England,REV GRNTS TO LOCAL AUTHORITIES,Investment,EASTBOURNE BOROUGH COUNCIL,4/5/2022," £51,013.00 ",PUB,None,Grants
"Ministry of Housing, Communities and Local Government",Homes England,REV GRNTS TO LOCAL AUTHORITIES,Investment,EASTBOURNE BOROUGH COUNCIL,4/5/2022," £1,193.00 ",PUB,None,Grants
"Ministry of Housing, Communities and Local Government",Homes England,CAP GRNTS TO LOCAL AUTHORITIES,Investment,EASTBOURNE BOROUGH COUNCIL,4/5/2022," £705,000.00 ",PUB,None,Grants
"Ministry of Housing, Communities and Local Government",Homes England,REV GRNTS TO LOCAL AUTHORITIES,Investment,EASTBOURNE BOROUGH COUNCIL,4/5/2022," £1,222.00 ",PUB,None,Grants
"Ministry of Housing, Communities and Local Government",Homes England,REV GRNTS TO LOCAL AUTHORITIES,Investment,EASTBOURNE BOROUGH COUNCIL,4/5/2022," £51,013.00 ",PUB,None,Grants
"Ministry of Housing, Communities and Local Government",Homes England,REV GRNTS TO LOCAL AUTHORITIES,Investment,EASTBOURNE BOROUGH COUNCIL,4/5/2022," £51,013.00 ",PUB,None,Grants
"Ministry of Housing, Communities and Local Government",Homes England,REV GRNTS TO LOCAL AUTHORITIES,Investment,EASTBOURNE BOROUGH COUNCIL,4/7/2022," £3,150.00 ",PUB,None,Grants
"Ministry of Housing, Communities and Local Government",Homes England,REV GRNTS TO LOCAL AUTHORITIES,Investment,EASTBOURNE BOROUGH COUNCIL,4/7/2022," £3,150.00 ",PUB,None,Grants
"Ministry of Housing, Communities and Local Government",Homes England,REV GRNTS TO LOCAL AUTHORITIES,Investment,EASTBOURNE BOROUGH COUNCIL,4/6/2022," £5,101.00 ",PUB,None,Grants
"Ministry of Housing, Communities and Local Government",Homes England,REV GRNTS TO LOCAL AUTHORITIES,Investment,EASTBOURNE BOROUGH COUNCIL,4/7/2022," £3,150.00 ",PUB,None,Grants
"Ministry of Housing, Communities and Local Government",Homes England,REV GRNTS TO LOCAL AUTHORITIES,Investment,EASTBOURNE BOROUGH COUNCIL,4/7/2022," £96,924.00 ",PUB,None,Grants
"Ministry of Housing, Communities and Local Government",Homes England,REV GRNTS TO LOCAL AUTHORITIES,Investment,EASTBOURNE BOROUGH COUNCIL,4/6/2022," £5,101.00 ",PUB,None,Grants
"Ministry of Housing, Communities and Local Government",Homes England,REV GRNTS TO LOCAL AUTHORITIES,Investment,EASTBOURNE BOROUGH COUNCIL,4/6/2022," £5,101.00 ",PUB,None,Grants
"Ministry of Housing, Communities and Local Government",Homes England,REV GRNTS TO LOCAL AUTHORITIES,Investment,EASTBOURNE BOROUGH COUNCIL,4/6/2022," £5,101.00 ",PUB,None,Grants
"Ministry of Housing, Communities and Local Government",Homes England,REV GRNTS TO LOCAL AUTHORITIES,Investment,EASTBOURNE BOROUGH COUNCIL,4/7/2022," £5,101.00 ",PUB,None,Grants
"Ministry of Housing, Communities and Local Government",Homes England,REV GRNTS TO LOCAL AUTHORITIES,Investment,EASTBOURNE BOROUGH COUNCIL,4/7/2022," £5,101.00 ",PUB,None,Grants
"Ministry of Housing, Communities and Local Government",Homes England,REV GRNTS TO LOCAL AUTHORITIES,Investment,EASTBOURNE BOROUGH COUNCIL,4/7/2022," £3,150.00 ",PUB,None,Grants
"Ministry of Housing, Communities and Local Government",Homes England,REV GRNTS TO LOCAL AUTHORITIES,Investment,WEALDEN DISTRICT COUNCIL,4/6/2022," £43,993.00 ",PUB,None,Grants
"Ministry of Housing, Communities and Local Government",Homes England,REV GRNTS TO LOCAL AUTHORITIES,Investment,WEALDEN DISTRICT COUNCIL,4/7/2022," £48,882.00 ",PUB,None,Grants
"Ministry of Housing, Communities and Local Government",Homes England,CAP GRNTS TO LOCAL AUTHORITIES,Investment,EPPING FOREST DISTRICT COUNCIL,4/4/2022," £44,136.00 ",PUB,None,Grants
"Ministry of Housing, Communities and Local Government",Homes England,CAP GRNTS TO LOCAL AUTHORITIES,Investment,EPPING FOREST DISTRICT COUNCIL,4/6/2022," £64,181.00 ",PUB,None,Grants
"Ministry of Housing, Communities and Local Government",Homes England,ESTATE GENERAL MAINTENANCE,Development,IDVERDE LIMITED,4/14/2022," £1,160.19 ",LAR,72101500,Building maintenance and repair services
"Ministry of Housing, Communities and Local Government",Homes England,ESTATE GENERAL MAINTENANCE,Development,LOWTHER FORESTRY GROUP,4/7/2022," £1,312.69 ",SMA,72101500,Building maintenance and repair services
"Ministry of Housing, Communities and Local Government",Homes England,MANAGEMENT COSTS,Development,LOWTHER FORESTRY GROUP,4/7/2022," £1,177.74 ",SMA,80131800,Real estate management services
"Ministry of Housing, Communities and Local Government",Homes England,IRON MOUNTAIN-STORAGE,Corporate Resources,IRON MOUNTAIN (UK) LTD,4/11/2022," £5,398.37 ",LAR,78131800,Specialized warehousing and storage
"Ministry of Housing, Communities and Local Government",Homes England,REV GRNTS TO LOCAL AUTHORITIES,Investment,STEVENGE BOROUGH COUNCIL,4/7/2022," £48,450.00 ",PUB,None,Grants
"Ministry of Housing, Communities and Local Government",Homes England,REV GRNTS TO LOCAL AUTHORITIES,Investment,STEVENGE BOROUGH COUNCIL,4/6/2022," £2,550.00 ",PUB,None,Grants
"Ministry of Housing, Communities and Local Government",Homes England,REV GRNTS TO LOCAL AUTHORITIES,Investment,STEVENGE BOROUGH COUNCIL,4/27/2022," £48,450.00 ",PUB,None,Grants
"Ministry of Housing, Communities and Local Government",Homes England,REV GRNTS TO LOCAL AUTHORITIES,Investment,STEVENGE BOROUGH COUNCIL,4/27/2022," £48,450.00 ",PUB,None,Grants
"Ministry of Housing, Communities and Local Government",Homes England,REV GRNTS TO LOCAL AUTHORITIES,Investment,ASHFORD BOROUGH COUNCIL,4/5/2022," £38,212.00 ",PUB,None,Grants
"Ministry of Housing, Communities and Local Government",Homes England,REV GRNTS TO LOCAL AUTHORITIES,Investment,ASHFORD BOROUGH COUNCIL,4/5/2022," £38,212.00 ",PUB,None,Grants
"Ministry of Housing, Communities and Local Government",Homes England,REV GRNTS TO LOCAL AUTHORITIES,Investment,ASHFORD BOROUGH COUNCIL,4/5/2022," £38,212.00 ",PUB,None,Grants
"Ministry of Housing, Communities and Local Government",Homes England,REV GRNTS TO LOCAL AUTHORITIES,Investment,ASHFORD BOROUGH COUNCIL,4/6/2022," £33,497.00 ",PUB,None,Grants
"Ministry of Housing, Communities and Local Government",Homes England,REV GRNTS TO LOCAL AUTHORITIES,Investment,CANTERBURY CITY COUNCIL,4/7/2022," £3,308.00 ",PUB,None,Grants
"Ministry of Housing, Communities and Local Government",Homes England,REV GRNTS TO LOCAL AUTHORITIES,Investment,CANTERBURY CITY COUNCIL,4/7/2022," £3,309.00 ",PUB,None,Grants
"Ministry of Housing, Communities and Local Government",Homes England,REV GRNTS TO LOCAL AUTHORITIES,Investment,CANTERBURY CITY COUNCIL,4/6/2022," £62,867.00 ",PUB,None,Grants
"Ministry of Housing, Communities and Local Government",Homes England,REV GRNTS TO LOCAL AUTHORITIES,Investment,CANTERBURY CITY COUNCIL,4/6/2022," £62,859.00 ",PUB,None,Grants
"Ministry of Housing, Communities and Local Government",Homes England,REV GRNTS TO LOCAL AUTHORITIES,Investment,MAIDSTONE BOROUGH COUNCIL,4/7/2022," £17,144.00 ",PUB,None,Grants
"Ministry of Housing, Communities and Local Government",Homes England,REV GRNTS TO LOCAL AUTHORITIES,Investment,FOLKESTONE & HYTHE DISTRICT COUNCIL,4/1/2022," £2,274.00 ",PUB,None,Grants
"Ministry of Housing, Communities and Local Government",Homes England,REV GRNTS TO LOCAL AUTHORITIES,Investment,FOLKESTONE & HYTHE DISTRICT COUNCIL,4/1/2022," £2,274.00 ",PUB,None,Grants
"Ministry of Housing, Communities and Local Government",Homes England,REV GRNTS TO LOCAL AUTHORITIES,Investment,FOLKESTONE & HYTHE DISTRICT COUNCIL,4/1/2022," £2,274.00 ",PUB,None,Grants
"Ministry of Housing, Communities and Local Government",Homes England,CAP GRNTS TO LOCAL AUTHORITIES,Investment,WEST LANCASHIRE BOROUGH COUNCIL,4/5/2022," £262,500.00 ",PUB,None,Grants
"Ministry of Housing, Communities and Local Government",Homes England,ESTATE GENERAL MAINTENANCE,Development,PETERBOROUGH TREE SERVICES LTD,4/7/2022," £1,440.00 ",SMA,72101500,Building maintenance and repair services
"Ministry of Housing, Communities and Local Government",Homes England,ESTATE GENERAL MAINTENANCE,Development,FLETCHERS (TREES) LTD,4/29/2022," £1,266.00 ",MIC,72101500,Building maintenance and repair services
"Ministry of Housing, Communities and Local Government",Homes England,RATES,Development,CRAWLEY BOROUGH COUNCIL,4/4/2022," £14,595.75 ",PUB,80131500,Lease and rental of property or building
"Ministry of Housing, Communities and Local Government",Homes England,RATES,Development,CRAWLEY BOROUGH COUNCIL,4/13/2022, £438.75 ,PUB,80131500,Lease and rental of property or building
"Ministry of Housing, Communities and Local Government",Homes England,ESTATE GENERAL MAINTENANCE,Development,GROUND CONTROL LIMITED,4/11/2022, £501.59 ,LAR,72101500,Building maintenance and repair services
"Ministry of Housing, Communities and Local Government",Homes England,REV GRNTS TO LOCAL AUTHORITIES,Investment,CITY OF LINCOLN COUNCIL,4/1/2022," £2,450.00 ",PUB,None,Grants
"Ministry of Housing, Communities and Local Government",Homes England,REV GRNTS TO LOCAL AUTHORITIES,Investment,CITY OF LINCOLN COUNCIL,4/1/2022," £2,450.00 ",PUB,None,Grants
"Ministry of Housing, Communities and Local Government",Homes England,REV GRNTS TO LOCAL AUTHORITIES,Investment,CITY OF LINCOLN COUNCIL,4/5/2022," £9,749.00 ",PUB,None,Grants
"Ministry of Housing, Communities and Local Government",Homes England,CAP GRNTS TO LOCAL AUTHORITIES,Investment,NORTH KESTEVEN DISTRICT COUNCIL,4/7/2022," £80,158.00 ",PUB,None,Grants
"Ministry of Housing, Communities and Local Government",Homes England,CAP GRNTS TO LOCAL AUTHORITIES,Investment,NORTH KESTEVEN DISTRICT COUNCIL,4/7/2022," £283,711.00 ",PUB,None,Grants
"Ministry of Housing, Communities and Local Government",Homes England,CAP GRNTS TO LOCAL AUTHORITIES,Investment,NORTH KESTEVEN DISTRICT COUNCIL,4/7/2022," £111,165.00 ",PUB,None,Grants
"Ministry of Housing, Communities and Local Government",Homes England,REV GRNTS TO LOCAL AUTHORITIES,Investment,SOUTH HOLLAND DISTRICT COUNCIL,4/1/2022," £32,503.00 ",PUB,None,Grants
"Ministry of Housing, Communities and Local Government",Homes England,REV GRNTS TO LOCAL AUTHORITIES,Investment,SOUTH HOLLAND DISTRICT COUNCIL,4/4/2022," £32,502.00 ",PUB,None,Grants
"Ministry of Housing, Communities and Local Government",Homes England,REV GRNTS TO LOCAL AUTHORITIES,Investment,SOUTH HOLLAND DISTRICT COUNCIL,4/4/2022," £32,502.00 ",PUB,None,Grants
"Ministry of Housing, Communities and Local Government",Homes England,REV GRNTS TO LOCAL AUTHORITIES,Investment,SOUTH HOLLAND DISTRICT COUNCIL,4/4/2022," £32,503.00 ",PUB,None,Grants
"Ministry of Housing, Communities and Local Government",Homes England,REV GRNTS TO LOCAL AUTHORITIES,Investment,SOUTH HOLLAND DISTRICT COUNCIL,4/6/2022," £65,004.00 ",PUB,None,Grants
"Ministry of Housing, Communities and Local Government",Homes England,REV GRNTS TO LOCAL AUTHORITIES,Investment,GREAT YARMOUTH BOROUGH COUNCIL,4/5/2022," £31,463.00 ",PUB,None,Grants
"Ministry of Housing, Communities and Local Government",Homes England,REV GRNTS TO LOCAL AUTHORITIES,Investment,GREAT YARMOUTH BOROUGH COUNCIL,4/5/2022," £31,463.00 ",PUB,None,Grants
"Ministry of Housing, Communities and Local Government",Homes England,REV GRNTS TO LOCAL AUTHORITIES,Investment,GREAT YARMOUTH BOROUGH COUNCIL,4/5/2022," £31,463.00 ",PUB,None,Grants
"Ministry of Housing, Communities and Local Government",Homes England,REV GRNTS TO LOCAL AUTHORITIES,Investment,GREAT YARMOUTH BOROUGH COUNCIL,4/6/2022," £31,463.00 ",PUB,None,Grants
"Ministry of Housing, Communities and Local Government",Homes England,MANAGEMENT COSTS,Development,WEST NORTHAMPTONSHIRE COUNCIL,4/5/2022," £3,350.94 ",PUB,80131800,Real estate management services
"Ministry of Housing, Communities and Local Government",Homes England,BUILDINGS-VACANT RATES,Development,WEST NORTHAMPTONSHIRE COUNCIL,4/22/2022," £5,017.60 ",PUB,80131500,Lease and rental of property or building
"Ministry of Housing, Communities and Local Government",Homes England,BUILDINGS-VACANT RATES,Development,WEST NORTHAMPTONSHIRE COUNCIL,4/22/2022," £5,632.00 ",PUB,80131500,Lease and rental of property or building
"Ministry of Housing, Communities and Local Government",Homes England,BUILDINGS-VACANT RATES,Development,WEST NORTHAMPTONSHIRE COUNCIL,4/22/2022," £7,168.00 ",PUB,80131500,Lease and rental of property or building
"Ministry of Housing, Communities and Local Government",Homes England,BUILDINGS-VACANT RATES,Development,WEST NORTHAMPTONSHIRE COUNCIL,4/22/2022," £4,864.00 ",PUB,80131500,Lease and rental of property or building
"Ministry of Housing, Communities and Local Government",Homes England,CAP GRNTS TO LOCAL AUTHORITIES,Investment,CRAVEN DISTRICT COUNCIL,4/7/2022," £22,500.00 ",PUB,None,Grants
"Ministry of Housing, Communities and Local Government",Homes England,CAP GRNTS TO LOCAL AUTHORITIES,Investment,RYEDALE DISTRICT COUNCIL,4/1/2022," £97,020.00 ",PUB,None,Grants
"Ministry of Housing, Communities and Local Government",Homes England,CAP GRNTS TO LOCAL AUTHORITIES,Investment,SELBY DISTRICT COUNCIL,4/1/2022," £9,750.00 ",PUB,None,Grants
"Ministry of Housing, Communities and Local Government",Homes England,CAP GRNTS TO LOCAL AUTHORITIES,Investment,SELBY DISTRICT COUNCIL,4/7/2022," £9,750.00 ",PUB,None,Grants
"Ministry of Housing, Communities and Local Government",Homes England,CAP GRNTS TO LOCAL AUTHORITIES,Investment,SELBY DISTRICT COUNCIL,4/6/2022," £9,750.00 ",PUB,None,Grants
"Ministry of Housing, Communities and Local Government",Homes England,CAP GRNTS TO LOCAL AUTHORITIES,Investment,ASHFIELD DISTRICT COUNCIL,4/1/2022," £320,000.00 ",PUB,None,Grants
"Ministry of Housing, Communities and Local Government",Homes England,CAP GRNTS TO LOCAL AUTHORITIES,Investment,ASHFIELD DISTRICT COUNCIL,4/7/2022," £280,000.00 ",PUB,None,Grants
"Ministry of Housing, Communities and Local Government",Homes England,CAP GRNTS TO LOCAL AUTHORITIES,Investment,ASHFIELD DISTRICT COUNCIL,4/7/2022," £50,000.00 ",PUB,None,Grants
"Ministry of Housing, Communities and Local Government",Homes England,REV GRNTS TO LOCAL AUTHORITIES,Investment,BASSETLAW DISTRICT COUNCIL,4/1/2022," £8,104.00 ",PUB,None,Grants
"Ministry of Housing, Communities and Local Government",Homes England,REV GRNTS TO LOCAL AUTHORITIES,Investment,NEWARK AND SHERWOOD DISTRICT COUNCIL,4/7/2022," £7,380.00 ",PUB,None,Grants
"Ministry of Housing, Communities and Local Government",Homes England,REV GRNTS TO LOCAL AUTHORITIES,Investment,OXFORD CITY COUNCIL,4/4/2022," £38,250.00 ",PUB,None,Grants
"Ministry of Housing, Communities and Local Government",Homes England,REV GRNTS TO LOCAL AUTHORITIES,Investment,OXFORD CITY COUNCIL,4/4/2022," £38,250.00 ",PUB,None,Grants
"Ministry of Housing, Communities and Local Government",Homes England,REV GRNTS TO LOCAL AUTHORITIES,Investment,OXFORD CITY COUNCIL,4/4/2022," £38,250.00 ",PUB,None,Grants
"Ministry of Housing, Communities and Local Government",Homes England,REV GRNTS TO LOCAL AUTHORITIES,Investment,OXFORD CITY COUNCIL,4/4/2022," £38,250.00 ",PUB,None,Grants
"Ministry of Housing, Communities and Local Government",Homes England,REV GRNTS TO LOCAL AUTHORITIES,Investment,OXFORD CITY COUNCIL,4/4/2022," £38,250.00 ",PUB,None,Grants
"Ministry of Housing, Communities and Local Government",Homes England,REV GRNTS TO LOCAL AUTHORITIES,Investment,OXFORD CITY COUNCIL,4/4/2022," £38,250.00 ",PUB,None,Grants
"Ministry of Housing, Communities and Local Government",Homes England,REV GRNTS TO LOCAL AUTHORITIES,Investment,OXFORD CITY COUNCIL,4/4/2022," £38,250.00 ",PUB,None,Grants
"Ministry of Housing, Communities and Local Government",Homes England,REV GRNTS TO LOCAL AUTHORITIES,Investment,OXFORD CITY COUNCIL,4/4/2022," £38,250.00 ",PUB,None,Grants
"Ministry of Housing, Communities and Local Government",Homes England,REV GRNTS TO LOCAL AUTHORITIES,Investment,OXFORD CITY COUNCIL,4/4/2022," £38,250.00 ",PUB,None,Grants
"Ministry of Housing, Communities and Local Government",Homes England,REV GRNTS TO LOCAL AUTHORITIES,Investment,OXFORD CITY COUNCIL,4/5/2022," £42,500.00 ",PUB,None,Grants
"Ministry of Housing, Communities and Local Government",Homes England,REV GRNTS TO LOCAL AUTHORITIES,Investment,OXFORD CITY COUNCIL,4/5/2022," £42,500.00 ",PUB,None,Grants
"Ministry of Housing, Communities and Local Government",Homes England,REV GRNTS TO LOCAL AUTHORITIES,Investment,OXFORD CITY COUNCIL,4/5/2022," £42,500.00 ",PUB,None,Grants
"Ministry of Housing, Communities and Local Government",Homes England,REV GRNTS TO LOCAL AUTHORITIES,Investment,OXFORD CITY COUNCIL,4/5/2022," £42,500.00 ",PUB,None,Grants
"Ministry of Housing, Communities and Local Government",Homes England,REV GRNTS TO LOCAL AUTHORITIES,Investment,OXFORD CITY COUNCIL,4/5/2022," £42,500.00 ",PUB,None,Grants
"Ministry of Housing, Communities and Local Government",Homes England,REV GRNTS TO LOCAL AUTHORITIES,Investment,OXFORD CITY COUNCIL,4/5/2022," £38,250.00 ",PUB,None,Grants
"Ministry of Housing, Communities and Local Government",Homes England,REV GRNTS TO LOCAL AUTHORITIES,Investment,OXFORD CITY COUNCIL,4/5/2022," £42,500.00 ",PUB,None,Grants
"Ministry of Housing, Communities and Local Government",Homes England,REV GRNTS TO LOCAL AUTHORITIES,Investment,OXFORD CITY COUNCIL,4/5/2022," £42,500.00 ",PUB,None,Grants
"Ministry of Housing, Communities and Local Government",Homes England,REV GRNTS TO LOCAL AUTHORITIES,Investment,OXFORD CITY COUNCIL,4/5/2022," £42,500.00 ",PUB,None,Grants
"Ministry of Housing, Communities and Local Government",Homes England,REV GRNTS TO LOCAL AUTHORITIES,Investment,OXFORD CITY COUNCIL,4/5/2022," £42,500.00 ",PUB,None,Grants
"Ministry of Housing, Communities and Local Government",Homes England,REV GRNTS TO LOCAL AUTHORITIES,Investment,OXFORD CITY COUNCIL,4/6/2022," £42,500.00 ",PUB,None,Grants
"Ministry of Housing, Communities and Local Government",Homes England,CAP GRNTS TO LOCAL AUTHORITIES,Investment,CORNWALL COUNCIL,4/27/2022," £65,985.24 ",PUB,None,Grants
"Ministry of Housing, Communities and Local Government",Homes England,CAP GRNTS TO LOCAL AUTHORITIES,Investment,MEDWAY COUNCIL,4/8/2022," £1,658,507.06 ",PUB,None,Grants
"Ministry of Housing, Communities and Local Government",Homes England,CAP GRNTS TO LOCAL AUTHORITIES,Investment,DEVON COUNTY COUNCIL,4/1/2022," £2,097,241.75 ",PUB,None,Grants
"Ministry of Housing, Communities and Local Government",Homes England,CAP GRNTS TO LOCAL AUTHORITIES,Investment,DEVON COUNTY COUNCIL,4/27/2022," £204,182.65 ",PUB,None,Grants
"Ministry of Housing, Communities and Local Government",Homes England,ENGINEERING FEES,Development,HAMPSHIRE COUNTY COUNCIL,4/27/2022," £6,622.00 ",PUB,81101500,Civil Engineering
"Ministry of Housing, Communities and Local Government",Homes England,CAP GRNTS TO LOCAL AUTHORITIES,Investment,STOKE ON TRENT CITY COUNCIL,4/1/2022," £906,516.00 ",PUB,None,Grants
"Ministry of Housing, Communities and Local Government",Homes England,CAP GRNTS TO LOCAL AUTHORITIES,Investment,STOKE ON TRENT CITY COUNCIL,4/1/2022," £1,860,246.00 ",PUB,None,Grants
"Ministry of Housing, Communities and Local Government",Homes England,CAP GRNTS TO LOCAL AUTHORITIES,Investment,SEDGEMOOR DISTRICT COUNCIL,4/13/2022," £1,544,250.00 ",PUB,None,Grants
"Ministry of Housing, Communities and Local Government",Homes England,REV GRNTS TO LOCAL AUTHORITIES,Investment,GUILDFORD BOROUGH COUNCIL,4/7/2022," £7,717.00 ",PUB,None,Grants
"Ministry of Housing, Communities and Local Government",Homes England,REV GRNTS TO LOCAL AUTHORITIES,Investment,GUILDFORD BOROUGH COUNCIL,4/7/2022," £9,647.00 ",PUB,None,Grants
"Ministry of Housing, Communities and Local Government",Homes England,REV GRNTS TO LOCAL AUTHORITIES,Investment,RUNNYMEDE BOROUGH COUNCIL,4/1/2022," £33,750.00 ",PUB,None,Grants
"Ministry of Housing, Communities and Local Government",Homes England,REV GRNTS TO LOCAL AUTHORITIES,Investment,RUNNYMEDE BOROUGH COUNCIL,4/1/2022," £33,750.00 ",PUB,None,Grants
"Ministry of Housing, Communities and Local Government",Homes England,REV GRNTS TO LOCAL AUTHORITIES,Investment,RUNNYMEDE BOROUGH COUNCIL,4/1/2022," £33,750.00 ",PUB,None,Grants
"Ministry of Housing, Communities and Local Government",Homes England,REV GRNTS TO LOCAL AUTHORITIES,Investment,RUNNYMEDE BOROUGH COUNCIL,4/4/2022," £37,500.00 ",PUB,None,Grants
"Ministry of Housing, Communities and Local Government",Homes England,REV GRNTS TO LOCAL AUTHORITIES,Investment,RUNNYMEDE BOROUGH COUNCIL,4/4/2022," £37,500.00 ",PUB,None,Grants
"Ministry of Housing, Communities and Local Government",Homes England,REV GRNTS TO LOCAL AUTHORITIES,Investment,RUNNYMEDE BOROUGH COUNCIL,4/4/2022," £37,500.00 ",PUB,None,Grants
"Ministry of Housing, Communities and Local Government",Homes England,REV GRNTS TO LOCAL AUTHORITIES,Investment,WOKING BOROUGH COUNCIL,4/4/2022," £34,065.00 ",PUB,None,Grants
"Ministry of Housing, Communities and Local Government",Homes England,REV GRNTS TO LOCAL AUTHORITIES,Investment,WOKING BOROUGH COUNCIL,4/5/2022," £34,065.00 ",PUB,None,Grants
"Ministry of Housing, Communities and Local Government",Homes England,REV GRNTS TO LOCAL AUTHORITIES,Investment,WOKING BOROUGH COUNCIL,4/5/2022," £37,850.00 ",PUB,None,Grants
"Ministry of Housing, Communities and Local Government",Homes England,REV GRNTS TO LOCAL AUTHORITIES,Investment,WOKING BOROUGH COUNCIL,4/6/2022," £37,850.00 ",PUB,None,Grants
"Ministry of Housing, Communities and Local Government",Homes England,CAPITAL GRANTS TO RPs,Investment,FIRST CHOICE HOMES OLDHAM LIMITED,4/5/2022," £9,000.00 ",LAR,None,Grants
"Ministry of Housing, Communities and Local Government",Homes England,CAPITAL GRANTS TO RPs,Investment,GLOUCESTER CITY HOMES,4/4/2022," £218,500.00 ",MED,None,Grants
"Ministry of Housing, Communities and Local Government",Homes England,CAPITAL GRANTS TO RPs,Investment,GLOUCESTER CITY HOMES,4/7/2022," £1,256,250.00 ",MED,None,Grants
"Ministry of Housing, Communities and Local Government",Homes England,CAPITAL GRANTS TO RPs,Investment,HEART OF MEDWAY HOUSING ASSOCIATION LTD,4/4/2022," £513,000.00 ",LAR,None,Grants
"Ministry of Housing, Communities and Local Government",Homes England,CAPITAL GRANTS TO RPs,Investment,HEART OF MEDWAY HOUSING ASSOCIATION LTD,4/6/2022," £180,500.00 ",LAR,None,Grants
"Ministry of Housing, Communities and Local Government",Homes England,CAPITAL GRANTS TO RPs,Investment,SAGE HOUSING LIMITED,4/5/2022," £80,000.00 ",MED,None,Grants
"Ministry of Housing, Communities and Local Government",Homes England,CAPITAL GRANTS TO RPs,Investment,SAGE HOUSING LIMITED,4/5/2022," £90,000.00 ",MED,None,Grants
"Ministry of Housing, Communities and Local Government",Homes England,CAPITAL GRANTS TO RPs,Investment,SAGE HOUSING LIMITED,4/6/2022," £118,500.00 ",MED,None,Grants
"Ministry of Housing, Communities and Local Government",Homes England,CAPITAL GRANTS TO RPs,Investment,SAGE HOUSING LIMITED,4/8/2022," £80,000.00 ",MED,None,Grants
"Ministry of Housing, Communities and Local Government",Homes England,CAPITAL GRANTS TO RPs,Investment,YMCA BLACKBURN,4/4/2022," £722,500.00 ",LAR,None,Grants
"Ministry of Housing, Communities and Local Government",Homes England,CAPITAL GRANTS TO RPs,Investment,YMCA BLACKBURN,4/4/2022," £57,500.00 ",LAR,None,Grants
"Ministry of Housing, Communities and Local Government",Homes England,CAPITAL GRANTS TO RPs,Investment,YMCA DOWNSLINK GROUP,4/1/2022," £71,487.00 ",LAR,None,Grants
"Ministry of Housing, Communities and Local Government",Homes England,REVENUE GRANTS TO RPs,Investment,YMCA DOWNSLINK GROUP,4/5/2022," £1,400.00 ",LAR,None,Grants
"Ministry of Housing, Communities and Local Government",Homes England,REVENUE GRANTS TO RPs,Investment,YMCA DOWNSLINK GROUP,4/5/2022, £350.00 ,LAR,None,Grants
"Ministry of Housing, Communities and Local Government",Homes England,CAPITAL GRANTS TO RPs,Investment,YMCA DOWNSLINK GROUP,4/5/2022," £27,695.00 ",LAR,None,Grants
"Ministry of Housing, Communities and Local Government",Homes England,REVENUE GRANTS TO RPs,Investment,YMCA DOWNSLINK GROUP,4/5/2022, £700.00 ,LAR,None,Grants
"Ministry of Housing, Communities and Local Government",Homes England,REVENUE GRANTS TO RPs,Investment,YMCA DOWNSLINK GROUP,4/5/2022," £2,450.00 ",LAR,None,Grants
"Ministry of Housing, Communities and Local Government",Homes England,CAPITAL GRANTS TO RPs,Investment,YMCA DOWNSLINK GROUP,4/5/2022," £23,829.00 ",LAR,None,Grants
"Ministry of Housing, Communities and Local Government",Homes England,CAPITAL GRANTS TO RPs,Investment,KEELMAN HOMES,4/1/2022," £8,750.00 ",LAR,None,Grants
"Ministry of Housing, Communities and Local Government",Homes England,CAPITAL GRANTS TO RPs,Investment,KEELMAN HOMES,4/1/2022," £8,750.00 ",LAR,None,Grants
"Ministry of Housing, Communities and Local Government",Homes England,CAPITAL GRANTS TO RPs,Investment,KEELMAN HOMES,4/7/2022," £7,500.00 ",LAR,None,Grants
"Ministry of Housing, Communities and Local Government",Homes England,CAPITAL GRANTS TO RPs,Investment,REGENDA LIMITED,4/4/2022," £191,100.00 ",LAR,None,Grants
"Ministry of Housing, Communities and Local Government",Homes England,CAPITAL GRANTS TO RPs,Investment,REGENDA LIMITED,4/28/2022," £9,000.00 ",LAR,None,Grants
"Ministry of Housing, Communities and Local Government",Homes England,CAPITAL GRANTS TO RPs,Investment,REGENDA LIMITED,4/28/2022," £9,000.00 ",LAR,None,Grants
"Ministry of Housing, Communities and Local Government",Homes England,CAPITAL GRANTS TO RPs,Investment,REGENDA LIMITED,4/28/2022," £9,000.00 ",LAR,None,Grants
"Ministry of Housing, Communities and Local Government",Homes England,REV GRNTS TO LOCAL AUTHORITIES,Investment,ACTION HOUSING AND SUPPORT,4/4/2022," £26,238.00 ",MED,None,Grants
"Ministry of Housing, Communities and Local Government",Homes England,REV GRNTS TO LOCAL AUTHORITIES,Investment,ACTION HOUSING AND SUPPORT,4/5/2022," £10,753.00 ",MED,None,Grants
"Ministry of Housing, Communities and Local Government",Homes England,REV GRNTS TO LOCAL AUTHORITIES,Investment,ACTION HOUSING AND SUPPORT,4/5/2022," £11,847.00 ",MED,None,Grants
"Ministry of Housing, Communities and Local Government",Homes England,REV GRNTS TO LOCAL AUTHORITIES,Investment,ACTION HOUSING AND SUPPORT,4/5/2022," £29,154.00 ",MED,None,Grants
"Ministry of Housing, Communities and Local Government",Homes England,REV GRNTS TO LOCAL AUTHORITIES,Investment,ACTION HOUSING AND SUPPORT,4/6/2022," £2,894.00 ",MED,None,Grants
"Ministry of Housing, Communities and Local Government",Homes England,REV GRNTS TO LOCAL AUTHORITIES,Investment,ACTION HOUSING AND SUPPORT,4/7/2022," £1,641.00 ",MED,None,Grants
"Ministry of Housing, Communities and Local Government",Homes England,REV GRNTS TO LOCAL AUTHORITIES,Investment,ACTION HOUSING AND SUPPORT,4/7/2022," £1,641.00 ",MED,None,Grants
"Ministry of Housing, Communities and Local Government",Homes England,REV GRNTS TO LOCAL AUTHORITIES,Investment,ACTION HOUSING AND SUPPORT,4/7/2022," £1,641.00 ",MED,None,Grants
"Ministry of Housing, Communities and Local Government",Homes England,REV GRNTS TO LOCAL AUTHORITIES,Investment,ACTION HOUSING AND SUPPORT,4/6/2022," £2,915.00 ",MED,None,Grants
"Ministry of Housing, Communities and Local Government",Homes England,REV GRNTS TO LOCAL AUTHORITIES,Investment,ACTION HOUSING AND SUPPORT,4/7/2022," £1,641.00 ",MED,None,Grants
"Ministry of Housing, Communities and Local Government",Homes England,REV GRNTS TO LOCAL AUTHORITIES,Investment,ACTION HOUSING AND SUPPORT,4/7/2022," £1,641.00 ",MED,None,Grants
"Ministry of Housing, Communities and Local Government",Homes England,CAPITAL GRANTS TO RPs,Investment,HUMANKIND CHARITY,4/1/2022," £10,086.00 ",LAR,None,Grants
"Ministry of Housing, Communities and Local Government",Homes England,CAPITAL GRANTS TO RPs,Investment,HUMANKIND CHARITY,4/6/2022," £12,111.00 ",LAR,None,Grants
"Ministry of Housing, Communities and Local Government",Homes England,CAPITAL GRANTS TO RPs,Investment,HUMANKIND CHARITY,4/6/2022," £12,126.00 ",LAR,None,Grants
"Ministry of Housing, Communities and Local Government",Homes England,REV GRNTS TO LOCAL AUTHORITIES,Investment,KEYSTAGE PROPERTIES LIMITED,4/4/2022," £31,024.00 ",MIC,None,Grants
"Ministry of Housing, Communities and Local Government",Homes England,REV GRNTS TO LOCAL AUTHORITIES,Investment,KEYSTAGE PROPERTIES LIMITED,4/4/2022," £3,102.00 ",MIC,None,Grants
"Ministry of Housing, Communities and Local Government",Homes England,REV GRNTS TO LOCAL AUTHORITIES,Investment,KEYSTAGE PROPERTIES LIMITED,4/5/2022," £2,704.00 ",MIC,None,Grants
"Ministry of Housing, Communities and Local Government",Homes England,CAPITAL GRANTS TO RPs,Investment,THE GUINNESS PARTNERSHIP LIMITED,4/1/2022," £9,000.00 ",LAR,None,Grants
"Ministry of Housing, Communities and Local Government",Homes England,CAPITAL GRANTS TO RPs,Investment,THE GUINNESS PARTNERSHIP LIMITED,4/1/2022," £10,000.00 ",LAR,None,Grants
"Ministry of Housing, Communities and Local Government",Homes England,CAPITAL GRANTS TO RPs,Investment,THE GUINNESS PARTNERSHIP LIMITED,4/1/2022," £78,358.00 ",LAR,None,Grants
"Ministry of Housing, Communities and Local Government",Homes England,CAPITAL GRANTS TO RPs,Investment,THE GUINNESS PARTNERSHIP LIMITED,4/1/2022," £9,000.00 ",LAR,None,Grants
"Ministry of Housing, Communities and Local Government",Homes England,CAPITAL GRANTS TO RPs,Investment,J & M RESIDENTIAL LETTINGS LIMITED,4/7/2022," £15,008.00 ",SMA,None,Grants
"Ministry of Housing, Communities and Local Government",Homes England,CAPITAL GRANTS TO RPs,Investment,J & M RESIDENTIAL LETTINGS LIMITED,4/19/2022," £13,132.00 ",SMA,None,Grants
"Ministry of Housing, Communities and Local Government",Homes England,REV GRNTS TO LOCAL AUTHORITIES,Investment,EMH HOUSING & REGENERATION LTD,4/6/2022," £28,157.00 ",MED,None,Grants
"Ministry of Housing, Communities and Local Government",Homes England,REV GRNTS TO LOCAL AUTHORITIES,Investment,EMH HOUSING & REGENERATION LTD,4/7/2022," £31,285.00 ",MED,None,Grants
"Ministry of Housing, Communities and Local Government",Homes England,REV GRNTS TO LOCAL AUTHORITIES,Investment,EMH HOUSING & REGENERATION LTD,4/7/2022," £28,157.00 ",MED,None,Grants
"Ministry of Housing, Communities and Local Government",Homes England,REV GRNTS TO LOCAL AUTHORITIES,Investment,EMH HOUSING & REGENERATION LTD,4/6/2022," £28,157.00 ",MED,None,Grants
"Ministry of Housing, Communities and Local Government",Homes England,CAPITAL GRANTS TO RPs,Investment,PLATFORM HOUSING GROUP LIMITED,4/1/2022," £31,500.00 ",LAR,None,Grants
"Ministry of Housing, Communities and Local Government",Homes England,CAPITAL GRANTS TO RPs,Investment,PLATFORM HOUSING GROUP LIMITED,4/1/2022," £7,000.00 ",LAR,None,Grants
"Ministry of Housing, Communities and Local Government",Homes England,CAPITAL GRANTS TO RPs,Investment,PLATFORM HOUSING GROUP LIMITED,4/5/2022," £26,350.00 ",LAR,None,Grants
"Ministry of Housing, Communities and Local Government",Homes England,CAPITAL GRANTS TO RPs,Investment,PLATFORM HOUSING GROUP LIMITED,4/5/2022," £7,750.00 ",LAR,None,Grants
"Ministry of Housing, Communities and Local Government",Homes England,CAPITAL GRANTS TO RPs,Investment,PLATFORM HOUSING GROUP LIMITED,4/6/2022," £3,500.00 ",LAR,None,Grants
"Ministry of Housing, Communities and Local Government",Homes England,REV GRNTS TO LOCAL AUTHORITIES,Investment,HAVEN FIRST,4/1/2022," £2,767.00 ",MED,None,Grants
"Ministry of Housing, Communities and Local Government",Homes England,REV GRNTS TO LOCAL AUTHORITIES,Investment,HAVEN FIRST,4/4/2022," £1,668.00 ",MED,None,Grants
"Ministry of Housing, Communities and Local Government",Homes England,REV GRNTS TO LOCAL AUTHORITIES,Investment,HAVEN FIRST,4/4/2022," £1,668.00 ",MED,None,Grants
"Ministry of Housing, Communities and Local Government",Homes England,CAPITAL GRANTS TO RPs,Investment,DEVON AND CORNWALL HOUSING LIMITED,4/1/2022," £70,000.00 ",LAR,None,Grants
"Ministry of Housing, Communities and Local Government",Homes England,CAPITAL GRANTS TO RPs,Investment,SOVEREIGN HOUSING ASSOCIATION LTD,4/7/2022," £333,900.00 ",LAR,None,Grants
"Ministry of Housing, Communities and Local Government",Homes England,REV GRNTS TO LOCAL AUTHORITIES,Investment,VIVID HOUSING LTD,4/4/2022," £35,000.00 ",LAR,None,Grants
"Ministry of Housing, Communities and Local Government",Homes England,REV GRNTS TO LOCAL AUTHORITIES,Investment,VIVID HOUSING LTD,4/4/2022," £47,000.00 ",LAR,None,Grants
"Ministry of Housing, Communities and Local Government",Homes England,REV GRNTS TO LOCAL AUTHORITIES,Investment,VIVID HOUSING LTD,4/5/2022," £31,500.00 ",LAR,None,Grants
"Ministry of Housing, Communities and Local Government",Homes England,REV GRNTS TO LOCAL AUTHORITIES,Investment,VIVID HOUSING LTD,4/5/2022," £42,300.00 ",LAR,None,Grants
"Ministry of Housing, Communities and Local Government",Homes England,REV GRNTS TO LOCAL AUTHORITIES,Investment,VIVID HOUSING LTD,4/6/2022," £35,000.00 ",LAR,None,Grants
"Ministry of Housing, Communities and Local Government",Homes England,REV GRNTS TO LOCAL AUTHORITIES,Investment,VIVID HOUSING LTD,4/7/2022," £42,300.00 ",LAR,None,Grants
"Ministry of Housing, Communities and Local Government",Homes England,REV GRNTS TO LOCAL AUTHORITIES,Investment,VIVID HOUSING LTD,4/6/2022," £42,300.00 ",LAR,None,Grants
"Ministry of Housing, Communities and Local Government",Homes England,REV GRNTS TO LOCAL AUTHORITIES,Investment,VIVID HOUSING LTD,4/7/2022," £47,000.00 ",LAR,None,Grants
"Ministry of Housing, Communities and Local Government",Homes England,REV GRNTS TO LOCAL AUTHORITIES,Investment,VIVID HOUSING LTD,4/6/2022," £47,000.00 ",LAR,None,Grants
"Ministry of Housing, Communities and Local Government",Homes England,REV GRNTS TO LOCAL AUTHORITIES,Investment,VIVID HOUSING LTD,4/11/2022," £47,000.00 ",LAR,None,Grants
"Ministry of Housing, Communities and Local Government",Homes England,REV GRNTS TO LOCAL AUTHORITIES,Investment,VIVID HOUSING LTD,4/11/2022," £42,300.00 ",LAR,None,Grants
"Ministry of Housing, Communities and Local Government",Homes England,REV GRNTS TO LOCAL AUTHORITIES,Investment,VIVID HOUSING LTD,4/22/2022," £47,000.00 ",LAR,None,Grants
"Ministry of Housing, Communities and Local Government",Homes England,REV GRNTS TO LOCAL AUTHORITIES,Investment,P3 HOUSING LTD,4/1/2022, £973.00 ,LAR,None,Grants
"Ministry of Housing, Communities and Local Government",Homes England,REV GRNTS TO LOCAL AUTHORITIES,Investment,PEABODY TRUST,4/6/2022," £190,000.00 ",LAR,None,Grants
"Ministry of Housing, Communities and Local Government",Homes England,REV GRNTS TO LOCAL AUTHORITIES,Investment,PEABODY TRUST,4/6/2022," £46,987.00 ",LAR,None,Grants
"Ministry of Housing, Communities and Local Government",Homes England,REV GRNTS TO LOCAL AUTHORITIES,Investment,PEABODY TRUST,4/7/2022," £2,473.00 ",LAR,None,Grants
"Ministry of Housing, Communities and Local Government",Homes England,CAPITAL GRANTS TO RPs,Investment,GRAND UNION HOUSING GROUP LIMITED,4/1/2022," £641,250.00 ",LAR,None,Grants
"Ministry of Housing, Communities and Local Government",Homes England,CAPITAL GRANTS TO RPs,Investment,LEGAL & GENERAL AFFORDABLE HOMES LTD,4/7/2022," £360,000.00 ",LAR,None,Grants
"Ministry of Housing, Communities and Local Government",Homes England,REV GRNTS TO LOCAL AUTHORITIES,Investment,TORUS62 LIMITED,4/1/2022," £14,963.00 ",LAR,None,Grants
"Ministry of Housing, Communities and Local Government",Homes England,REV GRNTS TO LOCAL AUTHORITIES,Investment,TORUS62 LIMITED,4/1/2022," £14,963.00 ",LAR,None,Grants
"Ministry of Housing, Communities and Local Government",Homes England,REV GRNTS TO LOCAL AUTHORITIES,Investment,TORUS62 LIMITED,4/1/2022, £787.00 ,LAR,None,Grants
"Ministry of Housing, Communities and Local Government",Homes England,REV GRNTS TO LOCAL AUTHORITIES,Investment,TORUS62 LIMITED,4/1/2022," £14,963.00 ",LAR,None,Grants
"Ministry of Housing, Communities and Local Government",Homes England,REV GRNTS TO LOCAL AUTHORITIES,Investment,TORUS62 LIMITED,4/1/2022," £14,963.00 ",LAR,None,Grants
"Ministry of Housing, Communities and Local Government",Homes England,REV GRNTS TO LOCAL AUTHORITIES,Investment,TORUS62 LIMITED,4/1/2022, £787.00 ,LAR,None,Grants
"Ministry of Housing, Communities and Local Government",Homes England,REV GRNTS TO LOCAL AUTHORITIES,Investment,TORUS62 LIMITED,4/1/2022," £14,963.00 ",LAR,None,Grants
"Ministry of Housing, Communities and Local Government",Homes England,REV GRNTS TO LOCAL AUTHORITIES,Investment,TORUS62 LIMITED,4/1/2022," £14,963.00 ",LAR,None,Grants
"Ministry of Housing, Communities and Local Government",Homes England,REV GRNTS TO LOCAL AUTHORITIES,Investment,TORUS62 LIMITED,4/1/2022," £14,963.00 ",LAR,None,Grants
"Ministry of Housing, Communities and Local Government",Homes England,REV GRNTS TO LOCAL AUTHORITIES,Investment,TORUS62 LIMITED,4/1/2022," £14,963.00 ",LAR,None,Grants
"Ministry of Housing, Communities and Local Government",Homes England,REV GRNTS TO LOCAL AUTHORITIES,Investment,TORUS62 LIMITED,4/4/2022, £787.00 ,LAR,None,Grants
"Ministry of Housing, Communities and Local Government",Homes England,REV GRNTS TO LOCAL AUTHORITIES,Investment,TORUS62 LIMITED,4/4/2022, £787.00 ,LAR,None,Grants
"Ministry of Housing, Communities and Local Government",Homes England,REV GRNTS TO LOCAL AUTHORITIES,Investment,TORUS62 LIMITED,4/4/2022, £787.00 ,LAR,None,Grants
"Ministry of Housing, Communities and Local Government",Homes England,REV GRNTS TO LOCAL AUTHORITIES,Investment,TORUS62 LIMITED,4/4/2022, £787.00 ,LAR,None,Grants
"Ministry of Housing, Communities and Local Government",Homes England,REV GRNTS TO LOCAL AUTHORITIES,Investment,TORUS62 LIMITED,4/4/2022, £787.00 ,LAR,None,Grants
"Ministry of Housing, Communities and Local Government",Homes England,REV GRNTS TO LOCAL AUTHORITIES,Investment,TORUS62 LIMITED,4/4/2022, £787.00 ,LAR,None,Grants
"Ministry of Housing, Communities and Local Government",Homes England,REV GRNTS TO LOCAL AUTHORITIES,Investment,TORUS62 LIMITED,4/4/2022, £787.00 ,LAR,None,Grants
"Ministry of Housing, Communities and Local Government",Homes England,REV GRNTS TO LOCAL AUTHORITIES,Investment,TORUS62 LIMITED,4/4/2022, £787.00 ,LAR,None,Grants
"Ministry of Housing, Communities and Local Government",Homes England,REV GRNTS TO LOCAL AUTHORITIES,Investment,TORUS62 LIMITED,4/6/2022," £1,182.00 ",LAR,None,Grants
"Ministry of Housing, Communities and Local Government",Homes England,REV GRNTS TO LOCAL AUTHORITIES,Investment,TORUS62 LIMITED,4/6/2022," £1,182.00 ",LAR,None,Grants
"Ministry of Housing, Communities and Local Government",Homes England,REV GRNTS TO LOCAL AUTHORITIES,Investment,TORUS62 LIMITED,4/6/2022," £1,182.00 ",LAR,None,Grants
"Ministry of Housing, Communities and Local Government",Homes England,REV GRNTS TO LOCAL AUTHORITIES,Investment,TORUS62 LIMITED,4/6/2022," £1,182.00 ",LAR,None,Grants
"Ministry of Housing, Communities and Local Government",Homes England,REV GRNTS TO LOCAL AUTHORITIES,Investment,TORUS62 LIMITED,4/6/2022," £1,182.00 ",LAR,None,Grants
"Ministry of Housing, Communities and Local Government",Homes England,REV GRNTS TO LOCAL AUTHORITIES,Investment,TORUS62 LIMITED,4/6/2022," £1,182.00 ",LAR,None,Grants
"Ministry of Housing, Communities and Local Government",Homes England,REV GRNTS TO LOCAL AUTHORITIES,Investment,TORUS62 LIMITED,4/6/2022," £1,182.00 ",LAR,None,Grants
"Ministry of Housing, Communities and Local Government",Homes England,REV GRNTS TO LOCAL AUTHORITIES,Investment,TORUS62 LIMITED,4/6/2022," £1,182.00 ",LAR,None,Grants
"Ministry of Housing, Communities and Local Government",Homes England,REV GRNTS TO LOCAL AUTHORITIES,Investment,TORUS62 LIMITED,4/6/2022," £1,182.00 ",LAR,None,Grants
"Ministry of Housing, Communities and Local Government",Homes England,REV GRNTS TO LOCAL AUTHORITIES,Investment,TORUS62 LIMITED,4/6/2022," £1,182.00 ",LAR,None,Grants
"Ministry of Housing, Communities and Local Government",Homes England,CAPITAL GRANTS TO RPs,Investment,TORUS62 LIMITED,4/20/2022," £9,000.00 ",LAR,None,Grants
"Ministry of Housing, Communities and Local Government",Homes England,CAPITAL GRANTS TO RPs,Investment,TORUS62 LIMITED,4/20/2022," £9,000.00 ",LAR,None,Grants
"Ministry of Housing, Communities and Local Government",Homes England,CAPITAL GRANTS TO RPs,Investment,TORUS62 LIMITED,4/20/2022," £9,000.00 ",LAR,None,Grants
"Ministry of Housing, Communities and Local Government",Homes England,CAPITAL GRANTS TO RPs,Investment,TORUS62 LIMITED,4/20/2022," £9,000.00 ",LAR,None,Grants
"Ministry of Housing, Communities and Local Government",Homes England,CAPITAL GRANTS TO RPs,Investment,TORUS62 LIMITED,4/20/2022," £9,000.00 ",LAR,None,Grants
"Ministry of Housing, Communities and Local Government",Homes England,CAPITAL GRANTS TO RPs,Investment,TORUS62 LIMITED,4/20/2022," £9,000.00 ",LAR,None,Grants
"Ministry of Housing, Communities and Local Government",Homes England,CAPITAL GRANTS TO RPs,Investment,TORUS62 LIMITED,4/20/2022," £9,000.00 ",LAR,None,Grants
"Ministry of Housing, Communities and Local Government",Homes England,REV GRNTS TO LOCAL AUTHORITIES,Investment,SOMERSET WEST AND TAUNTON COUNCIL,4/6/2022," £116,494.00 ",PUB,None,Grants
"Ministry of Housing, Communities and Local Government",Homes England,REV GRNTS TO LOCAL AUTHORITIES,Investment,SOMERSET WEST AND TAUNTON COUNCIL,4/6/2022," £6,270.00 ",PUB,None,Grants
"Ministry of Housing, Communities and Local Government",Homes England,REV GRNTS TO LOCAL AUTHORITIES,Investment,SOMERSET WEST AND TAUNTON COUNCIL,4/6/2022," £6,270.00 ",PUB,None,Grants
"Ministry of Housing, Communities and Local Government",Homes England,REV GRNTS TO LOCAL AUTHORITIES,Investment,BCP COUNCIL,4/5/2022," £1,750.00 ",PUB,None,Grants
"Ministry of Housing, Communities and Local Government",Homes England,REV GRNTS TO LOCAL AUTHORITIES,Investment,BCP COUNCIL,4/5/2022," £1,750.00 ",PUB,None,Grants
"Ministry of Housing, Communities and Local Government",Homes England,REV GRNTS TO LOCAL AUTHORITIES,Investment,BCP COUNCIL,4/5/2022," £41,249.00 ",PUB,None,Grants
"Ministry of Housing, Communities and Local Government",Homes England,REV GRNTS TO LOCAL AUTHORITIES,Investment,BCP COUNCIL,4/5/2022," £1,750.00 ",PUB,None,Grants
"Ministry of Housing, Communities and Local Government",Homes England,REV GRNTS TO LOCAL AUTHORITIES,Investment,BCP COUNCIL,4/6/2022," £45,833.00 ",PUB,None,Grants
"Ministry of Housing, Communities and Local Government",Homes England,REV GRNTS TO LOCAL AUTHORITIES,Investment,BCP COUNCIL,4/7/2022," £39,305.00 ",PUB,None,Grants
"Ministry of Housing, Communities and Local Government",Homes England,REV GRNTS TO LOCAL AUTHORITIES,Investment,BCP COUNCIL,4/22/2022," £43,673.00 ",PUB,None,Grants
"Ministry of Housing, Communities and Local Government",Homes England,CAPITAL GRANTS TO RPs,Investment,CITIZEN HOUSING GROUP LTD,4/1/2022," £42,668.00 ",LAR,None,Grants
"Ministry of Housing, Communities and Local Government",Homes England,CAPITAL GRANTS TO RPs,Investment,CITIZEN HOUSING GROUP LTD,4/4/2022," £10,000.00 ",LAR,None,Grants
"Ministry of Housing, Communities and Local Government",Homes England,CAPITAL GRANTS TO RPs,Investment,CITIZEN HOUSING GROUP LTD,4/4/2022," £10,000.00 ",LAR,None,Grants
"Ministry of Housing, Communities and Local Government",Homes England,CAPITAL GRANTS TO RPs,Investment,CITIZEN HOUSING GROUP LTD,4/4/2022," £10,000.00 ",LAR,None,Grants
"Ministry of Housing, Communities and Local Government",Homes England,CAPITAL GRANTS TO RPs,Investment,CITIZEN HOUSING GROUP LTD,4/4/2022," £10,000.00 ",LAR,None,Grants
"Ministry of Housing, Communities and Local Government",Homes England,CAPITAL GRANTS TO RPs,Investment,CITIZEN HOUSING GROUP LTD,4/4/2022," £14,222.00 ",LAR,None,Grants
"Ministry of Housing, Communities and Local Government",Homes England,CAPITAL GRANTS TO RPs,Investment,CITIZEN HOUSING GROUP LTD,4/4/2022," £10,000.00 ",LAR,None,Grants
"Ministry of Housing, Communities and Local Government",Homes England,CAPITAL GRANTS TO RPs,Investment,CITIZEN HOUSING GROUP LTD,4/4/2022," £10,000.00 ",LAR,None,Grants
"Ministry of Housing, Communities and Local Government",Homes England,REV GRNTS TO LOCAL AUTHORITIES,Investment,CITIZEN HOUSING GROUP LTD,4/7/2022," £66,500.00 ",LAR,None,Grants
"Ministry of Housing, Communities and Local Government",Homes England,CAPITAL GRANTS TO RPs,Investment,CITIZEN HOUSING GROUP LTD,4/6/2022," £121,250.00 ",LAR,None,Grants
"Ministry of Housing, Communities and Local Government",Homes England,REV GRNTS TO LOCAL AUTHORITIES,Investment,CITIZEN HOUSING GROUP LTD,4/7/2022," £3,500.00 ",LAR,None,Grants
"Ministry of Housing, Communities and Local Government",Homes England,CAPITAL GRANTS TO RPs,Investment,CITIZEN HOUSING GROUP LTD,4/6/2022," £13,750.00 ",LAR,None,Grants
"Ministry of Housing, Communities and Local Government",Homes England,REV GRNTS TO LOCAL AUTHORITIES,Investment,CITIZEN HOUSING GROUP LTD,4/6/2022," £66,500.00 ",LAR,None,Grants
"Ministry of Housing, Communities and Local Government",Homes England,REV GRNTS TO LOCAL AUTHORITIES,Investment,CITIZEN HOUSING GROUP LTD,4/6/2022," £66,500.00 ",LAR,None,Grants
"Ministry of Housing, Communities and Local Government",Homes England,REV GRNTS TO LOCAL AUTHORITIES,Investment,CITIZEN HOUSING GROUP LTD,4/7/2022," £3,500.00 ",LAR,None,Grants
"Ministry of Housing, Communities and Local Government",Homes England,REV GRNTS TO LOCAL AUTHORITIES,Investment,CITIZEN HOUSING GROUP LTD,4/6/2022," £66,500.00 ",LAR,None,Grants
"Ministry of Housing, Communities and Local Government",Homes England,REV GRNTS TO LOCAL AUTHORITIES,Investment,CITIZEN HOUSING GROUP LTD,4/7/2022," £3,500.00 ",LAR,None,Grants
"Ministry of Housing, Communities and Local Government",Homes England,REV GRNTS TO LOCAL AUTHORITIES,Investment,CITIZEN HOUSING GROUP LTD,4/8/2022," £3,500.00 ",LAR,None,Grants
"Ministry of Housing, Communities and Local Government",Homes England,REV GRNTS TO LOCAL AUTHORITIES,Investment,CITIZEN HOUSING GROUP LTD,4/8/2022," £52,250.00 ",LAR,None,Grants
"Ministry of Housing, Communities and Local Government",Homes England,REV GRNTS TO LOCAL AUTHORITIES,Investment,CITIZEN HOUSING GROUP LTD,4/11/2022," £2,750.00 ",LAR,None,Grants
"Ministry of Housing, Communities and Local Government",Homes England,REV GRNTS TO LOCAL AUTHORITIES,Investment,CITIZEN HOUSING GROUP LTD,4/22/2022," £24,750.00 ",LAR,None,Grants
"Ministry of Housing, Communities and Local Government",Homes England,REV GRNTS TO LOCAL AUTHORITIES,Investment,CITIZEN HOUSING GROUP LTD,4/25/2022," £27,500.00 ",LAR,None,Grants
"Ministry of Housing, Communities and Local Government",Homes England,REV GRNTS TO LOCAL AUTHORITIES,Investment,CITIZEN HOUSING GROUP LTD,4/26/2022," £2,750.00 ",LAR,None,Grants
"Ministry of Housing, Communities and Local Government",Homes England,REV GRNTS TO LOCAL AUTHORITIES,Investment,CITIZEN HOUSING GROUP LTD,4/27/2022," £31,500.00 ",LAR,None,Grants
"Ministry of Housing, Communities and Local Government",Homes England,REV GRNTS TO LOCAL AUTHORITIES,Investment,CITIZEN HOUSING GROUP LTD,4/28/2022," £35,000.00 ",LAR,None,Grants
"Ministry of Housing, Communities and Local Government",Homes England,REV GRNTS TO LOCAL AUTHORITIES,Investment,CITIZEN HOUSING GROUP LTD,4/29/2022," £3,500.00 ",LAR,None,Grants
"Ministry of Housing, Communities and Local Government",Homes England,CAP GRNTS TO LOCAL AUTHORITIES,Investment,SUNDERLAND CITY COUNCIL,4/1/2022," £7,500.00 ",PUB,None,Grants
"Ministry of Housing, Communities and Local Government",Homes England,CAP GRNTS TO LOCAL AUTHORITIES,Investment,SUNDERLAND CITY COUNCIL,4/7/2022," £315,000.00 ",PUB,None,Grants
"Ministry of Housing, Communities and Local Government",Homes England,CAP GRNTS TO LOCAL AUTHORITIES,Investment,SUNDERLAND CITY COUNCIL,4/7/2022," £210,000.00 ",PUB,None,Grants
"Ministry of Housing, Communities and Local Government",Homes England,CAP GRNTS TO LOCAL AUTHORITIES,Investment,SUNDERLAND CITY COUNCIL,4/28/2022," £7,500.00 ",PUB,None,Grants
"Ministry of Housing, Communities and Local Government",Homes England,REV GRNTS TO LOCAL AUTHORITIES,Investment,NORTH NORFOLK DISTRICT COUNCIL,4/5/2022," £1,750.00 ",PUB,None,Grants
"Ministry of Housing, Communities and Local Government",Homes England,REV GRNTS TO LOCAL AUTHORITIES,Investment,DORSET COUNCIL,4/1/2022," £30,000.00 ",PUB,None,Grants
"Ministry of Housing, Communities and Local Government",Homes England,REV GRNTS TO LOCAL AUTHORITIES,Investment,DORSET COUNCIL,4/1/2022," £30,000.00 ",PUB,None,Grants
"Ministry of Housing, Communities and Local Government",Homes England,REV GRNTS TO LOCAL AUTHORITIES,Investment,DORSET COUNCIL,4/1/2022," £27,000.00 ",PUB,None,Grants
"Ministry of Housing, Communities and Local Government",Homes England,REV GRNTS TO LOCAL AUTHORITIES,Investment,DORSET COUNCIL,4/4/2022," £9,000.00 ",PUB,None,Grants
"Ministry of Housing, Communities and Local Government",Homes England,REV GRNTS TO LOCAL AUTHORITIES,Investment,DORSET COUNCIL,4/4/2022," £3,000.00 ",PUB,None,Grants
"Ministry of Housing, Communities and Local Government",Homes England,REV GRNTS TO LOCAL AUTHORITIES,Investment,DORSET COUNCIL,4/4/2022," £30,000.00 ",PUB,None,Grants
"Ministry of Housing, Communities and Local Government",Homes England,REV GRNTS TO LOCAL AUTHORITIES,Investment,DORSET COUNCIL,4/6/2022," £3,000.00 ",PUB,None,Grants
"Ministry of Housing, Communities and Local Government",Homes England,REV GRNTS TO LOCAL AUTHORITIES,Investment,DORSET COUNCIL,4/6/2022," £16,556.00 ",PUB,None,Grants
"Ministry of Housing, Communities and Local Government",Homes England,REV GRNTS TO LOCAL AUTHORITIES,Investment,DORSET COUNCIL,4/6/2022," £25,188.00 ",PUB,None,Grants
"Ministry of Housing, Communities and Local Government",Homes England,REV GRNTS TO LOCAL AUTHORITIES,Investment,DORSET COUNCIL,4/6/2022," £4,139.00 ",PUB,None,Grants
"Ministry of Housing, Communities and Local Government",Homes England,REV GRNTS TO LOCAL AUTHORITIES,Investment,DORSET COUNCIL,4/6/2022," £4,139.00 ",PUB,None,Grants
"Ministry of Housing, Communities and Local Government",Homes England,REV GRNTS TO LOCAL AUTHORITIES,Investment,DORSET COUNCIL,4/6/2022," £4,138.00 ",PUB,None,Grants
"Ministry of Housing, Communities and Local Government",Homes England,REV GRNTS TO LOCAL AUTHORITIES,Investment,DORSET COUNCIL,4/6/2022," £4,138.00 ",PUB,None,Grants
"Ministry of Housing, Communities and Local Government",Homes England,REV GRNTS TO LOCAL AUTHORITIES,Investment,DORSET COUNCIL,4/6/2022," £4,139.00 ",PUB,None,Grants
"Ministry of Housing, Communities and Local Government",Homes England,REV GRNTS TO LOCAL AUTHORITIES,Investment,DORSET COUNCIL,4/6/2022," £3,000.00 ",PUB,None,Grants
"Ministry of Housing, Communities and Local Government",Homes England,REV GRNTS TO LOCAL AUTHORITIES,Investment,DORSET COUNCIL,4/6/2022," £3,000.00 ",PUB,None,Grants
"Ministry of Housing, Communities and Local Government",Homes England,REV GRNTS TO LOCAL AUTHORITIES,Investment,DORSET COUNCIL,4/6/2022," £4,138.00 ",PUB,None,Grants
"Ministry of Housing, Communities and Local Government",Homes England,REV GRNTS TO LOCAL AUTHORITIES,Investment,TELFORD & WREKIN COUNCIL,4/5/2022," £1,325.00 ",PUB,None,Grants
"Ministry of Housing, Communities and Local Government",Homes England,REV GRNTS TO LOCAL AUTHORITIES,Investment,TELFORD & WREKIN COUNCIL,4/5/2022," £1,111.00 ",PUB,None,Grants
"Ministry of Housing, Communities and Local Government",Homes England,REV GRNTS TO LOCAL AUTHORITIES,Investment,TELFORD & WREKIN COUNCIL,4/5/2022," £1,417.00 ",PUB,None,Grants
"Ministry of Housing, Communities and Local Government",Homes England,REV GRNTS TO LOCAL AUTHORITIES,Investment,TELFORD & WREKIN COUNCIL,4/5/2022," £2,375.00 ",PUB,None,Grants
"Ministry of Housing, Communities and Local Government",Homes England,REV GRNTS TO LOCAL AUTHORITIES,Investment,TELFORD & WREKIN COUNCIL,4/5/2022," £10,530.00 ",PUB,None,Grants
"Ministry of Housing, Communities and Local Government",Homes England,REV GRNTS TO LOCAL AUTHORITIES,Investment,TELFORD & WREKIN COUNCIL,4/5/2022," £15,750.00 ",PUB,None,Grants
"Ministry of Housing, Communities and Local Government",Homes England,REV GRNTS TO LOCAL AUTHORITIES,Investment,TELFORD & WREKIN COUNCIL,4/5/2022," £1,025.00 ",PUB,None,Grants
"Ministry of Housing, Communities and Local Government",Homes England,REV GRNTS TO LOCAL AUTHORITIES,Investment,TELFORD & WREKIN COUNCIL,4/5/2022," £1,596.00 ",PUB,None,Grants
"Ministry of Housing, Communities and Local Government",Homes England,REV GRNTS TO LOCAL AUTHORITIES,Investment,TELFORD & WREKIN COUNCIL,4/5/2022, £906.00 ,PUB,None,Grants
"Ministry of Housing, Communities and Local Government",Homes England,REV GRNTS TO LOCAL AUTHORITIES,Investment,TELFORD & WREKIN COUNCIL,4/5/2022," £15,750.00 ",PUB,None,Grants
"Ministry of Housing, Communities and Local Government",Homes England,REV GRNTS TO LOCAL AUTHORITIES,Investment,TELFORD & WREKIN COUNCIL,4/5/2022," £1,280.00 ",PUB,None,Grants
"Ministry of Housing, Communities and Local Government",Homes England,REV GRNTS TO LOCAL AUTHORITIES,Investment,TELFORD & WREKIN COUNCIL,4/6/2022," £17,500.00 ",PUB,None,Grants
"Ministry of Housing, Communities and Local Government",Homes England,REV GRNTS TO LOCAL AUTHORITIES,Investment,TELFORD & WREKIN COUNCIL,4/7/2022," £1,750.00 ",PUB,None,Grants
"Ministry of Housing, Communities and Local Government",Homes England,REV GRNTS TO LOCAL AUTHORITIES,Investment,TELFORD & WREKIN COUNCIL,4/7/2022," £1,750.00 ",PUB,None,Grants
"Ministry of Housing, Communities and Local Government",Homes England,REV GRNTS TO LOCAL AUTHORITIES,Investment,TELFORD & WREKIN COUNCIL,4/6/2022," £17,500.00 ",PUB,None,Grants
"Ministry of Housing, Communities and Local Government",Homes England,REV GRNTS TO LOCAL AUTHORITIES,Investment,HEREFORDSHIRE COUNCIL,4/7/2022," £31,752.00 ",PUB,None,Grants
"Ministry of Housing, Communities and Local Government",Homes England,REV GRNTS TO LOCAL AUTHORITIES,Investment,HEREFORDSHIRE COUNCIL,4/7/2022," £31,752.00 ",PUB,None,Grants
"Ministry of Housing, Communities and Local Government",Homes England,CAPITAL GRANTS TO RPs,Investment,LUMEN HOUSING LIMITED,4/1/2022," £6,250.00 ",SMA,None,Grants
"Ministry of Housing, Communities and Local Government",Homes England,CAPITAL GRANTS TO RPs,Investment,LUMEN HOUSING LIMITED,4/1/2022," £7,000.00 ",SMA,None,Grants
"Ministry of Housing, Communities and Local Government",Homes England,CAPITAL GRANTS TO RPs,Investment,LUMEN HOUSING LIMITED,4/1/2022," £5,750.00 ",SMA,None,Grants
"Ministry of Housing, Communities and Local Government",Homes England,REV GRNTS TO LOCAL AUTHORITIES,Investment,BATH AND NORTH EAST SOMERSET COUNCIL,4/4/2022," £50,000.00 ",PUB,None,Grants
"Ministry of Housing, Communities and Local Government",Homes England,CAP GRNTS TO LOCAL AUTHORITIES,Investment,BATH AND NORTH EAST SOMERSET COUNCIL,4/6/2022," £90,000.00 ",PUB,None,Grants
"Ministry of Housing, Communities and Local Government",Homes England,REV GRNTS TO LOCAL AUTHORITIES,Investment,BEDFORD BOROUGH COUNCIL,4/1/2022," £79,617.00 ",PUB,None,Grants
"Ministry of Housing, Communities and Local Government",Homes England,REV GRNTS TO LOCAL AUTHORITIES,Investment,ROTHER DISTRICT COUNCIL,4/1/2022," £4,888.00 ",PUB,None,Grants
"Ministry of Housing, Communities and Local Government",Homes England,REV GRNTS TO LOCAL AUTHORITIES,Investment,ROTHER DISTRICT COUNCIL,4/1/2022," £48,882.00 ",PUB,None,Grants
"Ministry of Housing, Communities and Local Government",Homes England,CAP GRNTS TO LOCAL AUTHORITIES,Investment,WEST NORTHAMPTONSHIRE COUNCIL,4/1/2022," £100,000.00 ",PUB,None,Grants
"Ministry of Housing, Communities and Local Government",Homes England,CAP GRNTS TO LOCAL AUTHORITIES,Investment,WEST NORTHAMPTONSHIRE COUNCIL,4/1/2022," £1,143,765.00 ",PUB,None,Grants
"Ministry of Housing, Communities and Local Government",Homes England,CAP GRNTS TO LOCAL AUTHORITIES,Investment,WEST NORTHAMPTONSHIRE COUNCIL,4/1/2022," £1,056,501.00 ",PUB,None,Grants
"Ministry of Housing, Communities and Local Government",Homes England,REV GRNTS TO LOCAL AUTHORITIES,Investment,WEST NORTHAMPTONSHIRE COUNCIL,4/5/2022," £24,750.00 ",PUB,None,Grants
"Ministry of Housing, Communities and Local Government",Homes England,REV GRNTS TO LOCAL AUTHORITIES,Investment,WEST NORTHAMPTONSHIRE COUNCIL,4/5/2022," £24,750.00 ",PUB,None,Grants
"Ministry of Housing, Communities and Local Government",Homes England,REV GRNTS TO LOCAL AUTHORITIES,Investment,WEST NORTHAMPTONSHIRE COUNCIL,4/5/2022," £24,750.00 ",PUB,None,Grants
"Ministry of Housing, Communities and Local Government",Homes England,CAP GRNTS TO LOCAL AUTHORITIES,Investment,WEST NORTHAMPTONSHIRE COUNCIL,4/5/2022," £250,000.00 ",PUB,None,Grants
"Ministry of Housing, Communities and Local Government",Homes England,REV GRNTS TO LOCAL AUTHORITIES,Investment,WEST NORTHAMPTONSHIRE COUNCIL,4/5/2022," £24,750.00 ",PUB,None,Grants
"Ministry of Housing, Communities and Local Government",Homes England,REV GRNTS TO LOCAL AUTHORITIES,Investment,WEST NORTHAMPTONSHIRE COUNCIL,4/5/2022," £24,750.00 ",PUB,None,Grants
"Ministry of Housing, Communities and Local Government",Homes England,REV GRNTS TO LOCAL AUTHORITIES,Investment,WEST NORTHAMPTONSHIRE COUNCIL,4/5/2022," £24,750.00 ",PUB,None,Grants
"Ministry of Housing, Communities and Local Government",Homes England,REV GRNTS TO LOCAL AUTHORITIES,Investment,WEST NORTHAMPTONSHIRE COUNCIL,4/7/2022," £2,750.00 ",PUB,None,Grants
"Ministry of Housing, Communities and Local Government",Homes England,REV GRNTS TO LOCAL AUTHORITIES,Investment,WEST NORTHAMPTONSHIRE COUNCIL,4/7/2022," £2,750.00 ",PUB,None,Grants
"Ministry of Housing, Communities and Local Government",Homes England,REV GRNTS TO LOCAL AUTHORITIES,Investment,WEST NORTHAMPTONSHIRE COUNCIL,4/6/2022," £27,500.00 ",PUB,None,Grants
"Ministry of Housing, Communities and Local Government",Homes England,REV GRNTS TO LOCAL AUTHORITIES,Investment,WEST NORTHAMPTONSHIRE COUNCIL,4/6/2022," £27,500.00 ",PUB,None,Grants
"Ministry of Housing, Communities and Local Government",Homes England,REV GRNTS TO LOCAL AUTHORITIES,Investment,WEST NORTHAMPTONSHIRE COUNCIL,4/6/2022," £27,500.00 ",PUB,None,Grants
"Ministry of Housing, Communities and Local Government",Homes England,REV GRNTS TO LOCAL AUTHORITIES,Investment,WEST NORTHAMPTONSHIRE COUNCIL,4/7/2022," £2,750.00 ",PUB,None,Grants
"Ministry of Housing, Communities and Local Government",Homes England,REV GRNTS TO LOCAL AUTHORITIES,Investment,WEST NORTHAMPTONSHIRE COUNCIL,4/6/2022," £27,500.00 ",PUB,None,Grants
"Ministry of Housing, Communities and Local Government",Homes England,REV GRNTS TO LOCAL AUTHORITIES,Investment,WEST NORTHAMPTONSHIRE COUNCIL,4/7/2022," £2,750.00 ",PUB,None,Grants
"Ministry of Housing, Communities and Local Government",Homes England,REV GRNTS TO LOCAL AUTHORITIES,Investment,WEST NORTHAMPTONSHIRE COUNCIL,4/25/2022," £27,500.00 ",PUB,None,Grants
"Ministry of Housing, Communities and Local Government",Homes England,REV GRNTS TO LOCAL AUTHORITIES,Investment,WEST NORTHAMPTONSHIRE COUNCIL,4/25/2022," £27,500.00 ",PUB,None,Grants
"Ministry of Housing, Communities and Local Government",Homes England,REV GRNTS TO LOCAL AUTHORITIES,Investment,LICHFIELD DISTRICT COUNCIL,4/4/2022," £15,750.00 ",PUB,None,Grants
"Ministry of Housing, Communities and Local Government",Homes England,REV GRNTS TO LOCAL AUTHORITIES,Investment,LICHFIELD DISTRICT COUNCIL,4/4/2022," £15,750.00 ",PUB,None,Grants
"Ministry of Housing, Communities and Local Government",Homes England,REV GRNTS TO LOCAL AUTHORITIES,Investment,LICHFIELD DISTRICT COUNCIL,4/4/2022," £15,750.00 ",PUB,None,Grants
"Ministry of Housing, Communities and Local Government",Homes England,REV GRNTS TO LOCAL AUTHORITIES,Investment,LICHFIELD DISTRICT COUNCIL,4/5/2022," £17,500.00 ",PUB,None,Grants
"Ministry of Housing, Communities and Local Government",Homes England,REV GRNTS TO LOCAL AUTHORITIES,Investment,LICHFIELD DISTRICT COUNCIL,4/5/2022," £17,500.00 ",PUB,None,Grants
"Ministry of Housing, Communities and Local Government",Homes England,REV GRNTS TO LOCAL AUTHORITIES,Investment,LICHFIELD DISTRICT COUNCIL,4/6/2022," £17,500.00 ",PUB,None,Grants
"Ministry of Housing, Communities and Local Government",Homes England,REV GRNTS TO LOCAL AUTHORITIES,Investment,LICHFIELD DISTRICT COUNCIL,4/6/2022," £1,750.00 ",PUB,None,Grants
"Ministry of Housing, Communities and Local Government",Homes England,REV GRNTS TO LOCAL AUTHORITIES,Investment,LICHFIELD DISTRICT COUNCIL,4/6/2022," £1,750.00 ",PUB,None,Grants
"Ministry of Housing, Communities and Local Government",Homes England,REV GRNTS TO LOCAL AUTHORITIES,Investment,LICHFIELD DISTRICT COUNCIL,4/11/2022," £15,750.00 ",PUB,None,Grants
"Ministry of Housing, Communities and Local Government",Homes England,REV GRNTS TO LOCAL AUTHORITIES,Investment,LICHFIELD DISTRICT COUNCIL,4/13/2022," £17,500.00 ",PUB,None,Grants
"Ministry of Housing, Communities and Local Government",Homes England,REV GRNTS TO LOCAL AUTHORITIES,Investment,ISLE OF WIGHT COUNCIL,4/5/2022," £35,088.00 ",PUB,None,Grants
"Ministry of Housing, Communities and Local Government",Homes England,REV GRNTS TO LOCAL AUTHORITIES,Investment,ISLE OF WIGHT COUNCIL,4/6/2022," £38,986.00 ",PUB,None,Grants
"Ministry of Housing, Communities and Local Government",Homes England,MISC PROFESSIONAL FEES,Development,ALLEN DADSWELL CONSTRUCTION CONSULTANTS,4/19/2022," £1,188.00 ",MED,72101500,Building maintenance and repair services
"Ministry of Housing, Communities and Local Government",Homes England,ENGINEERING CONSULTANTS,"Markets, Partners & Places",ATKINS LTD,4/28/2022," £1,350.00 ",LAR,81101500,Civil Engineering
"Ministry of Housing, Communities and Local Government",Homes England,OTHER PROFESSIONAL FEES,Development,ATKINS LTD,4/28/2022," £48,480.00 ",LAR,80131800,Real estate management services
"Ministry of Housing, Communities and Local Government",Homes England,MISC PROFESSIONAL FEES,Development,ADAM ARCHITECTURE LTD,4/4/2022," £1,734.96 ",SMA,80131800,Real estate management services
"Ministry of Housing, Communities and Local Government",Homes England,ST FUND LOANS ADDITIONS,Investment,ANCHOR HOMES (NORTH WEST) LTD,4/22/2022," £91,344.68 ",MIC,None,Loans
"Ministry of Housing, Communities and Local Government",Homes England,L&OD STRATEGIC - HR USE ONLY,Corporate Resources,ASSOCIATION FOR PROJECT MANAGEMENT,4/4/2022, £270.00 ,LAR,86101800,In service training and manpower development
"Ministry of Housing, Communities and Local Government",Homes England,CAR LEASING - HIRE CHARGES,"Markets, Partners & Places",LEASEPLAN UK LIMITED,4/14/2022, £283.42 ,LAR,25101500,Passenger motor vehicles
"Ministry of Housing, Communities and Local Government",Homes England,CAR LEASING - HIRE CHARGES,Development,ALPHABET (GB) LTD,4/7/2022, £298.89 ,LAR,25101500,Passenger motor vehicles
"Ministry of Housing, Communities and Local Government",Homes England,CAR LEASING - HIRE CHARGES,Investment,ALPHABET (GB) LTD,4/7/2022, £302.24 ,LAR,25101500,Passenger motor vehicles
"Ministry of Housing, Communities and Local Government",Homes England,CAR LEASING - HIRE CHARGES,Development,ALPHABET (GB) LTD,4/7/2022, £265.80 ,LAR,25101500,Passenger motor vehicles
"Ministry of Housing, Communities and Local Government",Homes England,CAR LEASING - HIRE CHARGES,Development,ALPHABET (GB) LTD,4/7/2022, £349.12 ,LAR,25101500,Passenger motor vehicles
"Ministry of Housing, Communities and Local Government",Homes England,CAR LEASING - HIRE CHARGES,Development,ALPHABET (GB) LTD,4/13/2022, £315.33 ,LAR,25101500,Passenger motor vehicles
"Ministry of Housing, Communities and Local Government",Homes England,SUNDRIES,Corporate Resources,ANTI MONEY LAUNDERING PROFESSIONALS LTD,4/14/2022, £477.60 ,MIC,80141902,Trade shows and exhibits
"Ministry of Housing, Communities and Local Government",Homes England,OTHER PROFESSIONAL FEES,Development,ALSOP DESIGN,4/11/2022, £500.00 ,SMA,80131800,Real estate management services
"Ministry of Housing, Communities and Local Government",Homes England,CONTRACT WORKS,Development,AINSTY TIMBER MARKETING LTD T/A ATM,4/11/2022," £68,514.18 ",MED,72102900,Facility maintenance and repair services
"Ministry of Housing, Communities and Local Government",Homes England,ST FUND LOANS ADDITIONS,Investment,AUDLEY GROUP DEVELOPMENTS 1 LTD,4/29/2022," £3,530,128.00 ",MIC,None,Loans
"Ministry of Housing, Communities and Local Government",Homes England,PROPERTY SERVICES,Development,ASPIRE DEVELOPMENT MANAGEMENT LIMITED,4/21/2022," £30,360.00 ",MIC,80131800,Real estate management services
"Ministry of Housing, Communities and Local Government",Homes England,OTHER PROFESSIONAL FEES,Development,ALLIUM ENVIRONMENTAL LTD,4/21/2022," £2,700.00 ",SMA,80131800,Real estate management services
"Ministry of Housing, Communities and Local Government",Homes England,EXTERNAL BUILDING MAINTENANCE,Development,ALLIUM ENVIRONMENTAL LTD,4/26/2022, £630.00 ,SMA,72101500,Building maintenance and repair services
"Ministry of Housing, Communities and Local Government",Homes England,AGENCY STAFF,Corporate Resources,ALLEN LANE LIMITED,4/7/2022," £3,795.00 ",SMA,80111600,Temporary personnel services
"Ministry of Housing, Communities and Local Government",Homes England,AGENCY STAFF,Corporate Resources,ALLEN LANE LIMITED,4/7/2022," £3,726.00 ",SMA,80111600,Temporary personnel services
"Ministry of Housing, Communities and Local Government",Homes England,AGENCY STAFF,Corporate Resources,ALLEN LANE LIMITED,4/7/2022," £4,290.00 ",SMA,80111600,Temporary personnel services
"Ministry of Housing, Communities and Local Government",Homes England,AGENCY STAFF,Corporate Resources,ALLEN LANE LIMITED,4/7/2022," £3,795.00 ",SMA,80111600,Temporary personnel services
"Ministry of Housing, Communities and Local Government",Homes England,AGENCY STAFF,Corporate Resources,ALLEN LANE LIMITED,4/7/2022," £3,630.00 ",SMA,80111600,Temporary personnel services
"Ministry of Housing, Communities and Local Government",Homes England,AGENCY STAFF,Corporate Resources,ALLEN LANE LIMITED,4/7/2022," £3,630.00 ",SMA,80111600,Temporary personnel services
"Ministry of Housing, Communities and Local Government",Homes England,AGENCY STAFF,Corporate Resources,ALLEN LANE LIMITED,4/7/2022," £3,795.00 ",SMA,80111600,Temporary personnel services
"Ministry of Housing, Communities and Local Government",Homes England,AGENCY STAFF,Corporate Resources,ALLEN LANE LIMITED,4/7/2022," £3,795.00 ",SMA,80111600,Temporary personnel services
"Ministry of Housing, Communities and Local Government",Homes England,AGENCY STAFF,Corporate Resources,ALLEN LANE LIMITED,4/19/2022," £5,310.00 ",SMA,80111600,Temporary personnel services
"Ministry of Housing, Communities and Local Government",Homes England,AGENCY STAFF,Corporate Resources,ALLEN LANE LIMITED,4/19/2022," £3,795.00 ",SMA,80111600,Temporary personnel services
"Ministry of Housing, Communities and Local Government",Homes England,AGENCY STAFF,Corporate Resources,ALLEN LANE LIMITED,4/19/2022," £3,069.02 ",SMA,80111600,Temporary personnel services
"Ministry of Housing, Communities and Local Government",Homes England,AGENCY STAFF,Corporate Resources,ALLEN LANE LIMITED,4/19/2022," £3,916.20 ",SMA,80111600,Temporary personnel services
"Ministry of Housing, Communities and Local Government",Homes England,AGENCY STAFF,Corporate Resources,ALLEN LANE LIMITED,4/19/2022," £4,338.78 ",SMA,80111600,Temporary personnel services
"Ministry of Housing, Communities and Local Government",Homes England,AGENCY STAFF,Corporate Resources,ALLEN LANE LIMITED,4/19/2022," £3,671.28 ",SMA,80111600,Temporary personnel services
"Ministry of Housing, Communities and Local Government",Homes England,AGENCY STAFF,Corporate Resources,ALLEN LANE LIMITED,4/19/2022," £3,836.28 ",SMA,80111600,Temporary personnel services
"Ministry of Housing, Communities and Local Government",Homes England,AGENCY STAFF,Corporate Resources,ALLEN LANE LIMITED,4/19/2022," £3,671.28 ",SMA,80111600,Temporary personnel services
"Ministry of Housing, Communities and Local Government",Homes England,AGENCY STAFF,Corporate Resources,ALLEN LANE LIMITED,4/26/2022," £10,643.26 ",SMA,80111600,Temporary personnel services
"Ministry of Housing, Communities and Local Government",Homes England,AGENCY STAFF,Corporate Resources,ALLEN LANE LIMITED,4/26/2022," £3,036.00 ",SMA,80111600,Temporary personnel services
"Ministry of Housing, Communities and Local Government",Homes England,AGENCY STAFF,Corporate Resources,ALLEN LANE LIMITED,4/26/2022," £4,708.14 ",SMA,80111600,Temporary personnel services
"Ministry of Housing, Communities and Local Government",Homes England,AGENCY STAFF,Corporate Resources,ALLEN LANE LIMITED,4/26/2022," £3,069.02 ",SMA,80111600,Temporary personnel services
"Ministry of Housing, Communities and Local Government",Homes England,AGENCY STAFF,Corporate Resources,ALLEN LANE LIMITED,4/26/2022," £3,471.02 ",SMA,80111600,Temporary personnel services
"Ministry of Housing, Communities and Local Government",Homes England,AGENCY STAFF,Corporate Resources,ALLEN LANE LIMITED,4/26/2022," £2,937.02 ",SMA,80111600,Temporary personnel services
"Ministry of Housing, Communities and Local Government",Homes England,AGENCY STAFF,Corporate Resources,ALLEN LANE LIMITED,4/26/2022," £3,069.02 ",SMA,80111600,Temporary personnel services
"Ministry of Housing, Communities and Local Government",Homes England,AGENCY STAFF,Corporate Resources,ALLEN LANE LIMITED,4/26/2022," £2,937.02 ",SMA,80111600,Temporary personnel services
"Ministry of Housing, Communities and Local Government",Homes England,AGENCY STAFF,Corporate Resources,ALLEN LANE LIMITED,4/29/2022," £3,036.00 ",SMA,80111600,Temporary personnel services
"Ministry of Housing, Communities and Local Government",Homes England,AGENCY STAFF,Corporate Resources,ALLEN LANE LIMITED,4/29/2022," £7,533.02 ",SMA,80111600,Temporary personnel services
"Ministry of Housing, Communities and Local Government",Homes England,AGENCY STAFF,Corporate Resources,ALLEN LANE LIMITED,4/29/2022," £2,338.13 ",SMA,80111600,Temporary personnel services
"Ministry of Housing, Communities and Local Government",Homes England,AGENCY STAFF,Corporate Resources,ALLEN LANE LIMITED,4/29/2022," £3,471.02 ",SMA,80111600,Temporary personnel services
"Ministry of Housing, Communities and Local Government",Homes England,AGENCY STAFF,Corporate Resources,ALLEN LANE LIMITED,4/29/2022," £2,937.02 ",SMA,80111600,Temporary personnel services
"Ministry of Housing, Communities and Local Government",Homes England,AGENCY STAFF,Corporate Resources,ALLEN LANE LIMITED,4/29/2022," £3,069.02 ",SMA,80111600,Temporary personnel services
"Ministry of Housing, Communities and Local Government",Homes England,AGENCY STAFF,Corporate Resources,ALLEN LANE LIMITED,4/29/2022," £2,937.02 ",SMA,80111600,Temporary personnel services
"Ministry of Housing, Communities and Local Government",Homes England,ESTATE GENERAL MAINTENANCE,Development,AIREDALE FORESTRY,4/1/2022, £257.98 ,SMA,72101500,Building maintenance and repair services
"Ministry of Housing, Communities and Local Government",Homes England,ESTATE GENERAL MAINTENANCE,Development,AIREDALE FORESTRY,4/1/2022, £257.98 ,SMA,72101500,Building maintenance and repair services
"Ministry of Housing, Communities and Local Government",Homes England,DISPOSAL FEES - LEGAL,"Markets, Partners & Places",ASHFORDS,4/1/2022," £1,920.00 ",LAR,80121600,Business law services
"Ministry of Housing, Communities and Local Government",Homes England,PROF FEES LOANS CAPITALISED,Investment,ASHFORDS,4/19/2022," £6,360.00 ",LAR,80121600,Business law services
"Ministry of Housing, Communities and Local Government",Homes England,DISPOSAL FEES - LEGAL,"Markets, Partners & Places",ASHFORDS,4/20/2022," £3,000.00 ",LAR,80121600,Business law services
"Ministry of Housing, Communities and Local Government",Homes England,DISPOSAL FEES - LEGAL,"Markets, Partners & Places",ASHFORDS,4/25/2022," £3,840.00 ",LAR,80121600,Business law services
"Ministry of Housing, Communities and Local Government",Homes England,MISC PROFESSIONAL FEES,Development,DESIGN MIDLANDS LIMITED,4/14/2022, £660.00 ,SMA,81101500,Civil Engineering
"Ministry of Housing, Communities and Local Government",Homes England,CAR LEASING - HIRE CHARGES,"Markets, Partners & Places",ARNOLD CLARK FINANCE LIMITED,4/6/2022, £280.19 ,LAR,25101500,Passenger motor vehicles
"Ministry of Housing, Communities and Local Government",Homes England,CAR LEASING - HIRE CHARGES,Development,ARNOLD CLARK FINANCE LIMITED,4/6/2022, £250.93 ,LAR,25101500,Passenger motor vehicles
"Ministry of Housing, Communities and Local Government",Homes England,CAR LEASING - HIRE CHARGES,Development,ARNOLD CLARK FINANCE LIMITED,4/6/2022, £279.44 ,LAR,25101500,Passenger motor vehicles
"Ministry of Housing, Communities and Local Government",Homes England,CAR LEASING - HIRE CHARGES,Investment,ARNOLD CLARK FINANCE LIMITED,4/6/2022, £267.53 ,LAR,25101500,Passenger motor vehicles
"Ministry of Housing, Communities and Local Government",Homes England,CAR LEASING - HIRE CHARGES,Development,ARNOLD CLARK FINANCE LIMITED,4/6/2022, £259.43 ,LAR,25101500,Passenger motor vehicles
"Ministry of Housing, Communities and Local Government",Homes England,CAR LEASING - HIRE CHARGES,Development,ARNOLD CLARK FINANCE LIMITED,4/6/2022, £274.82 ,LAR,25101500,Passenger motor vehicles
"Ministry of Housing, Communities and Local Government",Homes England,CAR LEASING - HIRE CHARGES,Development,ARNOLD CLARK FINANCE LIMITED,4/6/2022, £254.11 ,LAR,25101500,Passenger motor vehicles
"Ministry of Housing, Communities and Local Government",Homes England,CAR LEASING - HIRE CHARGES,"Markets, Partners & Places",ARNOLD CLARK FINANCE LIMITED,4/6/2022, £268.67 ,LAR,25101500,Passenger motor vehicles
"Ministry of Housing, Communities and Local Government",Homes England,CAR LEASING - HIRE CHARGES,"Markets, Partners & Places",ARNOLD CLARK FINANCE LIMITED,4/6/2022, £354.99 ,LAR,25101500,Passenger motor vehicles
"Ministry of Housing, Communities and Local Government",Homes England,CAR LEASING - HIRE CHARGES,Development,ARNOLD CLARK FINANCE LIMITED,4/19/2022, £250.67 ,LAR,25101500,Passenger motor vehicles
"Ministry of Housing, Communities and Local Government",Homes England,CAR LEASING - HIRE CHARGES,Development,ARNOLD CLARK FINANCE LIMITED,4/19/2022, £316.87 ,LAR,25101500,Passenger motor vehicles
"Ministry of Housing, Communities and Local Government",Homes England,LEGAL FEES (PROGRAMME - RDEL),Investment,BERWIN LEIGHTON PAISNER,4/4/2022," £1,800.00 ",LAR,80121600,Business law services
"Ministry of Housing, Communities and Local Government",Homes England,PROF FEES EQUITY CAPITALISED,Investment,BERWIN LEIGHTON PAISNER,4/5/2022," £6,019.20 ",LAR,80121600,Business law services
"Ministry of Housing, Communities and Local Government",Homes England,PROF FEES EQUITY CAPITALISED,Investment,BERWIN LEIGHTON PAISNER,4/5/2022," £33,778.80 ",LAR,80121600,Business law services
"Ministry of Housing, Communities and Local Government",Homes England,DISPOSAL FEES - LEGAL,Development,BERWIN LEIGHTON PAISNER,4/5/2022," £22,944.36 ",LAR,80121600,Business law services
"Ministry of Housing, Communities and Local Government",Homes England,LEGAL FEES (PROGRAMME - RDEL),Investment,BERWIN LEIGHTON PAISNER,4/6/2022," £18,000.00 ",LAR,80121600,Business law services
"Ministry of Housing, Communities and Local Government",Homes England,LEGAL FEES (PROGRAMME - RDEL),Development,BERWIN LEIGHTON PAISNER,4/20/2022," £4,777.02 ",LAR,80121600,Business law services
"Ministry of Housing, Communities and Local Government",Homes England,DISPOSAL FEES - LEGAL,Development,BERWIN LEIGHTON PAISNER,4/20/2022, £277.20 ,LAR,80121600,Business law services
"Ministry of Housing, Communities and Local Government",Homes England,LEGAL FEES (PROGRAMME - RDEL),Investment,BERWIN LEIGHTON PAISNER,4/25/2022," £33,520.08 ",LAR,80121600,Business law services
"Ministry of Housing, Communities and Local Government",Homes England,CAP GRNTS TO LOCAL AUTHORITIES,Development,BERWIN LEIGHTON PAISNER,4/26/2022," £5,400.00 ",LAR,80121600,Business law services
"Ministry of Housing, Communities and Local Government",Homes England,LEGAL FEES (PROGRAMME - RDEL),Development,BERWIN LEIGHTON PAISNER,4/26/2022, £306.00 ,LAR,80121600,Business law services
"Ministry of Housing, Communities and Local Government",Homes England,LEGAL FEES (PROGRAMME - RDEL),Development,BERWIN LEIGHTON PAISNER,4/26/2022," £14,059.20 ",LAR,80121600,Business law services
"Ministry of Housing, Communities and Local Government",Homes England,LEGAL FEES (PROGRAMME - RDEL),Development,BERWIN LEIGHTON PAISNER,4/26/2022," £14,059.20 ",LAR,80121600,Business law services
"Ministry of Housing, Communities and Local Government",Homes England,LEGAL FEES (PROGRAMME - RDEL),Development,BERWIN LEIGHTON PAISNER,4/26/2022," £14,059.20 ",LAR,80121600,Business law services
"Ministry of Housing, Communities and Local Government",Homes England,MISC PROFESSIONAL FEES,Investment,BDO LLP,4/20/2022," £2,160.00 ",LAR,84111500,Accounting services
"Ministry of Housing, Communities and Local Government",Homes England,DISPOSAL FEES - LEGAL,"Markets, Partners & Places",BROWNE JACOBSON LLP,4/1/2022," £7,248.60 ",LAR,80121600,Business law services
"Ministry of Housing, Communities and Local Government",Homes England,LEGAL FEES (PROGRAMME - CDEL),Development,BROWNE JACOBSON LLP,4/1/2022," £14,540.40 ",LAR,80121600,Business law services
"Ministry of Housing, Communities and Local Government",Homes England,DISPOSAL FEES - LEGAL,Development,BROWNE JACOBSON LLP,4/1/2022, £812.09 ,LAR,80121600,Business law services
"Ministry of Housing, Communities and Local Government",Homes England,DISPOSAL FEES - LEGAL,Development,BROWNE JACOBSON LLP,4/1/2022," £26,555.16 ",LAR,80121600,Business law services
"Ministry of Housing, Communities and Local Government",Homes England,LEGAL FEES (PROGRAMME - CDEL),Development,BROWNE JACOBSON LLP,4/8/2022,"-£1,200.00 ",LAR,80121600,Business law services
"Ministry of Housing, Communities and Local Government",Homes England,LEGAL FEES (PROGRAMME - RDEL),Development,BROWNE JACOBSON LLP,4/8/2022, £595.00 ,LAR,80121600,Business law services
"Ministry of Housing, Communities and Local Government",Homes England,LEGAL FEES (PROGRAMME - RDEL),Development,BROWNE JACOBSON LLP,4/8/2022," £24,051.60 ",LAR,80121600,Business law services
"Ministry of Housing, Communities and Local Government",Homes England,LEGAL FEES (PROGRAMME - RDEL),Development,BROWNE JACOBSON LLP,4/8/2022," £1,575.00 ",LAR,80121600,Business law services
"Ministry of Housing, Communities and Local Government",Homes England,DISPOSAL FEES - LEGAL,"Markets, Partners & Places",BROWNE JACOBSON LLP,4/8/2022," £10,800.00 ",LAR,80121600,Business law services
"Ministry of Housing, Communities and Local Government",Homes England,DISPOSAL FEES - LEGAL,"Markets, Partners & Places",BROWNE JACOBSON LLP,4/8/2022," £3,600.00 ",LAR,80121600,Business law services
"Ministry of Housing, Communities and Local Government",Homes England,LEGAL FEES (PROGRAMME - RDEL),"Markets, Partners & Places",BROWNE JACOBSON LLP,4/8/2022," £11,403.60 ",LAR,80121600,Business law services
"Ministry of Housing, Communities and Local Government",Homes England,LEGAL FEES (PROGRAMME - RDEL),"Markets, Partners & Places",BROWNE JACOBSON LLP,4/11/2022," £1,954.80 ",LAR,80121600,Business law services
"Ministry of Housing, Communities and Local Government",Homes England,LEGAL FEES (PROGRAMME - RDEL),Development,BROWNE JACOBSON LLP,4/12/2022," £15,228.00 ",LAR,80121600,Business law services
"Ministry of Housing, Communities and Local Government",Homes England,LEGAL FEES (PROGRAMME - CDEL),Development,BROWNE JACOBSON LLP,4/13/2022, £900.00 ,LAR,80121600,Business law services
"Ministry of Housing, Communities and Local Government",Homes England,LEGAL FEES (PROGRAMME - CDEL),Development,BROWNE JACOBSON LLP,4/13/2022," £2,449.80 ",LAR,80121600,Business law services
"Ministry of Housing, Communities and Local Government",Homes England,PROF FEES LOANS CAPITALISED,Investment,BROWNE JACOBSON LLP,4/22/2022," £17,100.00 ",LAR,80121600,Business law services
"Ministry of Housing, Communities and Local Government",Homes England,DISPOSAL FEES - LEGAL,Development,BROWNE JACOBSON LLP,4/25/2022," £3,051.60 ",LAR,80121600,Business law services
"Ministry of Housing, Communities and Local Government",Homes England,LEGAL FEES (PROGRAMME - RDEL),Development,BROWNE JACOBSON LLP,4/25/2022," £1,327.07 ",LAR,80121600,Business law services
"Ministry of Housing, Communities and Local Government",Homes England,LEGAL FEES (PROGRAMME - RDEL),"Markets, Partners & Places",BROWNE JACOBSON LLP,4/26/2022," £3,000.00 ",LAR,80121600,Business law services
"Ministry of Housing, Communities and Local Government",Homes England,LEGAL FEES (PROGRAMME - RDEL),Development,BROWNE JACOBSON LLP,4/27/2022," £2,432.40 ",LAR,80121600,Business law services
"Ministry of Housing, Communities and Local Government",Homes England,MISC PROFESSIONAL FEES,Development,BROWNE JACOBSON LLP,4/27/2022," £3,300.00 ",LAR,80121600,Business law services
"Ministry of Housing, Communities and Local Government",Homes England,LEGAL FEES (PROGRAMME - CDEL),Development,BROWNE JACOBSON LLP,4/28/2022," £4,150.80 ",LAR,80121600,Business law services
"Ministry of Housing, Communities and Local Government",Homes England,LEGAL FEES (PROGRAMME - RDEL),"Markets, Partners & Places",BROWNE JACOBSON LLP,4/29/2022," £3,000.00 ",LAR,80121600,Business law services
"Ministry of Housing, Communities and Local Government",Homes England,LEGAL FEES (PROGRAMME - RDEL),Development,BROWNE JACOBSON LLP,4/29/2022," £2,410.80 ",LAR,80121600,Business law services
"Ministry of Housing, Communities and Local Government",Homes England,RI - MONIITORING SURVEYOR FEES,Investment,BUILDING DESIGN PARTNERSHIP,4/1/2022,"-£4,224.00 ",LAR,81101500,Civil Engineering
"Ministry of Housing, Communities and Local Government",Homes England,RI - MONIITORING SURVEYOR FEES,Investment,BUILDING DESIGN PARTNERSHIP,4/7/2022," £2,310.00 ",LAR,81101500,Civil Engineering
"Ministry of Housing, Communities and Local Government",Homes England,RI - MONIITORING SURVEYOR FEES,Investment,BUILDING DESIGN PARTNERSHIP,4/14/2022," £2,112.00 ",LAR,81101500,Civil Engineering
"Ministry of Housing, Communities and Local Government",Homes England,RI - MONIITORING SURVEYOR FEES,Investment,BUILDING DESIGN PARTNERSHIP,4/28/2022," £2,112.00 ",LAR,81101500,Civil Engineering
"Ministry of Housing, Communities and Local Government",Homes England,ST FUND LOANS ADDITIONS,Investment,BROADFIELD HOMES LTD,4/8/2022," £41,095.51 ",LAR,None,Loans
"Ministry of Housing, Communities and Local Government",Homes England,MASTERPLANNING FEES,"Markets, Partners & Places",STANTEC UK LIMITED,4/6/2022," £15,499.92 ",LAR,81101500,Civil Engineering
"Ministry of Housing, Communities and Local Government",Homes England,ENGINEERING FEES,Development,STANTEC UK LIMITED,4/6/2022," £142,205.05 ",LAR,81101500,Civil Engineering
"Ministry of Housing, Communities and Local Government",Homes England,PROJECT MANAGEMENT,"Markets, Partners & Places",STANTEC UK LIMITED,4/6/2022," £25,680.00 ",LAR,80101600,Project management
"Ministry of Housing, Communities and Local Government",Homes England,MISC PROFESSIONAL FEES,"Markets, Partners & Places",STANTEC UK LIMITED,4/7/2022," £1,188.00 ",LAR,70123000,Animal control and welfare services
"Ministry of Housing, Communities and Local Government",Homes England,PROF FEES LOANS CAPITALISED,Investment,STANTEC UK LIMITED,4/8/2022," £3,000.00 ",LAR,81101500,Civil Engineering
"Ministry of Housing, Communities and Local Government",Homes England,OTHER PROFESSIONAL FEES,"Markets, Partners & Places",STANTEC UK LIMITED,4/11/2022," £2,100.00 ",LAR,80131800,Real estate management services
"Ministry of Housing, Communities and Local Government",Homes England,RI - MONIITORING SURVEYOR FEES,Investment,STANTEC UK LIMITED,4/27/2022," £11,880.00 ",LAR,81101500,Civil Engineering
"Ministry of Housing, Communities and Local Government",Homes England,ENGINEERING CONSULTANTS,Development,STANTEC UK LIMITED,4/29/2022," £4,200.00 ",LAR,81101500,Civil Engineering
"Ministry of Housing, Communities and Local Government",Homes England,MISC PROFESSIONAL FEES,Investment,BADENOCH & CLARK,4/11/2022," £3,839.40 ",LAR,80111600,Temporary personnel services
"Ministry of Housing, Communities and Local Government",Homes England,MISC PROFESSIONAL FEES,Investment,BADENOCH & CLARK,4/12/2022," £3,839.40 ",LAR,80111600,Temporary personnel services
"Ministry of Housing, Communities and Local Government",Homes England,MISC PROFESSIONAL FEES,Investment,BADENOCH & CLARK,4/21/2022," £3,071.52 ",LAR,80111600,Temporary personnel services
"Ministry of Housing, Communities and Local Government",Homes England,MISC PROFESSIONAL FEES,Investment,BADENOCH & CLARK,4/28/2022," £3,071.52 ",LAR,80111600,Temporary personnel services
"Ministry of Housing, Communities and Local Government",Homes England,RI - MONIITORING SURVEYOR FEES,Investment,RIDER LEVETT BUCKNALL UK LTD,4/28/2022," £1,680.00 ",LAR,81101500,Civil Engineering
"Ministry of Housing, Communities and Local Government",Homes England,MOBILES,Cido,BRITISH TELECOMMUNICATIONS PLC,4/4/2022, £401.79 ,LAR,83111500,Local and long distance telephone communications
"Ministry of Housing, Communities and Local Government",Homes England,CAP GRNTS TO LOCAL AUTHORITIES,Investment,BARNSLEY METROPOLITAN BOROUGH COUNCIL,4/1/2022," £22,108.00 ",PUB,None,Grants
"Ministry of Housing, Communities and Local Government",Homes England,SUNDRIES,Corporate Resources,BPP PROFESSIONAL EDUCATION LIMITED,4/22/2022," £2,069.99 ",LAR,86101800,In service training and manpower development
"Ministry of Housing, Communities and Local Government",Homes England,MISC PROFESSIONAL FEES,"Markets, Partners & Places",JACOBS UK LTD,4/8/2022," £5,998.80 ",LAR,80131800,Real estate management services
"Ministry of Housing, Communities and Local Government",Homes England,BUILDINGS-ELECTRICITY,Development,BRITISH GAS BUSINESS,4/26/2022, £323.35 ,LAR,83101800,Electric utilities
"Ministry of Housing, Communities and Local Government",Homes England,OCCUPIED RATES,Development,BIRMINGHAM CITY COUNCIL,4/25/2022," £6,784.00 ",PUB,80131500,Lease and rental of property or building
"Ministry of Housing, Communities and Local Government",Homes England,OCCUPIED RATES,Development,BIRMINGHAM CITY COUNCIL,4/25/2022," £5,988.00 ",PUB,80131500,Lease and rental of property or building
"Ministry of Housing, Communities and Local Government",Homes England,OCCUPIED RATES,Development,BIRMINGHAM CITY COUNCIL,4/25/2022," £10,112.00 ",PUB,80131500,Lease and rental of property or building
"Ministry of Housing, Communities and Local Government",Homes England,OCCUPIED RATES,Development,BIRMINGHAM CITY COUNCIL,4/25/2022," £5,760.00 ",PUB,80131500,Lease and rental of property or building
"Ministry of Housing, Communities and Local Government",Homes England,ST FUND LOANS ADDITIONS,Investment,BROTHER DEVELOPMENTS (WORSTHORNE) LTD,4/25/2022," £126,541.85 ",SMA,None,Loans
"Ministry of Housing, Communities and Local Government",Homes England,BUILDINGS-VACANT RATES,Development,BROMSGROVE DISTRICT COUNCIL,4/25/2022," £4,403.20 ",PUB,80131500,Lease and rental of property or building
"Ministry of Housing, Communities and Local Government",Homes England,BUILDINGS-VACANT RATES,Development,BROMSGROVE DISTRICT COUNCIL,4/25/2022," £11,648.00 ",PUB,80131500,Lease and rental of property or building
"Ministry of Housing, Communities and Local Government",Homes England,OCCUPIED RATES,Development,BROMSGROVE DISTRICT COUNCIL,4/25/2022," £5,632.00 ",PUB,80131500,Lease and rental of property or building
"Ministry of Housing, Communities and Local Government",Homes England,OTHER PROFESSIONAL FEES,Development,BTS,4/13/2022, £485.00 ,MIC,80131800,Real estate management services
"Ministry of Housing, Communities and Local Government",Homes England,CONTRACT WORKS,Development,BOND DEMOLITION LIMITED,4/21/2022," £2,640.61 ",SMA,72141500,Land preparation services
"Ministry of Housing, Communities and Local Government",Homes England,LUHBF Loans at FV Additions,Investment,BARCLAYS BANK PLC,4/5/2022," £1,119,764.00 ",LAR,None,Loans
"Ministry of Housing, Communities and Local Government",Homes England,LUHBF Loans Additions,Investment,BARCLAYS BANK PLC,4/28/2022," £1,552,391.29 ",LAR,None,Loans
"Ministry of Housing, Communities and Local Government",Homes England,BUILDINGS-VACANT RATES,"Markets, Partners & Places",BEDFORD BOROUGH COUNCIL,4/14/2022," £190,720.00 ",PUB,80131500,Lease and rental of property or building
"Ministry of Housing, Communities and Local Government",Homes England,ST FUND LOANS ADDITIONS,Investment,BERI PROPERTIES LIMITED,4/22/2022," £6,894.50 ",SMA,None,Loans
"Ministry of Housing, Communities and Local Government",Homes England,1ST PT COST/FEE INC UNINS LOSS,Development,BC LEGAL (OFFICE ACCOUNT),4/25/2022," £1,890.60 ",SMA,80121600,Business law services
"Ministry of Housing, Communities and Local Government",Homes England,PACKAGE MAINTENANCE & SUBSCRIP,Cido,BYTES SOFTWARE SERVICES LTD,4/21/2022," £3,112.10 ",LAR,43231500,Business function specific software
"Ministry of Housing, Communities and Local Government",Homes England,PACKAGE MAINTENANCE & SUBSCRIP,Cido,BYTES SOFTWARE SERVICES LTD,4/21/2022," £75,687.08 ",LAR,43231500,Business function specific software
"Ministry of Housing, Communities and Local Government",Homes England,MISC PROFESSIONAL FEES,Investment,BOSTON HALE LTD,4/25/2022," £76,388.58 ",SMA,80111600,Temporary personnel services
"Ministry of Housing, Communities and Local Government",Homes England,ST FUND LOANS ADDITIONS,Investment,BELFIELD KINGSKERSWELL LLP,4/19/2022," £330,000.00 ",SMA,None,Loans
"Ministry of Housing, Communities and Local Government",Homes England,OTHER PROFESSIONAL FEES,Development,BIRMINGHAM CITY COUNCIL,4/8/2022," £18,360.00 ",PUB,80131800,Real estate management services
"Ministry of Housing, Communities and Local Government",Homes England,Loan - Recharge std MS,Investment,BXS LIMITED PARTNERSHIP,4/27/2022,"-£2,220.00 ",MED,None,Loans
"Ministry of Housing, Communities and Local Government",Homes England,LT FUND LOANS (PS) ADDITIONS,Investment,BXS LIMITED PARTNERSHIP,4/27/2022," £6,449,253.49 ",MED,None,Loans
"Ministry of Housing, Communities and Local Government",Homes England,RI - MONIITORING SURVEYOR FEES,Investment,BNP PARIBAS REAL ESTATE,4/1/2022," £1,140.00 ",LAR,81101500,Civil Engineering
"Ministry of Housing, Communities and Local Government",Homes England,RI - MONIITORING SURVEYOR FEES,Investment,BNP PARIBAS REAL ESTATE,4/4/2022, £960.00 ,LAR,81101500,Civil Engineering
"Ministry of Housing, Communities and Local Government",Homes England,DISPOSAL FEES - PROPERTY AGENT,Development,BNP PARIBAS REAL ESTATE,4/6/2022," £11,400.00 ",LAR,80131600,Sale of property and building
"Ministry of Housing, Communities and Local Government",Homes England,DISPOSAL FEES - PROPERTY AGENT,Development,BNP PARIBAS REAL ESTATE,4/6/2022," £11,976.00 ",LAR,80131600,Sale of property and building
"Ministry of Housing, Communities and Local Government",Homes England,RI - MONIITORING SURVEYOR FEES,Investment,BNP PARIBAS REAL ESTATE,4/14/2022, £840.00 ,LAR,81101500,Civil Engineering
"Ministry of Housing, Communities and Local Government",Homes England,RI - MONIITORING SURVEYOR FEES,Investment,BNP PARIBAS REAL ESTATE,4/14/2022, £840.00 ,LAR,81101500,Civil Engineering
"Ministry of Housing, Communities and Local Government",Homes England,RI - MONIITORING SURVEYOR FEES,Investment,BNP PARIBAS REAL ESTATE,4/14/2022, £840.00 ,LAR,81101500,Civil Engineering
"Ministry of Housing, Communities and Local Government",Homes England,RI - MONIITORING SURVEYOR FEES,Investment,BNP PARIBAS REAL ESTATE,4/14/2022, £840.00 ,LAR,81101500,Civil Engineering
"Ministry of Housing, Communities and Local Government",Homes England,DISPOSAL FEES - PROPERTY AGENT,"Markets, Partners & Places",BNP PARIBAS REAL ESTATE,4/21/2022," £6,000.00 ",LAR,80131600,Sale of property and building
"Ministry of Housing, Communities and Local Government",Homes England,RI - MONIITORING SURVEYOR FEES,Investment,BNP PARIBAS REAL ESTATE,4/26/2022," £1,110.00 ",LAR,81101500,Civil Engineering
"Ministry of Housing, Communities and Local Government",Homes England,RI - SITE VALUATION FEES,Investment,BNP PARIBAS REAL ESTATE,4/28/2022," £3,540.00 ",LAR,80131800,Real estate management services
"Ministry of Housing, Communities and Local Government",Homes England,RI - SITE VALUATION FEES,Investment,BNP PARIBAS REAL ESTATE,4/28/2022," £6,900.00 ",LAR,80131800,Real estate management services
"Ministry of Housing, Communities and Local Government",Homes England,RI - MONIITORING SURVEYOR FEES,Investment,BNP PARIBAS REAL ESTATE,4/28/2022, £840.00 ,LAR,81101500,Civil Engineering
"Ministry of Housing, Communities and Local Government",Homes England,RI - MONIITORING SURVEYOR FEES,Investment,BNP PARIBAS REAL ESTATE,4/28/2022, £840.00 ,LAR,81101500,Civil Engineering
"Ministry of Housing, Communities and Local Government",Homes England,RI - MONIITORING SURVEYOR FEES,Investment,BNP PARIBAS REAL ESTATE,4/28/2022, £840.00 ,LAR,81101500,Civil Engineering
"Ministry of Housing, Communities and Local Government",Homes England,RI - MONIITORING SURVEYOR FEES,Investment,BNP PARIBAS REAL ESTATE,4/28/2022, £840.00 ,LAR,81101500,Civil Engineering
"Ministry of Housing, Communities and Local Government",Homes England,RI - MONIITORING SURVEYOR FEES,Investment,BNP PARIBAS REAL ESTATE,4/28/2022, £840.00 ,LAR,81101500,Civil Engineering
"Ministry of Housing, Communities and Local Government",Homes England,RI - MONIITORING SURVEYOR FEES,Investment,BNP PARIBAS REAL ESTATE,4/28/2022, £720.00 ,LAR,81101500,Civil Engineering
"Ministry of Housing, Communities and Local Government",Homes England,RI - MONIITORING SURVEYOR FEES,Development,BNP PARIBAS REAL ESTATE,4/29/2022, £780.00 ,LAR,81101500,Civil Engineering
"Ministry of Housing, Communities and Local Government",Homes England,RI - MONIITORING SURVEYOR FEES,Investment,BNP PARIBAS REAL ESTATE,4/29/2022," £1,020.00 ",LAR,81101500,Civil Engineering
"Ministry of Housing, Communities and Local Government",Homes England,ESTATE GENERAL MAINTENANCE,Development,BRIDGEWAY CONSULTING LIMITED,4/7/2022," £8,720.40 ",LAR,72101500,Building maintenance and repair services
"Ministry of Housing, Communities and Local Government",Homes England,ESTATE GENERAL MAINTENANCE,"Markets, Partners & Places",BROOKFIELD CONTRACTING & FARMING LTD,4/14/2022, £840.34 ,SMA,72101500,Building maintenance and repair services
"Ministry of Housing, Communities and Local Government",Homes England,ESTATE GENERAL MAINTENANCE,Development,BROOKFIELD CONTRACTING & FARMING LTD,4/26/2022," £2,004.00 ",SMA,72101500,Building maintenance and repair services
"Ministry of Housing, Communities and Local Government",Homes England,LEGAL FEES (PROGRAMME - RDEL),"Markets, Partners & Places",BOND DICKINSON LLP,4/4/2022," £25,200.00 ",LAR,80121600,Business law services
"Ministry of Housing, Communities and Local Government",Homes England,LEGAL FEES (PROGRAMME - RDEL),Development,BOND DICKINSON LLP,4/4/2022," £21,778.56 ",LAR,80121600,Business law services
"Ministry of Housing, Communities and Local Government",Homes England,LEGAL FEES (PROGRAMME - RDEL),Development,BOND DICKINSON LLP,4/6/2022," £8,429.40 ",LAR,80121600,Business law services
"Ministry of Housing, Communities and Local Government",Homes England,LEGAL FEES (PROGRAMME - RDEL),Investment,BOND DICKINSON LLP,4/7/2022," £8,288.40 ",LAR,80121600,Business law services
"Ministry of Housing, Communities and Local Government",Homes England,LEGAL FEES (PROGRAMME - RDEL),"Markets, Partners & Places",BOND DICKINSON LLP,4/8/2022," £3,000.00 ",LAR,80121600,Business law services
"Ministry of Housing, Communities and Local Government",Homes England,LEGAL FEES (PROGRAMME - RDEL),"Markets, Partners & Places",BOND DICKINSON LLP,4/8/2022," £16,571.40 ",LAR,80121600,Business law services
"Ministry of Housing, Communities and Local Government",Homes England,DISPOSAL FEES - LEGAL,Development,BOND DICKINSON LLP,4/12/2022," £48,004.80 ",LAR,80121600,Business law services
"Ministry of Housing, Communities and Local Government",Homes England,DISPOSAL FEES - LEGAL,"Markets, Partners & Places",BOND DICKINSON LLP,4/14/2022," £24,000.00 ",LAR,80121600,Business law services
"Ministry of Housing, Communities and Local Government",Homes England,LANDSCAPE MAINT-BUILT ESTATE,Development,G BURLEY & SONS LTD,4/1/2022, £384.00 ,LAR,72102900,Facility maintenance and repair services
"Ministry of Housing, Communities and Local Government",Homes England,LANDSCAPE MAINT-BUILT ESTATE,Development,G BURLEY & SONS LTD,4/7/2022, £408.00 ,LAR,72102900,Facility maintenance and repair services
"Ministry of Housing, Communities and Local Government",Homes England,ESTATE AGENT FEES,"Markets, Partners & Places",BERRYS,4/6/2022," £2,550.00 ",MED,80131600,Sale of property and building
"Ministry of Housing, Communities and Local Government",Homes England,CAP GRNTS TO PRIVATE SECTOR,Investment,RG SECURITIES (NO.2) LIMITED,4/27/2022," £502,230.00 ",SMA,None,Grants
"Ministry of Housing, Communities and Local Government",Homes England,CAP GRNTS TO PRIVATE SECTOR,Investment,THE COTTON WORKS MANAGEMENT COMPANY LIMITED,4/19/2022," £416,274.51 ",SMA,None,Grants
"Ministry of Housing, Communities and Local Government",Homes England,CAP GRNTS TO PRIVATE SECTOR,Investment,CANFORD PROPERTY MANAGEMENT LTD,4/11/2022," £54,127.26 ",MIC,None,Grants
"Ministry of Housing, Communities and Local Government",Homes England,CAP GRNTS TO PRIVATE SECTOR,Investment,NV BUILDINGS (SALFORD QUAYS) MANAGEMENT LTD,4/27/2022," £339,412.19 ",MIC,None,Grants
"Ministry of Housing, Communities and Local Government",Homes England,CAP GRNTS PUB SECTOR EXCL L A,Investment,STEPHENSON HOUSE MANAGEMENT COMPANY 2015 LTD,4/11/2022," £633,330.29 ",MIC,None,Grants
"Ministry of Housing, Communities and Local Government",Homes England,CAP GRNTS TO PRIVATE SECTOR,Investment,REVOLUTION PROPERTY MANAGEMENT LTD,4/11/2022," £1,561,440.86 ",SMA,None,Grants
"Ministry of Housing, Communities and Local Government",Homes England,CAP GRNTS TO PRIVATE SECTOR,Investment,NATIONWIDE MANAGERS LLP,4/20/2022," £342,105.51 ",MIC,None,Grants
"Ministry of Housing, Communities and Local Government",Homes England,CAP GRNTS TO PRIVATE SECTOR,Investment,REVOLUTION PROPERTY MANAGEMENT LTD,4/11/2022," £1,507,597.73 ",SMA,None,Grants
"Ministry of Housing, Communities and Local Government",Homes England,CAP GRNTS TO PRIVATE SECTOR,Investment,IMAGE (HEMEL HEMPSTEAD) MANAGEMENT COMPANY,4/20/2022," £957,744.00 ",MIC,None,Grants
"Ministry of Housing, Communities and Local Government",Homes England,CAP GRNTS TO PRIVATE SECTOR,Investment,VALLEY FOX LTD T/A WHITEGATES (BRADFORD),4/11/2022," £233,293.75 ",MIC,None,Grants
"Ministry of Housing, Communities and Local Government",Homes England,CAP GRNTS TO PRIVATE SECTOR,Investment,THE POINT BUILDING RTM LIMITED,4/11/2022," £219,932.66 ",SMA,None,Grants
"Ministry of Housing, Communities and Local Government",Homes England,CAP GRNTS TO PRIVATE SECTOR,Investment,THE PARK OCTAGON (NOTTINGHAM) MAN CO LTD,4/11/2022," £425,111.17 ",MIC,None,Grants
"Ministry of Housing, Communities and Local Government",Homes England,CAP GRNTS TO PRIVATE SECTOR,Investment,RENDALL AND RITTNER LIMITED,4/4/2022," £473,762.00 ",LAR,None,Grants
"Ministry of Housing, Communities and Local Government",Homes England,CAP GRNTS TO PRIVATE SECTOR,Investment,CITISPACE SERVICES LIMITED,4/19/2022," £296,246.68 ",MIC,None,Grants
"Ministry of Housing, Communities and Local Government",Homes England,CAP GRNTS TO PRIVATE SECTOR,Investment,RENDALL AND RITTNER,4/4/2022," £259,817.00 ",LAR,None,Grants
"Ministry of Housing, Communities and Local Government",Homes England,CAP GRNTS TO PRIVATE SECTOR,Investment,IMAGE (HEMEL HEMPSTEAD) MANAGEMENT COMPANY,4/27/2022," £1,910,694.00 ",MIC,None,Grants
"Ministry of Housing, Communities and Local Government",Homes England,CAP GRNTS PUB SECTOR EXCL L A,Investment,RESIDENTIAL MANAGEMENT GROUP LTD,4/14/2022," £132,795.00 ",LAR,None,Grants
"Ministry of Housing, Communities and Local Government",Homes England,CAP GRNTS TO PRIVATE SECTOR,Investment,SAVILLS (UK) LIMITED,4/12/2022," £125,418.00 ",LAR,None,Grants
"Ministry of Housing, Communities and Local Government",Homes England,CAP GRNTS TO PRIVATE SECTOR,Investment,EDWIN WATSON & SON,4/12/2022," £654,263.00 ",SMA,None,Grants
"Ministry of Housing, Communities and Local Government",Homes England,CAP GRNTS TO PRIVATE SECTOR,Investment,CENTRIUM I & II MANAGEMENT LIMITED,4/13/2022," £1,052,493.00 ",MIC,None,Grants
"Ministry of Housing, Communities and Local Government",Homes England,CAP GRNTS TO PRIVATE SECTOR,Investment,RENDALL AND RITTNER LIMITED,4/4/2022," £85,048.00 ",LAR,None,Grants
"Ministry of Housing, Communities and Local Government",Homes England,CAP GRNTS TO PRIVATE SECTOR,Investment,RENDALL AND RITTNER LIMITED,4/4/2022," £963,310.00 ",LAR,None,Grants
"Ministry of Housing, Communities and Local Government",Homes England,CAP GRNTS TO PRIVATE SECTOR,Investment,RENDALL AND RITTNER LIMITED,4/4/2022," £271,145.00 ",LAR,None,Grants
"Ministry of Housing, Communities and Local Government",Homes England,CAP GRNTS TO PRIVATE SECTOR,Investment,SMEATON BLOCK LTD,4/14/2022," £178,512.00 ",MIC,None,Grants
"Ministry of Housing, Communities and Local Government",Homes England,ESTATE GENERAL MAINTENANCE,Development,CORNTHWAITE TREE CARE LIMITED,4/1/2022," £3,096.00 ",SMA,72101500,Building maintenance and repair services
"Ministry of Housing, Communities and Local Government",Homes England,ESTATE GENERAL MAINTENANCE,Development,CORNTHWAITE TREE CARE LIMITED,4/7/2022, £840.00 ,SMA,72101500,Building maintenance and repair services
"Ministry of Housing, Communities and Local Government",Homes England,ESTATE GENERAL MAINTENANCE,Development,CORNTHWAITE TREE CARE LIMITED,4/21/2022, £720.00 ,SMA,72101500,Building maintenance and repair services
"Ministry of Housing, Communities and Local Government",Homes England,LANDSCAPE MAINT-BUILT ESTATE,Development,CRAIG WEST TURF LTD,4/28/2022," £5,208.00 ",SMA,72102900,Facility maintenance and repair services
"Ministry of Housing, Communities and Local Government",Homes England,PLANNING APPLICATIONS,Development,CAMPBELL REITH,4/4/2022," £1,874.40 ",MED,80131800,Real estate management services
"Ministry of Housing, Communities and Local Government",Homes England,MASTERPLANNING FEES,Development,CAMPBELL REITH,4/4/2022," £20,388.00 ",MED,81101500,Civil Engineering
"Ministry of Housing, Communities and Local Government",Homes England,DEVELOPMENT MANAGEMENT,"Markets, Partners & Places",CAMPBELL REITH,4/5/2022," £2,023.20 ",MED,80131800,Real estate management services
"Ministry of Housing, Communities and Local Government",Homes England,ENGINEERING CONSULTANTS,Development,CAMPBELL REITH,4/6/2022," £2,601.60 ",MED,81101500,Civil Engineering
"Ministry of Housing, Communities and Local Government",Homes England,OTHER PROFESSIONAL FEES,"Markets, Partners & Places",CAMPBELL REITH,4/7/2022," £64,005.04 ",MED,80131800,Real estate management services
"Ministry of Housing, Communities and Local Government",Homes England,RI - MONIITORING SURVEYOR FEES,Investment,CAMPBELL REITH,4/7/2022," £1,320.00 ",MED,81101500,Civil Engineering
"Ministry of Housing, Communities and Local Government",Homes England,RI - MONIITORING SURVEYOR FEES,Investment,CAMPBELL REITH,4/7/2022," £1,320.00 ",MED,81101500,Civil Engineering
"Ministry of Housing, Communities and Local Government",Homes England,ENGINEERING CONSULTANTS,Development,CAMPBELL REITH,4/12/2022," £3,294.76 ",MED,81101500,Civil Engineering
"Ministry of Housing, Communities and Local Government",Homes England,PLANNING APPLICATIONS,Development,CAMPBELL REITH,4/20/2022," £1,800.00 ",MED,80131800,Real estate management services
"Ministry of Housing, Communities and Local Government",Homes England,MASTERPLANNING FEES,Development,CAMPBELL REITH,4/20/2022," £18,684.92 ",MED,81101500,Civil Engineering
"Ministry of Housing, Communities and Local Government",Homes England,MASTERPLANNING FEES,Development,CAMPBELL REITH,4/20/2022," £33,579.74 ",MED,81101500,Civil Engineering
"Ministry of Housing, Communities and Local Government",Homes England,MASTERPLANNING FEES,"Markets, Partners & Places",CAMPBELL REITH,4/22/2022," £59,945.81 ",MED,81101500,Civil Engineering
"Ministry of Housing, Communities and Local Government",Homes England,ENGINEERING FEES,Development,CAMPBELL REITH,4/25/2022," £1,440.00 ",MED,81101500,Civil Engineering
"Ministry of Housing, Communities and Local Government",Homes England,MASTERPLANNING FEES,Development,CAMPBELL REITH,4/25/2022," £4,932.90 ",MED,81101500,Civil Engineering
"Ministry of Housing, Communities and Local Government",Homes England,RI - MONIITORING SURVEYOR FEES,Investment,CAMPBELL REITH,4/25/2022," £1,260.00 ",MED,81101500,Civil Engineering
"Ministry of Housing, Communities and Local Government",Homes England,MISC PROFESSIONAL FEES,"Markets, Partners & Places",CAMPBELL REITH,4/27/2022," £1,500.00 ",MED,80131800,Real estate management services
"Ministry of Housing, Communities and Local Government",Homes England,RI - MONIITORING SURVEYOR FEES,Investment,CAMPBELL REITH,4/28/2022," £1,740.00 ",MED,81101500,Civil Engineering
"Ministry of Housing, Communities and Local Government",Homes England,MISC PROFESSIONAL FEES,Development,CARTER JONAS,4/27/2022," £4,200.00 ",LAR,80131800,Real estate management services
"Ministry of Housing, Communities and Local Government",Homes England,RI - MONIITORING SURVEYOR FEES,Investment,CARTER JONAS,4/29/2022," £1,380.00 ",LAR,81101500,Civil Engineering
"Ministry of Housing, Communities and Local Government",Homes England,ESTATE GENERAL MAINTENANCE,Development,C A STAMP GROUNDS & AGRICULTURE,4/4/2022," £1,590.00 ",SMA,72101500,Building maintenance and repair services
"Ministry of Housing, Communities and Local Government",Homes England,ST FUND LOANS ADDITIONS,Investment,CREATE DEVELOPMENTS (LONGRIDGE) LTD,4/13/2022," £109,916.00 ",LAR,None,Loans
"Ministry of Housing, Communities and Local Government",Homes England,DATA CENTRE,Cido,CROWN HOSTING DATA CENTRES LIMITED,4/5/2022, £722.36 ,SMA,81112000,Data Services
"Ministry of Housing, Communities and Local Government",Homes England,DATA CENTRE,Cido,CROWN HOSTING DATA CENTRES LIMITED,4/28/2022," £1,860.00 ",SMA,81112000,Data Services
"Ministry of Housing, Communities and Local Government",Homes England,DATA CENTRE,Cido,CROWN HOSTING DATA CENTRES LIMITED,4/28/2022," £2,798.65 ",SMA,81112000,Data Services
"Ministry of Housing, Communities and Local Government",Homes England,DATA CENTRE,Cido,CROWN HOSTING DATA CENTRES LIMITED,4/28/2022," £1,259.39 ",SMA,81112000,Data Services
"Ministry of Housing, Communities and Local Government",Homes England,ESTATE GENERAL MAINTENANCE,Development,CHAFFIN WORKS,4/6/2022, £672.00 ,MED,72101500,Building maintenance and repair services
"Ministry of Housing, Communities and Local Government",Homes England,MANAGEMENT COSTS,Development,CHAFFIN WORKS,4/6/2022," £8,950.08 ",MED,80131800,Real estate management services
"Ministry of Housing, Communities and Local Government",Homes England,SUBS TO OTHER BODIES,Corporate Resources,BOTTOMLINE TECHNOLOGIES,4/11/2022," £5,693.59 ",LAR,94101600,Professional associations
"Ministry of Housing, Communities and Local Government",Homes England,ST FUND LOANS ADDITIONS,Investment,C&M CONTRACTORS (MANCHESTER) LTD,4/6/2022," £56,370.47 ",SMA,None,Loans
"Ministry of Housing, Communities and Local Government",Homes England,LAND REMEDIATION,Development,CAMBRIDGE ARCHAEOLOGY UNIT,4/1/2022," £17,569.20 ",LAR,72141500,Land preparation services
"Ministry of Housing, Communities and Local Government",Homes England,LAND REMEDIATION,Development,CAMBRIDGE ARCHAEOLOGY UNIT,4/1/2022," £1,305.60 ",LAR,72141500,Land preparation services
"Ministry of Housing, Communities and Local Government",Homes England,ST FUND LOANS ADDITIONS,Investment,COURT PROPERTY HOMES LIMITED,4/28/2022," £198,675.38 ",MIC,None,Loans
"Ministry of Housing, Communities and Local Government",Homes England,RI - MONIITORING SURVEYOR FEES,Investment,COLLIERS INTERNATIONAL PROPERTY CONSULTANTS,4/1/2022, £900.00 ,LAR,81101500,Civil Engineering
"Ministry of Housing, Communities and Local Government",Homes England,RI - MONIITORING SURVEYOR FEES,Investment,COLLIERS INTERNATIONAL PROPERTY CONSULTANTS,4/1/2022, £810.00 ,LAR,81101500,Civil Engineering
"Ministry of Housing, Communities and Local Government",Homes England,RI - MONIITORING SURVEYOR FEES,Investment,COLLIERS INTERNATIONAL PROPERTY CONSULTANTS,4/1/2022, £900.00 ,LAR,81101500,Civil Engineering
"Ministry of Housing, Communities and Local Government",Homes England,RI - MONIITORING SURVEYOR FEES,Investment,COLLIERS INTERNATIONAL PROPERTY CONSULTANTS,4/1/2022, £810.00 ,LAR,81101500,Civil Engineering
"Ministry of Housing, Communities and Local Government",Homes England,RI - MONIITORING SURVEYOR FEES,Investment,COLLIERS INTERNATIONAL PROPERTY CONSULTANTS,4/1/2022, £810.00 ,LAR,81101500,Civil Engineering
"Ministry of Housing, Communities and Local Government",Homes England,RI - MONIITORING SURVEYOR FEES,Investment,COLLIERS INTERNATIONAL PROPERTY CONSULTANTS,4/1/2022, £900.00 ,LAR,81101500,Civil Engineering
"Ministry of Housing, Communities and Local Government",Homes England,RI - MONIITORING SURVEYOR FEES,Investment,COLLIERS INTERNATIONAL PROPERTY CONSULTANTS,4/1/2022," £1,320.00 ",LAR,81101500,Civil Engineering
"Ministry of Housing, Communities and Local Government",Homes England,PROF FEES LOANS CAPITALISED,Investment,COLLIERS INTERNATIONAL PROPERTY CONSULTANTS,4/14/2022, £900.00 ,LAR,80131800,Real estate management services
"Ministry of Housing, Communities and Local Government",Homes England,RI - MONIITORING SURVEYOR FEES,Investment,COLLIERS INTERNATIONAL PROPERTY CONSULTANTS,4/21/2022, £840.00 ,LAR,81101500,Civil Engineering
"Ministry of Housing, Communities and Local Government",Homes England,RI - MONIITORING SURVEYOR FEES,Investment,COLLIERS INTERNATIONAL PROPERTY CONSULTANTS,4/21/2022, £840.00 ,LAR,81101500,Civil Engineering
"Ministry of Housing, Communities and Local Government",Homes England,LEGAL FEES (PROGRAMME - CDEL),Development,CLARKE WILLMOTT LLP,4/1/2022," £3,292.80 ",LAR,80121600,Business law services
"Ministry of Housing, Communities and Local Government",Homes England,LEGAL FEES (PROGRAMME - RDEL),Development,CLARKE WILLMOTT LLP,4/1/2022," £1,620.00 ",LAR,80121600,Business law services
"Ministry of Housing, Communities and Local Government",Homes England,AHP HOMEBUY AGENTS FEES,Investment,CLARKE WILLMOTT LLP,4/4/2022, £900.00 ,LAR,80121600,Business law services
"Ministry of Housing, Communities and Local Government",Homes England,DISPOSAL FEES - LEGAL,Development,CLARKE WILLMOTT LLP,4/4/2022," £6,180.00 ",LAR,80121600,Business law services
"Ministry of Housing, Communities and Local Government",Homes England,DISPOSAL FEES - LEGAL,Development,CLARKE WILLMOTT LLP,4/4/2022," £1,800.00 ",LAR,80121600,Business law services
"Ministry of Housing, Communities and Local Government",Homes England,LEGAL FEES (PROGRAMME - CDEL),Development,CLARKE WILLMOTT LLP,4/5/2022," £5,136.00 ",LAR,80121600,Business law services
"Ministry of Housing, Communities and Local Government",Homes England,AHP HOMEBUY AGENTS FEES,Investment,CLARKE WILLMOTT LLP,4/12/2022, £985.20 ,LAR,80121600,Business law services
"Ministry of Housing, Communities and Local Government",Homes England,LEGAL FEES (PROGRAMME - RDEL),Investment,CLARKE WILLMOTT LLP,4/14/2022, £720.00 ,LAR,80121600,Business law services
"Ministry of Housing, Communities and Local Government",Homes England,PROF FEES LOANS CAPITALISED,Investment,CLARKE WILLMOTT LLP,4/19/2022," £6,731.52 ",LAR,80121600,Business law services
"Ministry of Housing, Communities and Local Government",Homes England,LEGAL FEES (PROGRAMME - RDEL),Investment,CLARKE WILLMOTT LLP,4/21/2022, £840.00 ,LAR,80121600,Business law services
"Ministry of Housing, Communities and Local Government",Homes England,LEGAL FEES (PROGRAMME - RDEL),Investment,CLARKE WILLMOTT LLP,4/28/2022, £840.00 ,LAR,80121600,Business law services
"Ministry of Housing, Communities and Local Government",Homes England,LEGAL FEES (PROGRAMME - RDEL),Investment,CLARKE WILLMOTT LLP,4/28/2022, £485.76 ,LAR,80121600,Business law services
"Ministry of Housing, Communities and Local Government",Homes England,CLEANING,Development,CHURCHILL CONTRACT SERVICES LTD,4/5/2022," £3,669.21 ",SMA,76111500,General building and office cleaining and maintenance services
"Ministry of Housing, Communities and Local Government",Homes England,ST FUND LOANS ADDITIONS,Investment,CONNAH CONSTRUCTION LTD,4/26/2022," £87,984.36 ",MIC,None,Loans
"Ministry of Housing, Communities and Local Government",Homes England,TRAINING COURSES & CONFERENCES,Investment,CHARTERED INSTITUTE OF HOUSING,4/7/2022," £2,520.00 ",MED,86101800,In service training and manpower development
"Ministry of Housing, Communities and Local Government",Homes England,BUILDINGS-VACANT RATES,"Markets, Partners & Places",CENTRAL BEDFORDSHIRE COUNCIL,4/6/2022," £4,125.78 ",PUB,80131500,Lease and rental of property or building
"Ministry of Housing, Communities and Local Government",Homes England,BUILDINGS-VACANT RATES,"Markets, Partners & Places",CENTRAL BEDFORDSHIRE COUNCIL,4/6/2022," £4,125.78 ",PUB,80131500,Lease and rental of property or building
"Ministry of Housing, Communities and Local Government",Homes England,BUILDINGS-VACANT RATES,"Markets, Partners & Places",CENTRAL BEDFORDSHIRE COUNCIL,4/6/2022," £4,125.78 ",PUB,80131500,Lease and rental of property or building
"Ministry of Housing, Communities and Local Government",Homes England,BUILDINGS-VACANT RATES,"Markets, Partners & Places",CENTRAL BEDFORDSHIRE COUNCIL,4/6/2022," £4,125.78 ",PUB,80131500,Lease and rental of property or building
"Ministry of Housing, Communities and Local Government",Homes England,BUILDINGS-VACANT RATES,"Markets, Partners & Places",CENTRAL BEDFORDSHIRE COUNCIL,4/6/2022," £4,125.78 ",PUB,80131500,Lease and rental of property or building
"Ministry of Housing, Communities and Local Government",Homes England,ESTATE GENERAL MAINTENANCE,Development,C.M.A. (NEMESIS) LTD,4/12/2022, £393.60 ,SMA,72101500,Building maintenance and repair services
"Ministry of Housing, Communities and Local Government",Homes England,OTHER PROFESSIONAL FEES,Development,CWC GROUP,4/25/2022," £658,897.27 ",MED,None,Contributions
"Ministry of Housing, Communities and Local Government",Homes England,BUILDINGS-GAS,"Markets, Partners & Places",CHESTER & NEWMAN PLUMBING & HEATING SERVICES,4/13/2022, £312.00 ,SMA,83101600,Oil and gas utilities
"Ministry of Housing, Communities and Local Government",Homes England,BUILDINGS-VACANT RATES,"Markets, Partners & Places",CARLISLE CITY COUNCIL,4/4/2022," £8,180.76 ",PUB,80131500,Lease and rental of property or building
"Ministry of Housing, Communities and Local Government",Homes England,RI - MONIITORING SURVEYOR FEES,Investment,CB RICHARD ELLIS,4/8/2022," £3,000.00 ",LAR,81101500,Civil Engineering
"Ministry of Housing, Communities and Local Government",Homes England,ESTATE GENERAL MAINTENANCE,Development,CGM GROUP LTD,4/7/2022, £779.08 ,MED,72101500,Building maintenance and repair services
"Ministry of Housing, Communities and Local Government",Homes England,ESTATE GENERAL MAINTENANCE,"Markets, Partners & Places",CGM GROUP LTD,4/14/2022, £960.00 ,MED,72101500,Building maintenance and repair services
"Ministry of Housing, Communities and Local Government",Homes England,LT FUND LOANS (PS) ADDITIONS,Investment,CAMLAND HYTHE LIMITED,4/28/2022," £198,664.94 ",LAR,None,Loans
"Ministry of Housing, Communities and Local Government",Homes England,PRESS,"Markets, Partners & Places",XEIM LIMITED,4/21/2022," £3,844.80 ",LAR,55101500,Printed publications
"Ministry of Housing, Communities and Local Government",Homes England,EXTERNAL BUILDING MAINTENANCE,"Markets, Partners & Places",CHANNEL ENGINEERING LTD,4/25/2022, £633.60 ,SMA,72101500,Building maintenance and repair services
"Ministry of Housing, Communities and Local Government",Homes England,EXTERNAL BUILDING MAINTENANCE,"Markets, Partners & Places",CHANNEL ENGINEERING LTD,4/25/2022," £1,305.60 ",SMA,72101500,Building maintenance and repair services
"Ministry of Housing, Communities and Local Government",Homes England,ESTATE GENERAL MAINTENANCE,Development,CHANNEL ENGINEERING LTD,4/25/2022, £274.80 ,SMA,72101500,Building maintenance and repair services
"Ministry of Housing, Communities and Local Government",Homes England,ESTATE GENERAL MAINTENANCE,Development,CHANNEL ENGINEERING LTD,4/25/2022, £540.00 ,SMA,72101500,Building maintenance and repair services
"Ministry of Housing, Communities and Local Government",Homes England,ESTATE GENERAL MAINTENANCE,"Markets, Partners & Places",CHANNEL ENGINEERING LTD,4/27/2022, £270.00 ,SMA,72101500,Building maintenance and repair services
"Ministry of Housing, Communities and Local Government",Homes England,ESTATE GENERAL MAINTENANCE,"Markets, Partners & Places",CHANNEL ENGINEERING LTD,4/27/2022, £540.00 ,SMA,72101500,Building maintenance and repair services
"Ministry of Housing, Communities and Local Government",Homes England,EXTERNAL BUILDING MAINTENANCE,"Markets, Partners & Places",CHANNEL ENGINEERING LTD,4/27/2022, £306.00 ,SMA,72101500,Building maintenance and repair services
"Ministry of Housing, Communities and Local Government",Homes England,EXTERNAL BUILDING MAINTENANCE,Development,CHANNEL ENGINEERING LTD,4/27/2022, £826.80 ,SMA,72101500,Building maintenance and repair services
"Ministry of Housing, Communities and Local Government",Homes England,EXTERNAL BUILDING MAINTENANCE,Development,CHANNEL ENGINEERING LTD,4/27/2022," £1,453.20 ",SMA,72101500,Building maintenance and repair services
"Ministry of Housing, Communities and Local Government",Homes England,AGENCY STAFF,Cido,CABINET OFFICE HM SHARED SERVICES,4/8/2022," £16,110.00 ",PUB,80101500,Business and corporate management consultation services
"Ministry of Housing, Communities and Local Government",Homes England,STAFF RECRUITMENT COSTS,Corporate Resources,CABINET OFFICE HM SHARED SERVICES,4/21/2022," £14,479.67 ",PUB,80111700,Personnel Recruitment
"Ministry of Housing, Communities and Local Government",Homes England,STAFF WELFARE,Development,ENGIE FM LIMITED,4/26/2022, £683.10 ,LAR,46181500,Safety apparel
"Ministry of Housing, Communities and Local Government",Homes England,FURNITURE & EQUIPMENT-MAINT,Development,ENGIE FM LIMITED,4/26/2022, £311.57 ,LAR,72102900,Facility maintenance and repair services
"Ministry of Housing, Communities and Local Government",Homes England,LEGAL FEES (PROGRAMME - RDEL),Investment,MILLS & REEVE,4/5/2022," £3,120.00 ",LAR,80121600,Business law services
"Ministry of Housing, Communities and Local Government",Homes England,AHP HOMEBUY AGENTS FEES,Investment,MILLS & REEVE,4/6/2022, £904.80 ,LAR,80121600,Business law services
"Ministry of Housing, Communities and Local Government",Homes England,LEGAL FEES (PROGRAMME - CDEL),Development,MILLS & REEVE,4/8/2022," £6,000.00 ",LAR,80121600,Business law services
"Ministry of Housing, Communities and Local Government",Homes England,LEGAL FEES (PROGRAMME - CDEL),Development,MILLS & REEVE,4/8/2022," £10,328.99 ",LAR,80121600,Business law services
"Ministry of Housing, Communities and Local Government",Homes England,LEGAL FEES (PROGRAMME - RDEL),Investment,MILLS & REEVE,4/12/2022, £588.00 ,LAR,80121600,Business law services
"Ministry of Housing, Communities and Local Government",Homes England,LEGAL FEES (PROGRAMME - RDEL),Investment,MILLS & REEVE,4/12/2022, £600.00 ,LAR,80121600,Business law services
"Ministry of Housing, Communities and Local Government",Homes England,MISC PROFESSIONAL FEES,Development,TETRA TECH ENVIRONMENT PLANNING TRANSPORT LTD,4/28/2022," £4,980.00 ",LAR,77101500,Environmental auditing
"Ministry of Housing, Communities and Local Government",Homes England,DATA CENTRE,Cido,OASIS UK NORTH LIMITED,4/8/2022, £642.78 ,LAR,43222600,Network service equipment
"Ministry of Housing, Communities and Local Government",Homes England,MISC PROFESSIONAL FEES,Corporate Resources,DRIVERS JONAS DELOITTE,4/11/2022," £24,000.00 ",LAR,80101500,Business and Corporate Management Consultation Services
"Ministry of Housing, Communities and Local Government",Homes England,MISC PROFESSIONAL FEES,Corporate Resources,DRIVERS JONAS DELOITTE,4/11/2022," £96,000.00 ",LAR,80101500,Business and Corporate Management Consultation Services
"Ministry of Housing, Communities and Local Government",Homes England,MISC PROFESSIONAL FEES,Corporate Resources,DRIVERS JONAS DELOITTE,4/11/2022," £167,040.00 ",LAR,80101500,Business and Corporate Management Consultation Services
"Ministry of Housing, Communities and Local Government",Homes England,MISC PROFESSIONAL FEES,Corporate Resources,DRIVERS JONAS DELOITTE,4/11/2022," £620,962.80 ",LAR,80101500,Business and Corporate Management Consultation Services
"Ministry of Housing, Communities and Local Government",Homes England,PROPERTY SERVICES,"Markets, Partners & Places",DRIVERS JONAS DELOITTE,4/13/2022," £11,337.60 ",LAR,80111600,Temporary personnel services
"Ministry of Housing, Communities and Local Government",Homes England,MISC PROFESSIONAL FEES,Corporate Resources,DELOITTE & TOUCHE,4/20/2022," £154,502.87 ",LAR,84111700,Corporate Finance
"Ministry of Housing, Communities and Local Government",Homes England,MISC PROFESSIONAL FEES,Investment,CUSHMAN & WAKEFIELD DEBENHAM TIE LEUNG,4/1/2022," £15,331.08 ",LAR,80131800,Real estate management services
"Ministry of Housing, Communities and Local Government",Homes England,RI - MONIITORING SURVEYOR FEES,Investment,CUSHMAN & WAKEFIELD DEBENHAM TIE LEUNG,4/4/2022, £840.00 ,LAR,81101500,Civil Engineering
"Ministry of Housing, Communities and Local Government",Homes England,RI - MONIITORING SURVEYOR FEES,Investment,CUSHMAN & WAKEFIELD DEBENHAM TIE LEUNG,4/4/2022, £900.00 ,LAR,81101500,Civil Engineering
"Ministry of Housing, Communities and Local Government",Homes England,PROF FEES LOANS CAPITALISED,Investment,CUSHMAN & WAKEFIELD DEBENHAM TIE LEUNG,4/4/2022, £900.00 ,LAR,81101500,Civil Engineering
"Ministry of Housing, Communities and Local Government",Homes England,RI - MONIITORING SURVEYOR FEES,Investment,CUSHMAN & WAKEFIELD DEBENHAM TIE LEUNG,4/4/2022, £870.00 ,LAR,81101500,Civil Engineering
"Ministry of Housing, Communities and Local Government",Homes England,RI - MONIITORING SURVEYOR FEES,Investment,CUSHMAN & WAKEFIELD DEBENHAM TIE LEUNG,4/4/2022, £900.00 ,LAR,81101500,Civil Engineering
"Ministry of Housing, Communities and Local Government",Homes England,RI - MONIITORING SURVEYOR FEES,Investment,CUSHMAN & WAKEFIELD DEBENHAM TIE LEUNG,4/4/2022, £840.00 ,LAR,81101500,Civil Engineering
"Ministry of Housing, Communities and Local Government",Homes England,RI - MONIITORING SURVEYOR FEES,Investment,CUSHMAN & WAKEFIELD DEBENHAM TIE LEUNG,4/4/2022, £600.00 ,LAR,81101500,Civil Engineering
"Ministry of Housing, Communities and Local Government",Homes England,RI - MONIITORING SURVEYOR FEES,Investment,CUSHMAN & WAKEFIELD DEBENHAM TIE LEUNG,4/5/2022, £870.00 ,LAR,81101500,Civil Engineering
"Ministry of Housing, Communities and Local Government",Homes England,RI - MONIITORING SURVEYOR FEES,Investment,CUSHMAN & WAKEFIELD DEBENHAM TIE LEUNG,4/5/2022, £840.00 ,LAR,81101500,Civil Engineering
"Ministry of Housing, Communities and Local Government",Homes England,VALUATION FEES,Development,CUSHMAN & WAKEFIELD DEBENHAM TIE LEUNG,4/5/2022," £2,100.00 ",LAR,80131800,Real estate management services
"Ministry of Housing, Communities and Local Government",Homes England,MISC PROFESSIONAL FEES,Development,CUSHMAN & WAKEFIELD DEBENHAM TIE LEUNG,4/5/2022," £11,700.00 ",LAR,80131800,Real estate management services
"Ministry of Housing, Communities and Local Government",Homes England,PROPERTY SERVICES,"Markets, Partners & Places",CUSHMAN & WAKEFIELD DEBENHAM TIE LEUNG,4/5/2022," £38,956.80 ",LAR,80131800,Real estate management services
"Ministry of Housing, Communities and Local Government",Homes England,MISC PROFESSIONAL FEES,Development,CUSHMAN & WAKEFIELD DEBENHAM TIE LEUNG,4/6/2022," £1,020.00 ",LAR,80131800,Real estate management services
"Ministry of Housing, Communities and Local Government",Homes England,PROPERTY SERVICES,"Markets, Partners & Places",CUSHMAN & WAKEFIELD DEBENHAM TIE LEUNG,4/6/2022," £1,020.00 ",LAR,80131800,Real estate management services
"Ministry of Housing, Communities and Local Government",Homes England,PROF FEES LOANS CAPITALISED,Investment,CUSHMAN & WAKEFIELD DEBENHAM TIE LEUNG,4/7/2022," £6,000.00 ",LAR,80131800,Real estate management services
"Ministry of Housing, Communities and Local Government",Homes England,PROF FEES LOANS CAPITALISED,Investment,CUSHMAN & WAKEFIELD DEBENHAM TIE LEUNG,4/7/2022," £6,000.00 ",LAR,80131800,Real estate management services
"Ministry of Housing, Communities and Local Government",Homes England,RI - MONIITORING SURVEYOR FEES,Investment,CUSHMAN & WAKEFIELD DEBENHAM TIE LEUNG,4/7/2022, £900.00 ,LAR,81101500,Civil Engineering
"Ministry of Housing, Communities and Local Government",Homes England,RI - MONIITORING SURVEYOR FEES,Investment,CUSHMAN & WAKEFIELD DEBENHAM TIE LEUNG,4/7/2022, £900.00 ,LAR,81101500,Civil Engineering
"Ministry of Housing, Communities and Local Government",Homes England,RI - MONIITORING SURVEYOR FEES,Investment,CUSHMAN & WAKEFIELD DEBENHAM TIE LEUNG,4/7/2022, £900.00 ,LAR,81101500,Civil Engineering
"Ministry of Housing, Communities and Local Government",Homes England,RI - MONIITORING SURVEYOR FEES,Investment,CUSHMAN & WAKEFIELD DEBENHAM TIE LEUNG,4/7/2022, £900.00 ,LAR,81101500,Civil Engineering
"Ministry of Housing, Communities and Local Government",Homes England,PROPERTY SERVICES,Development,CUSHMAN & WAKEFIELD DEBENHAM TIE LEUNG,4/8/2022," £9,600.00 ",LAR,80131800,Real estate management services
"Ministry of Housing, Communities and Local Government",Homes England,RI - MONIITORING SURVEYOR FEES,Investment,CUSHMAN & WAKEFIELD DEBENHAM TIE LEUNG,4/11/2022," £1,200.00 ",LAR,81101500,Civil Engineering
"Ministry of Housing, Communities and Local Government",Homes England,RI - MONIITORING SURVEYOR FEES,Investment,CUSHMAN & WAKEFIELD DEBENHAM TIE LEUNG,4/11/2022," £1,020.00 ",LAR,81101500,Civil Engineering
"Ministry of Housing, Communities and Local Government",Homes England,RI - MONIITORING SURVEYOR FEES,Investment,CUSHMAN & WAKEFIELD DEBENHAM TIE LEUNG,4/11/2022, £840.00 ,LAR,81101500,Civil Engineering
"Ministry of Housing, Communities and Local Government",Homes England,MISC PROFESSIONAL FEES,Investment,CUSHMAN & WAKEFIELD DEBENHAM TIE LEUNG,4/11/2022," £8,074.80 ",LAR,80131800,Real estate management services
"Ministry of Housing, Communities and Local Government",Homes England,PROPERTY SERVICES,Development,CUSHMAN & WAKEFIELD DEBENHAM TIE LEUNG,4/13/2022," £1,680.00 ",LAR,80131800,Real estate management services
"Ministry of Housing, Communities and Local Government",Homes England,PROPERTY SERVICES,Development,CUSHMAN & WAKEFIELD DEBENHAM TIE LEUNG,4/13/2022," £2,850.00 ",LAR,80131800,Real estate management services
"Ministry of Housing, Communities and Local Government",Homes England,RI - MONIITORING SURVEYOR FEES,Investment,CUSHMAN & WAKEFIELD DEBENHAM TIE LEUNG,4/14/2022, £960.00 ,LAR,81101500,Civil Engineering
"Ministry of Housing, Communities and Local Government",Homes England,RI - MONIITORING SURVEYOR FEES,Investment,CUSHMAN & WAKEFIELD DEBENHAM TIE LEUNG,4/14/2022," £1,020.00 ",LAR,81101500,Civil Engineering
"Ministry of Housing, Communities and Local Government",Homes England,RI - MONIITORING SURVEYOR FEES,Investment,CUSHMAN & WAKEFIELD DEBENHAM TIE LEUNG,4/14/2022, £900.00 ,LAR,81101500,Civil Engineering
"Ministry of Housing, Communities and Local Government",Homes England,RI - MONIITORING SURVEYOR FEES,Investment,CUSHMAN & WAKEFIELD DEBENHAM TIE LEUNG,4/14/2022, £960.00 ,LAR,81101500,Civil Engineering
"Ministry of Housing, Communities and Local Government",Homes England,PROF FEES LOANS CAPITALISED,Investment,CUSHMAN & WAKEFIELD DEBENHAM TIE LEUNG,4/22/2022," £54,000.00 ",LAR,80131800,Real estate management services
"Ministry of Housing, Communities and Local Government",Homes England,MANAGEMENT COSTS,Development,CUSHMAN & WAKEFIELD DEBENHAM TIE LEUNG,4/29/2022," £1,530.00 ",LAR,80131800,Real estate management services
"Ministry of Housing, Communities and Local Government",Homes England,PROF FEES LOANS CAPITALISED,Investment,CUSHMAN & WAKEFIELD DEBENHAM TIE LEUNG,4/29/2022," £3,120.00 ",LAR,81101500,Civil Engineering
"Ministry of Housing, Communities and Local Government",Homes England,LANDSCAPING & PLANTS,Development,DEEDMAN TROPICAL PLANT HIRE COMPANY,4/26/2022, £393.60 ,SMA,10161600,Floral plants
"Ministry of Housing, Communities and Local Government",Homes England,LANDSCAPING & PLANTS,Development,DEEDMAN TROPICAL PLANT HIRE COMPANY,4/26/2022," £2,680.10 ",SMA,10161600,Floral plants
"Ministry of Housing, Communities and Local Government",Homes England,LANDSCAPING & PLANTS,Development,DEEDMAN TROPICAL PLANT HIRE COMPANY,4/29/2022, £327.60 ,SMA,10161600,Floral plants
"Ministry of Housing, Communities and Local Government",Homes England,LANDSCAPING & PLANTS,Development,DEEDMAN TROPICAL PLANT HIRE COMPANY,4/29/2022, £449.28 ,SMA,10161600,Floral plants
"Ministry of Housing, Communities and Local Government",Homes England,PRINTING & STATIONERY,Cido,DARWIN PRESS,4/1/2022, £438.00 ,SMA,44121600,Desk supplies
"Ministry of Housing, Communities and Local Government",Homes England,LEGAL FEES (PROGRAMME - RDEL),Investment,DARWIN PRESS,4/27/2022," £1,072.80 ",SMA,14111800,Business use papers
"Ministry of Housing, Communities and Local Government",Homes England,CONTRACT WORKS,"Markets, Partners & Places",DSM DEMOLITION LIMITED,4/13/2022," £16,235.87 ",MED,72141500,Land preparation services
"Ministry of Housing, Communities and Local Government",Homes England,CONTRACT WORKS,"Markets, Partners & Places",DSM DEMOLITION LIMITED,4/26/2022," £26,054.83 ",MED,72141500,Land preparation services
"Ministry of Housing, Communities and Local Government",Homes England,TRAINING COURSES & CONFERENCES,Investment,DODS,4/28/2022, £354.00 ,MED,86101800,In service training and manpower development
"Ministry of Housing, Communities and Local Government",Homes England,BUILDINGS-VACANT RATES,Development,DERBY CITY COUNCIL,4/26/2022," £3,450.00 ",PUB,80131500,Lease and rental of property or building
"Ministry of Housing, Communities and Local Government",Homes England,CONTRACT WORKS,"Markets, Partners & Places",DUNELM GEOTECHNICAL & ENVIRONMENTAL LTD,4/26/2022," £166,828.74 ",MED,72141500,Land preparation services
"Ministry of Housing, Communities and Local Government",Homes England,TRAINING COURSES & CONFERENCES,Investment,DNA COACH,4/19/2022," £2,148.00 ",SMA,86101800,In service training and manpower development
"Ministry of Housing, Communities and Local Government",Homes England,LEGAL FEES (PROGRAMME - RDEL),"Markets, Partners & Places",DWF LLP,4/1/2022, £285.60 ,LAR,80121600,Business law services
"Ministry of Housing, Communities and Local Government",Homes England,LEGAL FEES (PROGRAMME - RDEL),"Markets, Partners & Places",DWF LLP,4/1/2022, £900.00 ,LAR,80121600,Business law services
"Ministry of Housing, Communities and Local Government",Homes England,DISPOSAL FEES - LEGAL,"Markets, Partners & Places",DWF LLP,4/4/2022," £7,803.60 ",LAR,80121600,Business law services
"Ministry of Housing, Communities and Local Government",Homes England,LEGAL FEES (PROGRAMME - RDEL),"Markets, Partners & Places",DWF LLP,4/22/2022, £294.00 ,LAR,80121600,Business law services
"Ministry of Housing, Communities and Local Government",Homes England,LEGAL FEES (PROGRAMME - RDEL),Development,DWF LLP,4/28/2022," £7,764.00 ",LAR,80121600,Business law services
"Ministry of Housing, Communities and Local Government",Homes England,ST FUND LOANS ADDITIONS,Investment,DURLEY ROAD DEVELOPMENTS LLP,4/7/2022," £410,000.00 ",SMA,None,Loans
"Ministry of Housing, Communities and Local Government",Homes England,RENT PAYABLE,Development,DERBY CITY COUNCIL,4/26/2022, £412.00 ,PUB,80131500,Lease and rental of property or building
"Ministry of Housing, Communities and Local Government",Homes England,TAXIS,Development,DEAN TAXI LIMITED,4/7/2022, £384.40 ,SMA,78111800,Passenger road transportation
"Ministry of Housing, Communities and Local Government",Homes England,ESTATE GENERAL MAINTENANCE,Development,THE WATT GROUP (NORTH EAST) LTD,4/7/2022, £826.80 ,SMA,72101500,Building maintenance and repair services
"Ministry of Housing, Communities and Local Government",Homes England,ESTATE GENERAL MAINTENANCE,Development,THE WATT GROUP (NORTH EAST) LTD,4/7/2022," £2,147.47 ",SMA,72101500,Building maintenance and repair services
"Ministry of Housing, Communities and Local Government",Homes England,DRAINS & SEWERS,Development,DRAINAGE INVESTIGATION SOLUTIONS NW LTD,4/12/2022, £900.00 ,SMA,72101500,Building maintenance and repair services
"Ministry of Housing, Communities and Local Government",Homes England,NETWORKS,Cido,DAISY CORPORATE SERVICES TRADING LIMITED,4/7/2022," £5,520.36 ",LAR,81112100,Internet Services
"Ministry of Housing, Communities and Local Government",Homes England,NETWORKS,Cido,DAISY CORPORATE SERVICES TRADING LIMITED,4/7/2022," £5,520.36 ",LAR,81112100,Internet Services
"Ministry of Housing, Communities and Local Government",Homes England,MANAGEMENT COSTS,Development,DYNAMICS SECURITY SERVICES UK LTD,4/14/2022, £924.94 ,MIC,80131800,Real estate management services
"Ministry of Housing, Communities and Local Government",Homes England,MANAGEMENT COSTS,Development,DYNAMICS SECURITY SERVICES UK LTD,4/27/2022," £1,065.30 ",MIC,80131800,Real estate management services
"Ministry of Housing, Communities and Local Government",Homes England,TRAINING COURSES & CONFERENCES,Development,DEBRETTS LIMITED,4/29/2022," £4,680.00 ",SMA,86101800,In service training and manpower development
"Ministry of Housing, Communities and Local Government",Homes England,TRAINING COURSES & CONFERENCES,Development,DEBRETTS LIMITED,4/29/2022," £4,680.00 ",SMA,86101800,In service training and manpower development
"Ministry of Housing, Communities and Local Government",Homes England,DISPOSAL FEES - LEGAL,Development,DWF LAW LLP,4/1/2022," £9,934.92 ",LAR,80121600,Business law services
"Ministry of Housing, Communities and Local Government",Homes England,LEGAL FEES (PROGRAMME - CDEL),Development,DWF LAW LLP,4/4/2022," £1,740.00 ",LAR,80121600,Business law services
"Ministry of Housing, Communities and Local Government",Homes England,DISPOSAL FEES - LEGAL,Development,DWF LAW LLP,4/5/2022, £900.00 ,LAR,80121600,Business law services
"Ministry of Housing, Communities and Local Government",Homes England,AGENCY STAFF,Cido,DWF LAW LLP,4/5/2022, £420.00 ,LAR,80121600,Business law services
"Ministry of Housing, Communities and Local Government",Homes England,AGENCY STAFF,Cido,DWF LAW LLP,4/13/2022, £600.00 ,LAR,80121600,Business law services
"Ministry of Housing, Communities and Local Government",Homes England,AGENCY STAFF,Cido,DWF LAW LLP,4/13/2022, £600.00 ,LAR,80121600,Business law services
"Ministry of Housing, Communities and Local Government",Homes England,AGENCY STAFF,Cido,DWF LAW LLP,4/13/2022, £420.00 ,LAR,80121600,Business law services
"Ministry of Housing, Communities and Local Government",Homes England,AGENCY STAFF,Cido,DWF LAW LLP,4/13/2022, £420.00 ,LAR,80121600,Business law services
"Ministry of Housing, Communities and Local Government",Homes England,AGENCY STAFF,Cido,DWF LAW LLP,4/13/2022, £420.00 ,LAR,80121600,Business law services
"Ministry of Housing, Communities and Local Government",Homes England,AGENCY STAFF,Cido,DWF LAW LLP,4/13/2022, £600.00 ,LAR,80121600,Business law services
"Ministry of Housing, Communities and Local Government",Homes England,AGENCY STAFF,Cido,DWF LAW LLP,4/14/2022, £600.00 ,LAR,80121600,Business law services
"Ministry of Housing, Communities and Local Government",Homes England,AGENCY STAFF,Chief Risk Officer,DWF LAW LLP,4/20/2022, £420.00 ,LAR,80121600,Business law services
"Ministry of Housing, Communities and Local Government",Homes England,AGENCY STAFF,Cido,DWF LAW LLP,4/20/2022, £600.00 ,LAR,80121600,Business law services
"Ministry of Housing, Communities and Local Government",Homes England,AGENCY STAFF,Cido,DWF LAW LLP,4/20/2022, £420.00 ,LAR,80121600,Business law services
"Ministry of Housing, Communities and Local Government",Homes England,AGENCY STAFF,Cido,DWF LAW LLP,4/20/2022, £600.00 ,LAR,80121600,Business law services
"Ministry of Housing, Communities and Local Government",Homes England,LEGAL FEES (ADMIN ONLY),Cido,DWF LAW LLP,4/20/2022, £600.00 ,LAR,80121600,Business law services
"Ministry of Housing, Communities and Local Government",Homes England,AGENCY STAFF,Cido,DWF LAW LLP,4/20/2022, £420.00 ,LAR,80121600,Business law services
"Ministry of Housing, Communities and Local Government",Homes England,LEGAL FEES (PROGRAMME - RDEL),Development,DWF LAW LLP,4/21/2022," £1,380.00 ",LAR,80121600,Business law services
"Ministry of Housing, Communities and Local Government",Homes England,DISPOSAL FEES - LEGAL,Development,DWF LAW LLP,4/26/2022, £810.00 ,LAR,80121600,Business law services
"Ministry of Housing, Communities and Local Government",Homes England,PROF FEES LOANS CAPITALISED,Investment,DWF LAW LLP,4/27/2022," £25,448.40 ",LAR,80121600,Business law services
"Ministry of Housing, Communities and Local Government",Homes England,LEGAL FEES (PROGRAMME - RDEL),"Markets, Partners & Places",DWF LAW LLP,4/27/2022," £2,056.92 ",LAR,80121600,Business law services
"Ministry of Housing, Communities and Local Government",Homes England,PROF FEES LOANS CAPITALISED,Investment,DWF LAW LLP,4/28/2022," £14,067.00 ",LAR,80121600,Business law services
"Ministry of Housing, Communities and Local Government",Homes England,DISPOSAL FEES - LEGAL,Development,DWF LAW LLP,4/28/2022," £1,200.00 ",LAR,80121600,Business law services
"Ministry of Housing, Communities and Local Government",Homes England,DISPOSAL FEES - LEGAL,Development,DWF LAW LLP,4/28/2022," £1,807.20 ",LAR,80121600,Business law services
"Ministry of Housing, Communities and Local Government",Homes England,BESPOKE DEVELOPMENT SUPPORT,Cido,DB GROUP LTD T/A ESUASIVE,4/5/2022," £3,672.00 ",SMA,80111600,Temporary personnel services
"Ministry of Housing, Communities and Local Government",Homes England,PACKAGE MAINTENANCE & SUBSCRIP,Cido,DB GROUP LTD T/A ESUASIVE,4/21/2022," £5,940.00 ",SMA,80111600,Temporary personnel services
"Ministry of Housing, Communities and Local Government",Homes England,LANDSCAPE ARCHITECT FEES,Development,WOOD ENVIRONMENT & INFRASTRUCTURE SOLUTIONS,4/1/2022," £25,199.04 ",LAR,77101700,Environmental advisory services 
"Ministry of Housing, Communities and Local Government",Homes England,OTHER PROFESSIONAL FEES,"Markets, Partners & Places",WOOD ENVIRONMENT & INFRASTRUCTURE SOLUTIONS,4/4/2022," £18,275.43 ",LAR,80131800,Real estate management services
"Ministry of Housing, Communities and Local Government",Homes England,ENGINEERING CONSULTANTS,"Markets, Partners & Places",WOOD ENVIRONMENT & INFRASTRUCTURE SOLUTIONS,4/19/2022," £24,296.40 ",LAR,81101500,Civil Engineering
"Ministry of Housing, Communities and Local Government",Homes England,MASTERPLANNING FEES,Development,WOOD ENVIRONMENT & INFRASTRUCTURE SOLUTIONS,4/20/2022," £59,610.00 ",LAR,81101500,Civil Engineering
"Ministry of Housing, Communities and Local Government",Homes England,PLANNING APPLICATIONS,"Markets, Partners & Places",WOOD ENVIRONMENT & INFRASTRUCTURE SOLUTIONS,4/25/2022," £32,130.00 ",LAR,80131800,Real estate management services
"Ministry of Housing, Communities and Local Government",Homes England,ENVIRONMENTAL ASSESMENT,"Markets, Partners & Places",WOOD ENVIRONMENT & INFRASTRUCTURE SOLUTIONS,4/25/2022," £3,540.00 ",LAR,77101500,Environmental auditing
"Ministry of Housing, Communities and Local Government",Homes England,PROJECT MANAGEMENT,Development,WOOD ENVIRONMENT & INFRASTRUCTURE SOLUTIONS,4/29/2022," £12,342.00 ",LAR,80101600,Project management
"Ministry of Housing, Communities and Local Government",Homes England,PRESS,"Markets, Partners & Places",ESTATES GAZETTE,4/27/2022," £7,380.00 ",MED,55101500,Printed publications
"Ministry of Housing, Communities and Local Government",Homes England,PRINTING & STATIONERY,Development,REED BUSINESS INFORMATION LIMITED,4/4/2022," £5,620.40 ",MED,44121600,Desk supplies
"Ministry of Housing, Communities and Local Government",Homes England,L&OD STRATEGIC - HR USE ONLY,Corporate Resources,ERNST & YOUNG,4/12/2022," £17,413.81 ",LAR,86101800,In service training and manpower development
"Ministry of Housing, Communities and Local Government",Homes England,MISC PROFESSIONAL FEES,"Markets, Partners & Places",ERNST & YOUNG,4/19/2022," £17,571.26 ",LAR,80161500,Management support services
"Ministry of Housing, Communities and Local Government",Homes England,ENGINEERING FEES,Development,EGNIOL CONSULTING LIMITED,4/13/2022," £2,400.00 ",SMA,81101500,Civil Engineering
"Ministry of Housing, Communities and Local Government",Homes England,ENGINEERING FEES,Development,EGNIOL CONSULTING LIMITED,4/14/2022," £2,928.00 ",SMA,81101500,Civil Engineering
"Ministry of Housing, Communities and Local Government",Homes England,REWARD & EXCELLENCE,Corporate Resources,EDENRED (UK GROUP) LTD,4/6/2022," £1,500.00 ",LAR,80111500,Human resource development
"Ministry of Housing, Communities and Local Government",Homes England,ST FUND LOANS ADDITIONS,Investment,EDG IRONMONGER LTD,4/7/2022," £244,494.00 ",SMA,None,Loans
"Ministry of Housing, Communities and Local Government",Homes England,LEGAL FEES (PROGRAMME - RDEL),Development,EVERSHEDS CLIENT ACCOUNT,4/1/2022," £1,254.00 ",LAR,80121600,Business law services
"Ministry of Housing, Communities and Local Government",Homes England,LEGAL FEES (PROGRAMME - RDEL),"Markets, Partners & Places",EVERSHEDS CLIENT ACCOUNT,4/5/2022," £3,880.80 ",LAR,80121600,Business law services
"Ministry of Housing, Communities and Local Government",Homes England,LEGAL FEES (PROGRAMME - RDEL),"Markets, Partners & Places",EVERSHEDS CLIENT ACCOUNT,4/6/2022," £5,125.20 ",LAR,80121600,Business law services
"Ministry of Housing, Communities and Local Government",Homes England,LEGAL FEES (PROGRAMME - RDEL),"Markets, Partners & Places",EVERSHEDS CLIENT ACCOUNT,4/6/2022," £10,884.02 ",LAR,80121600,Business law services
"Ministry of Housing, Communities and Local Government",Homes England,LEGAL FEES (PROGRAMME - RDEL),"Markets, Partners & Places",EVERSHEDS CLIENT ACCOUNT,4/7/2022," £1,500.00 ",LAR,80121600,Business law services
"Ministry of Housing, Communities and Local Government",Homes England,LEGAL FEES (PROGRAMME - RDEL),"Markets, Partners & Places",EVERSHEDS CLIENT ACCOUNT,4/11/2022," £4,800.00 ",LAR,80121600,Business law services
"Ministry of Housing, Communities and Local Government",Homes England,PROF FEES LOANS CAPITALISED,Investment,EVERSHEDS CLIENT ACCOUNT,4/12/2022," £132,000.00 ",LAR,80121600,Business law services
"Ministry of Housing, Communities and Local Government",Homes England,LEGAL FEES (PROGRAMME - RDEL),"Markets, Partners & Places",EVERSHEDS CLIENT ACCOUNT,4/25/2022," £6,600.00 ",LAR,80121600,Business law services
"Ministry of Housing, Communities and Local Government",Homes England,LEGAL FEES (PROGRAMME - RDEL),"Markets, Partners & Places",EVERSHEDS CLIENT ACCOUNT,4/26/2022," £24,180.00 ",LAR,80121600,Business law services
"Ministry of Housing, Communities and Local Government",Homes England,LEGAL FEES (PROGRAMME - CDEL),Development,EVERSHEDS CLIENT ACCOUNT,4/26/2022," £7,698.00 ",LAR,80121600,Business law services
"Ministry of Housing, Communities and Local Government",Homes England,LEGAL FEES (PROGRAMME - RDEL),Investment,EVERSHEDS CLIENT ACCOUNT,4/27/2022," £2,756.40 ",LAR,80121600,Business law services
"Ministry of Housing, Communities and Local Government",Homes England,ST FUND LOANS ADDITIONS,Investment,EVAN HOMES (TOCKWITH) LTD,4/26/2022," £384,001.64 ",MIC,None,Loans
"Ministry of Housing, Communities and Local Government",Homes England,ESTATE GENERAL MAINTENANCE,Development,ECOLOGICAL LAND MANGEMENT LTD,4/6/2022, £648.00 ,SMA,72101500,Building maintenance and repair services
"Ministry of Housing, Communities and Local Government",Homes England,ST FUND LOANS ADDITIONS,Investment,EVANS MANN COMMERCIAL LTD,4/11/2022," £86,638.00 ",LAR,None,Loans
"Ministry of Housing, Communities and Local Government",Homes England,AGENCY STAFF,Corporate Resources,EDEN BROWN BUILT ENVIRONMENT,4/7/2022," £3,663.00 ",MED,80111600,Temporary personnel services
"Ministry of Housing, Communities and Local Government",Homes England,AGENCY STAFF,Corporate Resources,EDEN BROWN BUILT ENVIRONMENT,4/26/2022," £3,663.00 ",MED,80111600,Temporary personnel services
"Ministry of Housing, Communities and Local Government",Homes England,AGENCY STAFF,Corporate Resources,EDEN BROWN BUILT ENVIRONMENT,4/26/2022, £732.60 ,MED,80111600,Temporary personnel services
"Ministry of Housing, Communities and Local Government",Homes England,AGENCY STAFF,Corporate Resources,EDEN BROWN BUILT ENVIRONMENT,4/29/2022," £2,930.40 ",MED,80111600,Temporary personnel services
"Ministry of Housing, Communities and Local Government",Homes England,ESTATE GENERAL MAINTENANCE,Development,ENFORCEMENT BAILIFFS LTD T/A QUALITY BAILIFFS,4/14/2022, £594.00 ,SMA,72101500,Building maintenance and repair services
"Ministry of Housing, Communities and Local Government",Homes England,ST FUND LOANS ADDITIONS,Investment,ELITE UK HOMES LTD,4/6/2022," £80,621.00 ",MIC,None,Loans
"Ministry of Housing, Communities and Local Government",Homes England,ESTATE GENERAL MAINTENANCE,"Markets, Partners & Places",ENVIRONMENTAL DESIGN,4/21/2022," £1,204.80 ",SMA,72101500,Building maintenance and repair services
"Ministry of Housing, Communities and Local Government",Homes England,STAFF RECRUITMENT COSTS,Corporate Resources,EXPERIAN,4/6/2022," £3,108.00 ",LAR,80111700,Personnel Recruitment
"Ministry of Housing, Communities and Local Government",Homes England,SUBS TO OTHER BODIES,Corporate Resources,EXPERIAN,4/7/2022," £392,400.00 ",LAR,94101600,Professional associations
"Ministry of Housing, Communities and Local Government",Homes England,SUBS TO OTHER BODIES,Corporate Resources,EXPERIAN,4/8/2022," £102,230.40 ",LAR,94101600,Professional associations
"Ministry of Housing, Communities and Local Government",Homes England,QS FEES,"Markets, Partners & Places",EDDISONS COMMERCIAL LIMITED,4/19/2022," £4,452.00 ",MED,81101500,Civil Engineering
"Ministry of Housing, Communities and Local Government",Homes England,RI - MONIITORING SURVEYOR FEES,Investment,EDDISONS COMMERCIAL LIMITED,4/22/2022, £900.00 ,MED,81101500,Civil Engineering
"Ministry of Housing, Communities and Local Government",Homes England,RI - MONIITORING SURVEYOR FEES,Investment,EDDISONS COMMERCIAL LIMITED,4/22/2022, £834.00 ,MED,81101500,Civil Engineering
"Ministry of Housing, Communities and Local Government",Homes England,RI - MONIITORING SURVEYOR FEES,Investment,EDDISONS COMMERCIAL LIMITED,4/27/2022, £780.00 ,MED,81101500,Civil Engineering
"Ministry of Housing, Communities and Local Government",Homes England,PROF FEES LOANS CAPITALISED,Investment,EDDISONS COMMERCIAL LIMITED,4/28/2022," £4,500.00 ",MED,80131800,Real estate management services
"Ministry of Housing, Communities and Local Government",Homes England,RI - MONIITORING SURVEYOR FEES,Investment,EDDISONS COMMERCIAL LIMITED,4/28/2022, £900.00 ,MED,81101500,Civil Engineering
"Ministry of Housing, Communities and Local Government",Homes England,RI - MONIITORING SURVEYOR FEES,Investment,EDDISONS COMMERCIAL LIMITED,4/28/2022, £900.00 ,MED,81101500,Civil Engineering
"Ministry of Housing, Communities and Local Government",Homes England,PLANNING APPLICATIONS,Development,EAST STAFFORDSHIRE BOROUGH COUNCIL,4/22/2022, £942.00 ,PUB,80131800,Real estate management services
"Ministry of Housing, Communities and Local Government",Homes England,PACKAGE MAINTENANCE & SUBSCRIP,Cido,FRONTIER SOFTWARE PLC,4/21/2022," £54,796.24 ",LAR,43231500,Business function specific software
"Ministry of Housing, Communities and Local Government",Homes England,PACKAGE MAINTENANCE & SUBSCRIP,Cido,FRONTIER SOFTWARE PLC,4/21/2022," £1,554.00 ",LAR,43231500,Business function specific software
"Ministry of Housing, Communities and Local Government",Homes England,ENGINEERING FEES,"Markets, Partners & Places",AECOM LIMITED,4/4/2022," £3,702.91 ",LAR,81101500,Civil Engineering
"Ministry of Housing, Communities and Local Government",Homes England,RI - MONIITORING SURVEYOR FEES,Investment,AECOM LIMITED,4/13/2022," £2,400.00 ",LAR,81101500,Civil Engineering
"Ministry of Housing, Communities and Local Government",Homes England,Other Land Loans Fv Additions,"Markets, Partners & Places",AECOM LIMITED,4/14/2022," £28,160.76 ",LAR,81101500,Civil Engineering
"Ministry of Housing, Communities and Local Government",Homes England,OTHER PROFESSIONAL FEES,Development,AECOM LIMITED,4/19/2022," £4,375.97 ",LAR,80131800,Real estate management services
"Ministry of Housing, Communities and Local Government",Homes England,RI - MONIITORING SURVEYOR FEES,Investment,AECOM LIMITED,4/20/2022," £2,040.00 ",LAR,81101500,Civil Engineering
"Ministry of Housing, Communities and Local Government",Homes England,PROPERTY SERVICES,Development,AECOM LIMITED,4/21/2022," £1,549.68 ",LAR,80131800,Real estate management services
"Ministry of Housing, Communities and Local Government",Homes England,ENGINEERING FEES,"Markets, Partners & Places",AECOM LIMITED,4/22/2022, £719.57 ,LAR,81101500,Civil Engineering
"Ministry of Housing, Communities and Local Government",Homes England,MASTERPLANNING FEES,"Markets, Partners & Places",AECOM LIMITED,4/25/2022," £1,512.00 ",LAR,81101500,Civil Engineering
"Ministry of Housing, Communities and Local Government",Homes England,OTHER PROFESSIONAL FEES,"Markets, Partners & Places",AECOM LIMITED,4/25/2022," £3,843.71 ",LAR,80131800,Real estate management services
"Ministry of Housing, Communities and Local Government",Homes England,RI - MONIITORING SURVEYOR FEES,Investment,AECOM LIMITED,4/26/2022," £2,040.00 ",LAR,81101500,Civil Engineering
"Ministry of Housing, Communities and Local Government",Homes England,DEVELOPMENT MANAGEMENT,Development,AECOM LIMITED,4/26/2022," £10,148.00 ",LAR,80131800,Real estate management services
"Ministry of Housing, Communities and Local Government",Homes England,ENGINEERING CONSULTANTS,"Markets, Partners & Places",AECOM LIMITED,4/27/2022, £960.00 ,LAR,81101500,Civil Engineering
"Ministry of Housing, Communities and Local Government",Homes England,LEGAL FEES (PROGRAMME - CDEL),"Markets, Partners & Places",AECOM LIMITED,4/27/2022," £8,400.00 ",LAR,80121600,Business law services
"Ministry of Housing, Communities and Local Government",Homes England,OTHER PROFESSIONAL FEES,"Markets, Partners & Places",AECOM LIMITED,4/28/2022," £3,260.94 ",LAR,80131800,Real estate management services
"Ministry of Housing, Communities and Local Government",Homes England,OTHER PROFESSIONAL FEES,"Markets, Partners & Places",AECOM LIMITED,4/28/2022," £28,403.68 ",LAR,80131800,Real estate management services
"Ministry of Housing, Communities and Local Government",Homes England,PROPERTY SERVICES,Development,SAVILLS UK LIMITED,4/1/2022," £19,074.00 ",LAR,80131800,Real estate management services
"Ministry of Housing, Communities and Local Government",Homes England,OTHER PROFESSIONAL FEES,"Markets, Partners & Places",SAVILLS UK LIMITED,4/5/2022," £9,600.00 ",LAR,80131800,Real estate management services
"Ministry of Housing, Communities and Local Government",Homes England,PROF FEES LOANS CAPITALISED,Investment,SAVILLS UK LIMITED,4/8/2022," £4,740.00 ",LAR,80131800,Real estate management services
"Ministry of Housing, Communities and Local Government",Homes England,VALUATION FEES,Development,SAVILLS UK LIMITED,4/14/2022," £3,600.00 ",LAR,80131800,Real estate management services
"Ministry of Housing, Communities and Local Government",Homes England,DISPOSAL FEES - PROPERTY AGENT,Development,SAVILLS UK LIMITED,4/19/2022," £6,600.00 ",LAR,80131600,Sale of property and building
"Ministry of Housing, Communities and Local Government",Homes England,RI - SITE VALUATION FEES,Investment,SAVILLS UK LIMITED,4/19/2022," £4,800.00 ",LAR,80131800,Real estate management services
"Ministry of Housing, Communities and Local Government",Homes England,VALUATION FEES,Development,SAVILLS UK LIMITED,4/27/2022," £10,800.00 ",LAR,80131800,Real estate management services
"Ministry of Housing, Communities and Local Government",Homes England,VALUATION FEES,Development,SAVILLS UK LIMITED,4/27/2022," £2,400.00 ",LAR,80131800,Real estate management services
"Ministry of Housing, Communities and Local Government",Homes England,LT FUND LOANS (PS) ADDITIONS,Investment,FAIRBRIDGE DEVELOPMENTS LTD,4/26/2022," £137,926.60 ",SMA,None,Loans
"Ministry of Housing, Communities and Local Government",Homes England,ST FUND LOANS ADDITIONS,Investment,F4 DEVELOPMENTS LTD,4/25/2022," £83,869.70 ",MIC,None,Loans
"Ministry of Housing, Communities and Local Government",Homes England,ST FUND LOANS ADDITIONS,Investment,FP (YE CORNER) LIMITED,4/13/2022," £151,880.51 ",LAR,None,Loans
"Ministry of Housing, Communities and Local Government",Homes England,ST FUND LOANS ADDITIONS,Investment,FOXGLOVE INVESTMENTS HOMES LIMITED,4/22/2022," £270,564.18 ",MIC,None,Loans
"Ministry of Housing, Communities and Local Government",Homes England,ST FUND LOANS ADDITIONS,Investment,FOOTSTEP LIVING DEVELOPMENTS LTD,4/11/2022," £437,958.01 ",MIC,None,Loans
"Ministry of Housing, Communities and Local Government",Homes England,MANAGEMENT COSTS,Development,R FOX T/A SOUTHCOAST MAINTENANCE,4/12/2022," £5,700.00 ",SMA,80131800,Real estate management services
"Ministry of Housing, Communities and Local Government",Homes England,EXTERNAL BUILDING MAINTENANCE,Development,FIRST NATIONAL SERVICES LTD,4/8/2022, £278.40 ,SMA,72101500,Building maintenance and repair services
"Ministry of Housing, Communities and Local Government",Homes England,ESTATE GENERAL MAINTENANCE,Development,FIRST NATIONAL SERVICES LTD,4/21/2022," £4,519.80 ",SMA,72101500,Building maintenance and repair services
"Ministry of Housing, Communities and Local Government",Homes England,SECURITY,Development,FIRST RESPONSE GROUP LTD,4/7/2022, £526.18 ,MED,92121500,Guard services
"Ministry of Housing, Communities and Local Government",Homes England,SECURITY,Development,FIRST RESPONSE GROUP LTD,4/7/2022, £526.18 ,MED,92121500,Guard services
"Ministry of Housing, Communities and Local Government",Homes England,SECURITY,Development,FIRST RESPONSE GROUP LTD,4/7/2022, £526.18 ,MED,92121500,Guard services
"Ministry of Housing, Communities and Local Government",Homes England,SECURITY,Development,FIRST RESPONSE GROUP LTD,4/7/2022," £1,578.53 ",MED,92121500,Guard services
"Ministry of Housing, Communities and Local Government",Homes England,SECURITY,"Markets, Partners & Places",FIRST RESPONSE GROUP LTD,4/14/2022," £11,552.83 ",MED,92121500,Guard services
"Ministry of Housing, Communities and Local Government",Homes England,SECURITY,"Markets, Partners & Places",FIRST RESPONSE GROUP LTD,4/19/2022, £664.50 ,MED,92121500,Guard services
"Ministry of Housing, Communities and Local Government",Homes England,SECURITY,Development,FIRST RESPONSE GROUP LTD,4/25/2022," £24,036.12 ",MED,92121500,Guard services
"Ministry of Housing, Communities and Local Government",Homes England,AGENCY STAFF,Investment,THE FUEL GROUP LIMITED,4/1/2022," £1,014.72 ",SMA,80111600,Temporary personnel services
"Ministry of Housing, Communities and Local Government",Homes England,AGENCY STAFF,Investment,THE FUEL GROUP LIMITED,4/1/2022, £270.65 ,SMA,80111600,Temporary personnel services
"Ministry of Housing, Communities and Local Government",Homes England,AGENCY STAFF,Investment,THE FUEL GROUP LIMITED,4/4/2022, £849.36 ,SMA,80111600,Temporary personnel services
"Ministry of Housing, Communities and Local Government",Homes England,AGENCY STAFF,Investment,THE FUEL GROUP LIMITED,4/11/2022, £811.78 ,SMA,80111600,Temporary personnel services
"Ministry of Housing, Communities and Local Government",Homes England,AGENCY STAFF,Investment,THE FUEL GROUP LIMITED,4/11/2022, £509.62 ,SMA,80111600,Temporary personnel services
"Ministry of Housing, Communities and Local Government",Homes England,AGENCY STAFF,Investment,THE FUEL GROUP LIMITED,4/11/2022, £608.83 ,SMA,80111600,Temporary personnel services
"Ministry of Housing, Communities and Local Government",Homes England,AGENCY STAFF,Investment,THE FUEL GROUP LIMITED,4/11/2022, £541.30 ,SMA,80111600,Temporary personnel services
"Ministry of Housing, Communities and Local Government",Homes England,AGENCY STAFF,Investment,THE FUEL GROUP LIMITED,4/14/2022, £858.42 ,SMA,80111600,Temporary personnel services
"Ministry of Housing, Communities and Local Government",Homes England,AGENCY STAFF,Investment,THE FUEL GROUP LIMITED,4/14/2022, £927.07 ,SMA,80111600,Temporary personnel services
"Ministry of Housing, Communities and Local Government",Homes England,AGENCY STAFF,Investment,THE FUEL GROUP LIMITED,4/22/2022, £618.05 ,SMA,80111600,Temporary personnel services
"Ministry of Housing, Communities and Local Government",Homes England,AGENCY STAFF,Investment,THE FUEL GROUP LIMITED,4/22/2022, £824.06 ,SMA,80111600,Temporary personnel services
"Ministry of Housing, Communities and Local Government",Homes England,CAR LEASING - OTHER COSTS,Development,EUROFIXAUTO UK LIMITED,4/5/2022,"-£1,301.09 ",SMA,25101500,Passenger motor vehicles
"Ministry of Housing, Communities and Local Government",Homes England,CAR LEASING - OTHER COSTS,Development,EUROFIXAUTO UK LIMITED,4/5/2022," £1,561.31 ",SMA,25101500,Passenger motor vehicles
"Ministry of Housing, Communities and Local Government",Homes England,TRAINING COURSES & CONFERENCES,Corporate Resources,KAPLAN FINANCIAL,4/20/2022, £299.00 ,LAR,86101800,In service training and manpower development
"Ministry of Housing, Communities and Local Government",Homes England,MANAGEMENT COSTS,Development,F T GEARING L/S LTD,4/12/2022, £363.80 ,SMA,80131800,Real estate management services
"Ministry of Housing, Communities and Local Government",Homes England,MANAGEMENT COSTS,Development,F T GEARING L/S LTD,4/12/2022, £363.80 ,SMA,80131800,Real estate management services
"Ministry of Housing, Communities and Local Government",Homes England,RI - MONIITORING SURVEYOR FEES,Development,AVISON YOUNG (UK) LTD,4/1/2022, £900.00 ,LAR,81101500,Civil Engineering
"Ministry of Housing, Communities and Local Government",Homes England,MISC PROFESSIONAL FEES,Corporate Resources,AVISON YOUNG (UK) LTD,4/1/2022," £17,280.00 ",LAR,80131800,Real estate management services
"Ministry of Housing, Communities and Local Government",Homes England,PROPERTY SERVICES,Development,AVISON YOUNG (UK) LTD,4/4/2022, £450.00 ,LAR,80131800,Real estate management services
"Ministry of Housing, Communities and Local Government",Homes England,PROPERTY SERVICES,"Markets, Partners & Places",AVISON YOUNG (UK) LTD,4/4/2022, £570.00 ,LAR,80131800,Real estate management services
"Ministry of Housing, Communities and Local Government",Homes England,PROPERTY SERVICES,Development,AVISON YOUNG (UK) LTD,4/4/2022, £870.00 ,LAR,80131800,Real estate management services
"Ministry of Housing, Communities and Local Government",Homes England,PROPERTY SERVICES,Development,AVISON YOUNG (UK) LTD,4/4/2022, £450.00 ,LAR,80131800,Real estate management services
"Ministry of Housing, Communities and Local Government",Homes England,PROPERTY SERVICES,Development,AVISON YOUNG (UK) LTD,4/4/2022, £810.00 ,LAR,80131800,Real estate management services
"Ministry of Housing, Communities and Local Government",Homes England,PROPERTY SERVICES,"Markets, Partners & Places",AVISON YOUNG (UK) LTD,4/4/2022, £420.00 ,LAR,80131800,Real estate management services
"Ministry of Housing, Communities and Local Government",Homes England,RI - MONIITORING SURVEYOR FEES,Investment,AVISON YOUNG (UK) LTD,4/11/2022," £1,320.00 ",LAR,81101500,Civil Engineering
"Ministry of Housing, Communities and Local Government",Homes England,MANAGEMENT COSTS,Development,AVISON YOUNG (UK) LTD,4/11/2022, £450.00 ,LAR,80131800,Real estate management services
"Ministry of Housing, Communities and Local Government",Homes England,MISC PROFESSIONAL FEES,Development,AVISON YOUNG (UK) LTD,4/11/2022," £23,040.00 ",LAR,80131800,Real estate management services
"Ministry of Housing, Communities and Local Government",Homes England,MISC PROFESSIONAL FEES,Investment,AVISON YOUNG (UK) LTD,4/11/2022," £6,000.00 ",LAR,80131800,Real estate management services
"Ministry of Housing, Communities and Local Government",Homes England,PROJ SPECIFIC FEES & PRELIMS,"Markets, Partners & Places",AVISON YOUNG (UK) LTD,4/13/2022," £2,400.00 ",LAR,80131800,Real estate management services
"Ministry of Housing, Communities and Local Government",Homes England,RI - SITE VALUATION FEES,Investment,AVISON YOUNG (UK) LTD,4/13/2022," £59,940.00 ",LAR,80131800,Real estate management services
"Ministry of Housing, Communities and Local Government",Homes England,OTHER PROFESSIONAL FEES,Development,AVISON YOUNG (UK) LTD,4/20/2022," £1,267.56 ",LAR,80131800,Real estate management services
"Ministry of Housing, Communities and Local Government",Homes England,OTHER PROFESSIONAL FEES,Development,AVISON YOUNG (UK) LTD,4/20/2022," £2,710.19 ",LAR,80131800,Real estate management services
"Ministry of Housing, Communities and Local Government",Homes England,OTHER PROFESSIONAL FEES,Development,AVISON YOUNG (UK) LTD,4/20/2022," £3,654.85 ",LAR,80131800,Real estate management services
"Ministry of Housing, Communities and Local Government",Homes England,RI - MONIITORING SURVEYOR FEES,Investment,AVISON YOUNG (UK) LTD,4/22/2022," £1,228.92 ",LAR,81101500,Civil Engineering
"Ministry of Housing, Communities and Local Government",Homes England,Other Land Loans Fv Additions,"Markets, Partners & Places",AVISON YOUNG (UK) LTD,4/28/2022," £10,390.98 ",LAR,80131800,Real estate management services
"Ministry of Housing, Communities and Local Government",Homes England,Other Land Loans Fv Additions,"Markets, Partners & Places",AVISON YOUNG (UK) LTD,4/28/2022," £2,016.00 ",LAR,80131800,Real estate management services
"Ministry of Housing, Communities and Local Government",Homes England,RI - MONIITORING SURVEYOR FEES,Investment,AVISON YOUNG (UK) LTD,4/28/2022," £2,400.00 ",LAR,81101500,Civil Engineering
"Ministry of Housing, Communities and Local Government",Homes England,PLANNING APPLICATIONS,Development,AVISON YOUNG (UK) LTD,4/29/2022, £300.00 ,LAR,80131800,Real estate management services
"Ministry of Housing, Communities and Local Government",Homes England,RATES,Development,GATESHEAD COUNCIL,4/6/2022," £4,096.00 ",PUB,80131500,Lease and rental of property or building
"Ministry of Housing, Communities and Local Government",Homes England,RATES,Development,GATESHEAD COUNCIL,4/12/2022," £38,656.00 ",PUB,80131500,Lease and rental of property or building
"Ministry of Housing, Communities and Local Government",Homes England,RATES,Development,GATESHEAD COUNCIL,4/12/2022," £3,993.60 ",PUB,80131500,Lease and rental of property or building
"Ministry of Housing, Communities and Local Government",Homes England,RATES,Development,GATESHEAD COUNCIL,4/12/2022," £4,608.00 ",PUB,80131500,Lease and rental of property or building
"Ministry of Housing, Communities and Local Government",Homes England,RATES,Development,GATESHEAD COUNCIL,4/12/2022," £4,096.00 ",PUB,80131500,Lease and rental of property or building
"Ministry of Housing, Communities and Local Government",Homes England,RATES,Development,GATESHEAD COUNCIL,4/12/2022," £6,016.00 ",PUB,80131500,Lease and rental of property or building
"Ministry of Housing, Communities and Local Government",Homes England,MISC PROFESSIONAL FEES,Sras,GOVERNMENT ACTUARY'S DEPARTMENT,4/1/2022," £29,510.58 ",PUB,84131700,Pension funds
"Ministry of Housing, Communities and Local Government",Homes England,MISC PROFESSIONAL FEES,Sras,GOVERNMENT ACTUARY'S DEPARTMENT,4/25/2022," £23,805.49 ",PUB,84131700,Pension funds
"Ministry of Housing, Communities and Local Government",Homes England,ST FUND LOANS ADDITIONS,Investment,GREENHOLME MILLS LTD,4/13/2022," £241,258.00 ",MIC,None,Loans
"Ministry of Housing, Communities and Local Government",Homes England,MISC PROFESSIONAL FEES,"Markets, Partners & Places",GEOLYTIX LTD,4/8/2022," £11,400.00 ",SMA,80131800,Real estate management services
"Ministry of Housing, Communities and Local Government",Homes England,CAP GRNTS TO LOCAL AUTHORITIES,Investment,GLOUCESTERSHIRE COUNTY COUNCIL,4/28/2022," £938,766.63 ",PUB,None,Grants
"Ministry of Housing, Communities and Local Government",Homes England,SERVICE RENTS/CHARGES,Development,AVISON YOUNG (UK) LTD,4/20/2022,-£997.14 ,LAR,80131500,Lease and rental of property or building
"Ministry of Housing, Communities and Local Government",Homes England,SERVICE RENTS/CHARGES,Development,AVISON YOUNG (UK) LTD,4/20/2022,"-£2,804.26 ",LAR,80131500,Lease and rental of property or building
"Ministry of Housing, Communities and Local Government",Homes England,SERVICE RENTS/CHARGES,Development,AVISON YOUNG (UK) LTD,4/20/2022," £2,210.24 ",LAR,80131500,Lease and rental of property or building
"Ministry of Housing, Communities and Local Government",Homes England,SERVICE RENTS/CHARGES,Development,AVISON YOUNG (UK) LTD,4/20/2022,"-£2,332.86 ",LAR,80131500,Lease and rental of property or building
